BODY,BODY NAME,SERVICE CODE,ORGANISATIONAL UNIT,ORGANISATIONAL UNIT CODE,EXPENDITURE CATEGORY,EXPENDITURE CODE,DATE (POSTING DATE),TRANSACTION NUMBER,AMOUNT,SUPPLIER NAME,SUPPLIER ID
WARRINGTON BOROUGH COUNCIL,http://opendatacommunities.org/id/unitary-authority/warrington ,COR,Debt Management Expenses,62080,Consult.& Prof. Serv,440000,12-May-17,1900226778,"1,100.00",11KBW Limited,115105
WARRINGTON BOROUGH COUNCIL,http://opendatacommunities.org/id/unitary-authority/warrington ,EE0,Property Acquisition,40021,Consult.& Prof. Serv,440000,13-Apr-17,1900224963,"3,440.00",11KBW Limited,115105
WARRINGTON BOROUGH COUNCIL,http://opendatacommunities.org/id/unitary-authority/warrington ,FWB,Legal Fees - Safeguarding,30100,Legal Costs Incurred,440200,25-Apr-17,1900225342,"3,000.00",11KBW Limited,115105
WARRINGTON BOROUGH COUNCIL,http://opendatacommunities.org/id/unitary-authority/warrington ,FWB,Director of Public Health,55000,Public Health Contribution Payments,540010,17-May-17,1900227006,"1,210.00",2 Co Ltd,101952
WARRINGTON BOROUGH COUNCIL,http://opendatacommunities.org/id/unitary-authority/warrington ,FWB,Care Purchase Central Team,54050,CP-Domicil.External,440950,04-May-17,1900226369,"2,604.00",A&J E Ltd t/a Bluebird Care,115846
WARRINGTON BOROUGH COUNCIL,http://opendatacommunities.org/id/unitary-authority/warrington ,FWB,Care Purchase Central Team,54050,CP-Nursing Care-External,441200,23-May-17,1900227381,"4,136.00",Abbey Lawns Care Home Ltd,101816
WARRINGTON BOROUGH COUNCIL,http://opendatacommunities.org/id/unitary-authority/warrington ,FWB,DSG Support for SEN,32013,Independent School Fees,490200,19-May-17,1900227146,518,Abc Pre-School Limited,400009
WARRINGTON BOROUGH COUNCIL,http://opendatacommunities.org/id/unitary-authority/warrington ,FWB,Temporary Accomodation,43652,Servicing Contracts,200150,03-May-17,1900226308,890,Acorn Building Projects Ltd,105557
WARRINGTON BOROUGH COUNCIL,http://opendatacommunities.org/id/unitary-authority/warrington ,ENO,Housing Projects,82008,Disabled Persons Grant 1996,554000,16-May-17,1900226955,"6,120.00",Acorn Building Projects Ltd,105557
WARRINGTON BOROUGH COUNCIL,http://opendatacommunities.org/id/unitary-authority/warrington ,COR,Debt Management Expenses,62080,Consult.& Prof. Serv,440000,15-May-17,1900226914,"18,852.00",Addleshaw Goddard LLP,110285
WARRINGTON BOROUGH COUNCIL,http://opendatacommunities.org/id/unitary-authority/warrington ,COR,Debt Management Expenses,62080,Consult.& Prof. Serv,440000,15-May-17,1900226913,"32,924.00",Addleshaw Goddard LLP,110285
WARRINGTON BOROUGH COUNCIL,http://opendatacommunities.org/id/unitary-authority/warrington ,COR,Debt Management Expenses,62080,Consult.& Prof. Serv,440000,15-May-17,1900226912,"16,886.00",Addleshaw Goddard LLP,110285
WARRINGTON BOROUGH COUNCIL,http://opendatacommunities.org/id/unitary-authority/warrington ,RSC,Accountancy and Financial Planning,10100,Computer Software - Maintenance,450850,16-May-17,1900226965,"2,724.00",Advanced Business Solutions,113651
WARRINGTON BOROUGH COUNCIL,http://opendatacommunities.org/id/unitary-authority/warrington ,FWB,Care Purchase Budget,54490,Direct Payments,552000,10-May-17,1900226661,695,Advanced Payment Solutions Limited,109731
WARRINGTON BOROUGH COUNCIL,http://opendatacommunities.org/id/unitary-authority/warrington ,RSC,Financial Protection Team,56130,Consult.& Prof. Serv,440000,10-May-17,1900226652,658,Advanced Payment Solutions Limited,109731
WARRINGTON BOROUGH COUNCIL,http://opendatacommunities.org/id/unitary-authority/warrington ,RSC,Coroners Service,11100,Hire Of Mortuaries,220200,19-May-17,1900227144,957,Alder Hey Childrens NHS Foundation,106199
WARRINGTON BOROUGH COUNCIL,http://opendatacommunities.org/id/unitary-authority/warrington ,FWB,Care Purchase South Team,54070,CP-Nursing Care-External,441200,22-May-17,1900227325,"2,880.00",Alexandra Care Home,100708
WARRINGTON BOROUGH COUNCIL,http://opendatacommunities.org/id/unitary-authority/warrington ,FWB,Care Purchase South Team,54070,CP-Nursing Care-External,441200,22-May-17,1900227326,"1,808.00",Alexandra Care Home,100708
WARRINGTON BOROUGH COUNCIL,http://opendatacommunities.org/id/unitary-authority/warrington ,EE0,Markets,43711,Resaleables,400600,17-May-17,1900227007,804,Alfa Travel,102214
WARRINGTON BOROUGH COUNCIL,http://opendatacommunities.org/id/unitary-authority/warrington ,FWB,Care Purchase South Team,54070,CP-Domicil.External,440950,08-May-17,1900226529,"13,922.00",Allied Healthcare Group Ltd,100796
WARRINGTON BOROUGH COUNCIL,http://opendatacommunities.org/id/unitary-authority/warrington ,FWB,Care Purchase Central Team,54050,CP-Domicil.External,440950,08-May-17,1900226529,"9,555.00",Allied Healthcare Group Ltd,100796
WARRINGTON BOROUGH COUNCIL,http://opendatacommunities.org/id/unitary-authority/warrington ,FWB,Care Purchase East Team,54060,CP-Domicil.External,440950,08-May-17,1900226529,"6,406.00",Allied Healthcare Group Ltd,100796
WARRINGTON BOROUGH COUNCIL,http://opendatacommunities.org/id/unitary-authority/warrington ,FWB,Care Purchase West Team,54080,CP-Domicil.External,440950,17-May-17,1900227092,"4,187.00",Alternative Futures Group,104468
WARRINGTON BOROUGH COUNCIL,http://opendatacommunities.org/id/unitary-authority/warrington ,FWB,Care Purchase West Team,54080,CP-Domicil.External,440950,17-May-17,1900227084,750,Alternative Futures Group,104468
WARRINGTON BOROUGH COUNCIL,http://opendatacommunities.org/id/unitary-authority/warrington ,FWB,Care Purchase West Team,54080,Supporting People - External,441250,17-May-17,1900227084,"1,700.00",Alternative Futures Group,104468
WARRINGTON BOROUGH COUNCIL,http://opendatacommunities.org/id/unitary-authority/warrington ,FWB,Care Purchase West Team,54080,CP-Domicil.External,440950,17-May-17,1900227111,750,Alternative Futures Group,104468
WARRINGTON BOROUGH COUNCIL,http://opendatacommunities.org/id/unitary-authority/warrington ,FWB,Care Purchase West Team,54080,Supporting People - External,441250,17-May-17,1900227111,"1,700.00",Alternative Futures Group,104468
WARRINGTON BOROUGH COUNCIL,http://opendatacommunities.org/id/unitary-authority/warrington ,FWB,Care Purchase West Team,54080,CP-Domicil.External,440950,17-May-17,1900227082,750,Alternative Futures Group,104468
WARRINGTON BOROUGH COUNCIL,http://opendatacommunities.org/id/unitary-authority/warrington ,FWB,Care Purchase West Team,54080,Supporting People - External,441250,17-May-17,1900227082,"1,400.00",Alternative Futures Group,104468
WARRINGTON BOROUGH COUNCIL,http://opendatacommunities.org/id/unitary-authority/warrington ,FWB,Care Purchase East Team,54060,CP-Domicil.External,440950,17-May-17,1900227086,918,Alternative Futures Group,104468
WARRINGTON BOROUGH COUNCIL,http://opendatacommunities.org/id/unitary-authority/warrington ,FWB,Care Purchase West Team,54080,CP-Domicil.External,440950,22-May-17,1900227338,"12,370.00",Alternative Futures Group,104468
WARRINGTON BOROUGH COUNCIL,http://opendatacommunities.org/id/unitary-authority/warrington ,FWB,Care Purchase West Team,54080,CP-Domicil.External,440950,23-May-17,1900227403,"4,680.00",Alternative Futures Group,104468
WARRINGTON BOROUGH COUNCIL,http://opendatacommunities.org/id/unitary-authority/warrington ,FWB,Care Purchase Budget,54490,Voids,515150,23-May-17,1900227403,"2,090.00",Alternative Futures Group,104468
WARRINGTON BOROUGH COUNCIL,http://opendatacommunities.org/id/unitary-authority/warrington ,FWB,Care Purchase West Team,54080,CP-Domicil.External,440950,22-May-17,1900227245,"8,520.00",Alternative Futures Group,104468
WARRINGTON BOROUGH COUNCIL,http://opendatacommunities.org/id/unitary-authority/warrington ,FWB,Care Purchase East Team,54060,CP-Domicil.External,440950,22-May-17,1900227246,"2,646.00",Alternative Futures Group,104468
WARRINGTON BOROUGH COUNCIL,http://opendatacommunities.org/id/unitary-authority/warrington ,FWB,Care Purchase West Team,54080,Supporting People - External,441250,22-May-17,1900227245,600,Alternative Futures Group,104468
WARRINGTON BOROUGH COUNCIL,http://opendatacommunities.org/id/unitary-authority/warrington ,FWB,Care Purchase West Team,54080,CP-Domicil.External,440950,22-May-17,1900227247,"10,614.00",Alternative Futures Group,104468
WARRINGTON BOROUGH COUNCIL,http://opendatacommunities.org/id/unitary-authority/warrington ,FWB,Care Purchase West Team,54080,CP-Domicil.External,440950,22-May-17,1900227244,"5,860.00",Alternative Futures Group,104468
WARRINGTON BOROUGH COUNCIL,http://opendatacommunities.org/id/unitary-authority/warrington ,FWB,Care Purchase West Team,54080,Supporting People - External,441250,22-May-17,1900227244,"1,100.00",Alternative Futures Group,104468
WARRINGTON BOROUGH COUNCIL,http://opendatacommunities.org/id/unitary-authority/warrington ,FWB,Care Purchase Budget,54490,Voids,515150,22-May-17,1900227244,510,Alternative Futures Group,104468
WARRINGTON BOROUGH COUNCIL,http://opendatacommunities.org/id/unitary-authority/warrington ,FWB,Care Purchase East Team,54060,CP-Domicil.External,440950,22-May-17,1900227237,"10,570.00",Alternative Futures Group,104468
WARRINGTON BOROUGH COUNCIL,http://opendatacommunities.org/id/unitary-authority/warrington ,FWB,Care Purchase East Team,54060,Supporting People - External,441250,22-May-17,1900227237,650,Alternative Futures Group,104468
WARRINGTON BOROUGH COUNCIL,http://opendatacommunities.org/id/unitary-authority/warrington ,FWB,Care Purchase East Team,54060,CP-Domicil.External,440950,22-May-17,1900227238,"10,370.00",Alternative Futures Group,104468
WARRINGTON BOROUGH COUNCIL,http://opendatacommunities.org/id/unitary-authority/warrington ,FWB,Care Purchase West Team,54080,CP-Domicil.External,440950,22-May-17,1900227236,750,Alternative Futures Group,104468
WARRINGTON BOROUGH COUNCIL,http://opendatacommunities.org/id/unitary-authority/warrington ,FWB,Care Purchase West Team,54080,Supporting People - External,441250,22-May-17,1900227236,"1,100.00",Alternative Futures Group,104468
WARRINGTON BOROUGH COUNCIL,http://opendatacommunities.org/id/unitary-authority/warrington ,FWB,Care Purchase East Team,54060,CP-Domicil.External,440950,22-May-17,1900227248,"9,770.00",Alternative Futures Group,104468
WARRINGTON BOROUGH COUNCIL,http://opendatacommunities.org/id/unitary-authority/warrington ,FWB,Care Purchase West Team,54080,CP-Domicil.External,440950,17-May-17,1900227090,"8,158.00",Alternative Futures Group,104468
WARRINGTON BOROUGH COUNCIL,http://opendatacommunities.org/id/unitary-authority/warrington ,FWB,Care Purchase West Team,54080,CP-Domicil.External,440950,17-May-17,1900227091,"8,158.00",Alternative Futures Group,104468
WARRINGTON BOROUGH COUNCIL,http://opendatacommunities.org/id/unitary-authority/warrington ,FWB,Care Purchase South Team,54070,CP-Domicil.External,440950,22-May-17,1900227243,"3,413.00",Alternative Futures Group,104468
WARRINGTON BOROUGH COUNCIL,http://opendatacommunities.org/id/unitary-authority/warrington ,FWB,Care Purchase South Team,54070,CP-Domicil.External,440950,22-May-17,1900227241,"3,413.00",Alternative Futures Group,104468
WARRINGTON BOROUGH COUNCIL,http://opendatacommunities.org/id/unitary-authority/warrington ,FWB,Care Purchase South Team,54070,CP-Domicil.External,440950,22-May-17,1900227240,"3,413.00",Alternative Futures Group,104468
WARRINGTON BOROUGH COUNCIL,http://opendatacommunities.org/id/unitary-authority/warrington ,FWB,Care Purchase South Team,54070,CP-Domicil.External,440950,22-May-17,1900227242,"3,413.00",Alternative Futures Group,104468
WARRINGTON BOROUGH COUNCIL,http://opendatacommunities.org/id/unitary-authority/warrington ,FWB,Care Purchase East Team,54060,CP-Domicil.External,440950,22-May-17,1900227239,"2,646.00",Alternative Futures Group,104468
WARRINGTON BOROUGH COUNCIL,http://opendatacommunities.org/id/unitary-authority/warrington ,FWB,Care Purchase South Team,54070,CP-Domicil.External,440950,22-May-17,1900227235,"1,466.00",Alternative Futures Group,104468
WARRINGTON BOROUGH COUNCIL,http://opendatacommunities.org/id/unitary-authority/warrington ,ENO,Housing Projects,82008,Disabled Persons Grant 1996,554000,12-Apr-17,1900224887,"1,697.00",AMW Lift & Mobility Services Ltd,112766
WARRINGTON BOROUGH COUNCIL,http://opendatacommunities.org/id/unitary-authority/warrington ,COR,Debt Management Expenses,62080,Training,190150,25-May-17,1900228002,"2,000.00",APSE,110706
WARRINGTON BOROUGH COUNCIL,http://opendatacommunities.org/id/unitary-authority/warrington ,CYP,Childrens Other,81004,Equipment Purchase & Contract,400000,15-May-17,1900226916,"2,308.00",Arjo Ltd,105319
WARRINGTON BOROUGH COUNCIL,http://opendatacommunities.org/id/unitary-authority/warrington ,CYP,Childrens Other,81004,Equipment Purchase & Contract,400000,15-May-17,1900226917,"2,185.00",Arjo Ltd,105319
WARRINGTON BOROUGH COUNCIL,http://opendatacommunities.org/id/unitary-authority/warrington ,FWB,Care Purchase East Team,54060,CP-Nursing Care-External,441200,08-May-17,1900226530,"2,036.00",Ash Paddock Homes Ltd,115798
WARRINGTON BOROUGH COUNCIL,http://opendatacommunities.org/id/unitary-authority/warrington ,FWB,Care Purchase Budget,54490,CP ExternalOther Exp,440800,16-May-17,1900226929,"4,788.00",Ashberry Healthcare,101061
WARRINGTON BOROUGH COUNCIL,http://opendatacommunities.org/id/unitary-authority/warrington ,FWB,Care Purchase Budget,54490,CP ExternalOther Exp,440800,22-May-17,1900227249,"2,700.00",Ashberry Healthcare,101061
WARRINGTON BOROUGH COUNCIL,http://opendatacommunities.org/id/unitary-authority/warrington ,FWB,Care Purchase Budget,54490,CP ExternalOther Exp,440800,23-May-17,1900227356,"50,000.00",Ashberry Healthcare,101061
WARRINGTON BOROUGH COUNCIL,http://opendatacommunities.org/id/unitary-authority/warrington ,FWB,Care Purchase Budget,54490,CP ExternalOther Exp,440800,09-May-17,1900226621,"12,325.00",Ashberry Healthcare Ltd,104776
WARRINGTON BOROUGH COUNCIL,http://opendatacommunities.org/id/unitary-authority/warrington ,FWB,Care Purchase Budget,54490,CP ExternalOther Exp,440800,25-May-17,1900228036,"11,842.00",Ashberry Healthcare Ltd,104776
WARRINGTON BOROUGH COUNCIL,http://opendatacommunities.org/id/unitary-authority/warrington ,FWB,Care Purchase Budget,54490,CP ExternalOther Exp,440800,23-May-17,1900227371,"115,000.00",Ashberry Healthcare Ltd,104776
WARRINGTON BOROUGH COUNCIL,http://opendatacommunities.org/id/unitary-authority/warrington ,FWB,Care Purchase West Team,54080,CP-Domicil.External,440950,22-May-17,1900227250,"8,288.00",Aspirations Care Limited,113707
WARRINGTON BOROUGH COUNCIL,http://opendatacommunities.org/id/unitary-authority/warrington ,FWB,Care Purchase Central Team,54050,CP-Day Care-External,441100,16-May-17,1900226932,"2,931.00",Autism Initiatives,104503
WARRINGTON BOROUGH COUNCIL,http://opendatacommunities.org/id/unitary-authority/warrington ,FWB,Care Purchase West Team,54080,CP-Day Care-External,441100,16-May-17,1900226936,"2,931.00",Autism Initiatives,104503
WARRINGTON BOROUGH COUNCIL,http://opendatacommunities.org/id/unitary-authority/warrington ,FWB,Care Purchase West Team,54080,CP-Day Care-External,441100,16-May-17,1900226931,"1,552.00",Autism Initiatives,104503
WARRINGTON BOROUGH COUNCIL,http://opendatacommunities.org/id/unitary-authority/warrington ,FWB,Care Purchase East Team,54060,CP-LongStayExternal,441150,16-May-17,1900226934,"4,496.00",Autism Initiatives,104503
WARRINGTON BOROUGH COUNCIL,http://opendatacommunities.org/id/unitary-authority/warrington ,FWB,Care Purchase South Team,54070,CP-Nursing Care-External,441200,02-May-17,1900226236,"2,537.00",Avandale Lodge Nursing Home,115775
WARRINGTON BOROUGH COUNCIL,http://opendatacommunities.org/id/unitary-authority/warrington ,FWB,Care Purchase South Team,54070,CP-Nursing Care-External,441200,02-May-17,1900226235,"2,537.00",Avandale Lodge Nursing Home,115775
WARRINGTON BOROUGH COUNCIL,http://opendatacommunities.org/id/unitary-authority/warrington ,FWB,Care Purchase South Team,54070,CP-Nursing Care-External,441200,02-May-17,1900226237,"2,537.00",Avandale Lodge Nursing Home,115775
WARRINGTON BOROUGH COUNCIL,http://opendatacommunities.org/id/unitary-authority/warrington ,FWB,Care Purchase West Team,54080,CP-LongStayExternal,441150,03-May-17,1900226350,"9,500.00",Avery Homes Grove Park Limited,115792
WARRINGTON BOROUGH COUNCIL,http://opendatacommunities.org/id/unitary-authority/warrington ,FWB,Care Purchase West Team,54080,CP-LongStayExternal,441150,04-May-17,1900226366,"4,207.00",Avery Homes Grove Park Limited,115792
WARRINGTON BOROUGH COUNCIL,http://opendatacommunities.org/id/unitary-authority/warrington ,FWB,Care Purchase West Team,54080,CP-LongStayExternal,441150,09-May-17,1900226607,"4,071.00",Avery Homes Grove Park Limited,115792
WARRINGTON BOROUGH COUNCIL,http://opendatacommunities.org/id/unitary-authority/warrington ,RSC,Coroners Service,11100,Equipment Purchase & Contract,400000,19-May-17,1900227145,"8,558.00",AVM Impact Ltd,421144
WARRINGTON BOROUGH COUNCIL,http://opendatacommunities.org/id/unitary-authority/warrington ,RSC,Council Tax & Recovery,10320,Court Costs,460100,05-May-17,1900226431,"14,065.00",AW Law Limited,115992
WARRINGTON BOROUGH COUNCIL,http://opendatacommunities.org/id/unitary-authority/warrington ,FWB,Service Manager - Intermediate Care,53200,Agency Supply - GF,180000,18-Apr-17,1900225026,"4,050.00",Baltimore Consulting Ltd,113735
WARRINGTON BOROUGH COUNCIL,http://opendatacommunities.org/id/unitary-authority/warrington ,FWB,Service Manager - Intermediate Care,53200,Agency Supply - GF,180000,26-Apr-17,1900225931,"3,488.00",Baltimore Consulting Ltd,113735
WARRINGTON BOROUGH COUNCIL,http://opendatacommunities.org/id/unitary-authority/warrington ,FWB,Service Manager - Intermediate Care,53200,Agency Supply - GF,180000,09-May-17,1900226584,"1,800.00",Baltimore Consulting Ltd,113735
WARRINGTON BOROUGH COUNCIL,http://opendatacommunities.org/id/unitary-authority/warrington ,FWB,Service Manager - Intermediate Care,53200,Agency Supply - GF,180000,05-May-17,1900226433,"2,025.00",Baltimore Consulting Ltd,113735
WARRINGTON BOROUGH COUNCIL,http://opendatacommunities.org/id/unitary-authority/warrington ,FWB,Care Purchase South Team,54070,CP-LongStayExternal,441150,03-May-17,1900226356,"1,848.00",Barchester Healthcare Brookfield,104548
WARRINGTON BOROUGH COUNCIL,http://opendatacommunities.org/id/unitary-authority/warrington ,FWB,Care Purchase South Team,54070,CP-LongStayExternal,441150,03-May-17,1900226359,"1,848.00",Barchester Healthcare Brookfield,104548
WARRINGTON BOROUGH COUNCIL,http://opendatacommunities.org/id/unitary-authority/warrington ,FWB,Care Purchase South Team,54070,CP-LongStayExternal,441150,04-May-17,1900226368,"1,848.00",Barchester Healthcare Brookfield,104548
WARRINGTON BOROUGH COUNCIL,http://opendatacommunities.org/id/unitary-authority/warrington ,FWB,Care Purchase South Team,54070,CP-LongStayExternal,441150,03-May-17,1900226349,"1,848.00",Barchester Healthcare Brookfield,104548
WARRINGTON BOROUGH COUNCIL,http://opendatacommunities.org/id/unitary-authority/warrington ,FWB,Care Purchase South Team,54070,CP-LongStayExternal,441150,03-May-17,1900226337,"2,100.00",Barchester Healthcare Cheshire Gran,111378
WARRINGTON BOROUGH COUNCIL,http://opendatacommunities.org/id/unitary-authority/warrington ,FWB,Care Purchase South Team,54070,CP-Nursing Care-External,441200,04-May-17,1900226362,"2,088.00",Barchester Healthcare Cheshire Gran,111378
WARRINGTON BOROUGH COUNCIL,http://opendatacommunities.org/id/unitary-authority/warrington ,FWB,Care Purchase Budget,54490,CP Free Nursing Care External,443500,04-May-17,1900226362,625,Barchester Healthcare Cheshire Gran,111378
WARRINGTON BOROUGH COUNCIL,http://opendatacommunities.org/id/unitary-authority/warrington ,FWB,Care Purchase South Team,54070,CP-Nursing Care-External,441200,03-May-17,1900226355,"2,088.00",Barchester Healthcare Cheshire Gran,111378
WARRINGTON BOROUGH COUNCIL,http://opendatacommunities.org/id/unitary-authority/warrington ,FWB,Care Purchase Budget,54490,CP Free Nursing Care External,443500,03-May-17,1900226355,625,Barchester Healthcare Cheshire Gran,111378
WARRINGTON BOROUGH COUNCIL,http://opendatacommunities.org/id/unitary-authority/warrington ,FWB,Care Purchase Budget,54490,CP Free Nursing Care External,443500,08-May-17,1900226460,625,Barchester Healthcare Cheshire Gran,111378
WARRINGTON BOROUGH COUNCIL,http://opendatacommunities.org/id/unitary-authority/warrington ,FWB,Care Purchase Budget,54490,CP Free Nursing Care External,443500,08-May-17,1900226479,625,Barchester Healthcare Cheshire Gran,111378
WARRINGTON BOROUGH COUNCIL,http://opendatacommunities.org/id/unitary-authority/warrington ,FWB,Care Purchase Budget,54490,CP Free Nursing Care External,443500,08-May-17,1900226458,625,Barchester Healthcare Cheshire Gran,111378
WARRINGTON BOROUGH COUNCIL,http://opendatacommunities.org/id/unitary-authority/warrington ,FWB,Care Purchase Budget,54490,CP Free Nursing Care External,443500,08-May-17,1900226480,625,Barchester Healthcare Cheshire Gran,111378
WARRINGTON BOROUGH COUNCIL,http://opendatacommunities.org/id/unitary-authority/warrington ,FWB,Care Purchase Budget,54490,CP Free Nursing Care External,443500,08-May-17,1900226475,625,Barchester Healthcare Cheshire Gran,111378
WARRINGTON BOROUGH COUNCIL,http://opendatacommunities.org/id/unitary-authority/warrington ,FWB,Care Purchase Budget,54490,CP Free Nursing Care External,443500,08-May-17,1900226459,625,Barchester Healthcare Cheshire Gran,111378
WARRINGTON BOROUGH COUNCIL,http://opendatacommunities.org/id/unitary-authority/warrington ,FWB,Care Purchase Budget,54490,CP Free Nursing Care External,443500,08-May-17,1900226481,625,Barchester Healthcare Cheshire Gran,111378
WARRINGTON BOROUGH COUNCIL,http://opendatacommunities.org/id/unitary-authority/warrington ,FWB,Care Purchase Budget,54490,CP Free Nursing Care External,443500,08-May-17,1900226528,625,Barchester Healthcare Cheshire Gran,111378
WARRINGTON BOROUGH COUNCIL,http://opendatacommunities.org/id/unitary-authority/warrington ,FWB,Care Purchase Budget,54490,CP Free Nursing Care External,443500,08-May-17,1900226483,625,Barchester Healthcare Cheshire Gran,111378
WARRINGTON BOROUGH COUNCIL,http://opendatacommunities.org/id/unitary-authority/warrington ,FWB,Care Purchase Budget,54490,CP Free Nursing Care External,443500,08-May-17,1900226462,625,Barchester Healthcare Cheshire Gran,111378
WARRINGTON BOROUGH COUNCIL,http://opendatacommunities.org/id/unitary-authority/warrington ,FWB,Care Purchase Budget,54490,CP Free Nursing Care External,443500,08-May-17,1900226461,625,Barchester Healthcare Cheshire Gran,111378
WARRINGTON BOROUGH COUNCIL,http://opendatacommunities.org/id/unitary-authority/warrington ,FWB,Care Purchase Budget,54490,CP Free Nursing Care External,443500,08-May-17,1900226477,625,Barchester Healthcare Cheshire Gran,111378
WARRINGTON BOROUGH COUNCIL,http://opendatacommunities.org/id/unitary-authority/warrington ,FWB,Care Purchase West Team,54080,CP-Nursing Care-External,441200,22-May-17,1900227251,"30,680.00",Barchester Homes Westvale House,105246
WARRINGTON BOROUGH COUNCIL,http://opendatacommunities.org/id/unitary-authority/warrington ,FWB,Care Purchase Budget,54490,CP - Cont Care - External,441350,22-May-17,1900227251,"1,288.00",Barchester Homes Westvale House,105246
WARRINGTON BOROUGH COUNCIL,http://opendatacommunities.org/id/unitary-authority/warrington ,FWB,Care Purchase West Team,54080,CP-Nursing Care-External,441200,22-May-17,1900227309,592,Barchester Homes Westvale House,105246
WARRINGTON BOROUGH COUNCIL,http://opendatacommunities.org/id/unitary-authority/warrington ,FWB,Care Purchase West Team,54080,CP-Nursing Care-External,441200,03-May-17,1900226338,"30,680.00",Barchester Homes Westvale House,105246
WARRINGTON BOROUGH COUNCIL,http://opendatacommunities.org/id/unitary-authority/warrington ,FWB,Care Purchase Budget,54490,CP Free Nursing Care External,443500,08-May-17,1900226464,"15,058.00",Barchester Homes Westvale House,105246
WARRINGTON BOROUGH COUNCIL,http://opendatacommunities.org/id/unitary-authority/warrington ,FWB,Care Purchase West Team,54080,CP-Nursing Care-External,441200,04-May-17,1900226363,592,Barchester Homes Westvale House,105246
WARRINGTON BOROUGH COUNCIL,http://opendatacommunities.org/id/unitary-authority/warrington ,CYP,Childrens & Young People,81000,Maintenance Work - Sub Contractors,301150,30-May-17,1900228144,"139,833.00",Bardsley Construction,114404
WARRINGTON BOROUGH COUNCIL,http://opendatacommunities.org/id/unitary-authority/warrington ,FWB,Care Purchase South Team,54070,CP-Nursing Care-External,441200,17-May-17,1900227088,"3,148.00",Berkeley House,113955
WARRINGTON BOROUGH COUNCIL,http://opendatacommunities.org/id/unitary-authority/warrington ,FWB,DSG Early Years PVI Settings,32417,Payment of Grants,470050,22-May-17,1900227167,615,Bloomings Pre-School Day Nursery,400114
WARRINGTON BOROUGH COUNCIL,http://opendatacommunities.org/id/unitary-authority/warrington ,FWB,IC ext allocation,53205,Joint Arrangements,505200,28-Apr-17,1900226216,"45,000.00",Bridgewater Comm Healthcare NHS Tru,113673
WARRINGTON BOROUGH COUNCIL,http://opendatacommunities.org/id/unitary-authority/warrington ,FWB,IC ext allocation,53205,Joint Arrangements,505200,10-May-17,1900226689,"186,445.00",Bridgewater Community Healthcare,108932
WARRINGTON BOROUGH COUNCIL,http://opendatacommunities.org/id/unitary-authority/warrington ,FWB,IC ext allocation,53205,Joint Arrangements,505200,20-Apr-17,1900225152,"186,445.00",Bridgewater Community Healthcare,108932
WARRINGTON BOROUGH COUNCIL,http://opendatacommunities.org/id/unitary-authority/warrington ,FWB,Care Purchase South Team,54070,CP-Domicil.External,440950,08-May-17,1900226532,"19,318.00",Bridgewater Home Care,113753
WARRINGTON BOROUGH COUNCIL,http://opendatacommunities.org/id/unitary-authority/warrington ,FWB,Care Purchase West Team,54080,CP-Domicil.External,440950,08-May-17,1900226532,"9,494.00",Bridgewater Home Care,113753
WARRINGTON BOROUGH COUNCIL,http://opendatacommunities.org/id/unitary-authority/warrington ,FWB,Care Purchase East Team,54060,CP-Domicil.External,440950,08-May-17,1900226532,968,Bridgewater Home Care,113753
WARRINGTON BOROUGH COUNCIL,http://opendatacommunities.org/id/unitary-authority/warrington ,FWB,Care Purchase South Team,54070,CP-Domicil.External,440950,12-May-17,1900226819,"18,207.00",Bridgewater Home Care,113753
WARRINGTON BOROUGH COUNCIL,http://opendatacommunities.org/id/unitary-authority/warrington ,FWB,Care Purchase West Team,54080,CP-Domicil.External,440950,12-May-17,1900226819,"8,621.00",Bridgewater Home Care,113753
WARRINGTON BOROUGH COUNCIL,http://opendatacommunities.org/id/unitary-authority/warrington ,FWB,Care Purchase East Team,54060,CP-Domicil.External,440950,12-May-17,1900226819,"1,138.00",Bridgewater Home Care,113753
WARRINGTON BOROUGH COUNCIL,http://opendatacommunities.org/id/unitary-authority/warrington ,FWB,Child Disability,32212,CP-Domicil.External,440950,03-May-17,1900226312,674,Bright Futures Care Ltd,114579
WARRINGTON BOROUGH COUNCIL,http://opendatacommunities.org/id/unitary-authority/warrington ,EE0,Urban Traffic Management Control,44370,Signal Management,531600,26-Apr-17,1900225981,"1,166.00",British Telecommunications Plc,104543
WARRINGTON BOROUGH COUNCIL,http://opendatacommunities.org/id/unitary-authority/warrington ,FWB,Care Purchase East Team,54060,CP-LongStayExternal,441150,22-May-17,1900227252,993,Broadreach House Charity,108812
WARRINGTON BOROUGH COUNCIL,http://opendatacommunities.org/id/unitary-authority/warrington ,CYP,Primary,81001,Specific Work,200200,02-May-17,1900226254,"1,120.00",BT Property Maintenance,115358
WARRINGTON BOROUGH COUNCIL,http://opendatacommunities.org/id/unitary-authority/warrington ,FWB,Care Purchase West Team,54080,CP-Nursing Care-External,441200,23-May-17,1900227383,"1,824.00",BUPA - Bedford Res,104569
WARRINGTON BOROUGH COUNCIL,http://opendatacommunities.org/id/unitary-authority/warrington ,FWB,Care Purchase Budget,54490,CP ExternalOther Exp,440800,08-May-17,1900226526,"18,860.00",Bupa Care Homes,104572
WARRINGTON BOROUGH COUNCIL,http://opendatacommunities.org/id/unitary-authority/warrington ,FWB,Care Purchase Budget,54490,CP ExternalOther Exp,440800,23-May-17,1900227347,"190,000.00",Bupa Care Homes,104572
WARRINGTON BOROUGH COUNCIL,http://opendatacommunities.org/id/unitary-authority/warrington ,FWB,Care Purchase Central Team,54050,CP-Nursing Care-External,441200,25-May-17,1900228034,813,BUPA Mill View Care Home,116039
WARRINGTON BOROUGH COUNCIL,http://opendatacommunities.org/id/unitary-authority/warrington ,FWB,Care Purchase South Team,54070,CP-LongStayExternal,441150,23-May-17,1900227384,"1,782.00",Burrswood House Nursing & Residenti,109619
WARRINGTON BOROUGH COUNCIL,http://opendatacommunities.org/id/unitary-authority/warrington ,ENO,Housing Projects,82008,Disabled Persons Grant 1996,554000,06-Apr-17,1900224420,"30,602.00",C3S Projects,115676
WARRINGTON BOROUGH COUNCIL,http://opendatacommunities.org/id/unitary-authority/warrington ,FWB,Padgate House,54760,Medical & Hygiene Supplies,401050,11-May-17,1900226761,"1,928.00",Cannon Hygiene Ltd,104565
WARRINGTON BOROUGH COUNCIL,http://opendatacommunities.org/id/unitary-authority/warrington ,COR,Debt Management Expenses,62080,Consult.& Prof. Serv,440000,12-May-17,1900226810,"3,450.00",Capita Resourcing LTD,113201
WARRINGTON BOROUGH COUNCIL,http://opendatacommunities.org/id/unitary-authority/warrington ,COR,Debt Management Expenses,62080,Consult.& Prof. Serv,440000,12-May-17,1900226809,"1,500.00",Capita Resourcing LTD,113201
WARRINGTON BOROUGH COUNCIL,http://opendatacommunities.org/id/unitary-authority/warrington ,COR,Debt Management Expenses,62080,Consult.& Prof. Serv,440000,12-May-17,1900226808,"7,250.00",Capita Resourcing LTD,113201
WARRINGTON BOROUGH COUNCIL,http://opendatacommunities.org/id/unitary-authority/warrington ,COR,Debt Management Expenses,62080,Consult.& Prof. Serv,440000,12-May-17,1900226807,"1,650.00",Capita Resourcing LTD,113201
WARRINGTON BOROUGH COUNCIL,http://opendatacommunities.org/id/unitary-authority/warrington ,FWB,Child Disability,32212,CP-Domicil.External,440950,12-May-17,1900226763,"2,165.00",Care and Share Associates know as C,114790
WARRINGTON BOROUGH COUNCIL,http://opendatacommunities.org/id/unitary-authority/warrington ,FWB,Child Disability,32212,CP-Domicil.External,440950,02-May-17,1900226256,"1,585.00",Care and Share Associates know as C,114790
WARRINGTON BOROUGH COUNCIL,http://opendatacommunities.org/id/unitary-authority/warrington ,FWB,Care Purchase East Team,54060,CP-Domicil.External,440950,17-May-17,1900227095,"26,227.00",Care and Share Associates know as C,114790
WARRINGTON BOROUGH COUNCIL,http://opendatacommunities.org/id/unitary-authority/warrington ,FWB,Care Purchase Central Team,54050,CP-Domicil.External,440950,17-May-17,1900227095,"7,647.00",Care and Share Associates know as C,114790
WARRINGTON BOROUGH COUNCIL,http://opendatacommunities.org/id/unitary-authority/warrington ,FWB,Care Purchase South Team,54070,CP-Domicil.External,440950,17-May-17,1900227095,883,Care and Share Associates know as C,114790
WARRINGTON BOROUGH COUNCIL,http://opendatacommunities.org/id/unitary-authority/warrington ,FWB,Care Purchase East Team,54060,Supporting People - External,441250,17-May-17,1900227095,519,Care and Share Associates know as C,114790
WARRINGTON BOROUGH COUNCIL,http://opendatacommunities.org/id/unitary-authority/warrington ,FWB,Intermediate Care at Home,54520,Equipment Purchase & Contract,400000,05-May-17,1900226435,"2,596.00",Care Monitoring 2000 Ltd,112298
WARRINGTON BOROUGH COUNCIL,http://opendatacommunities.org/id/unitary-authority/warrington ,FWB,Care Purchase West Team,54080,CP-Domicil.External,440950,15-May-17,1900226853,598,Care Solution Trading as Together C,114526
WARRINGTON BOROUGH COUNCIL,http://opendatacommunities.org/id/unitary-authority/warrington ,FWB,Care Purchase Budget,54490,CP ExternalOther Exp,440800,08-May-17,1900226524,"15,407.00",CareConcepts (Appleton) Ltd,105804
WARRINGTON BOROUGH COUNCIL,http://opendatacommunities.org/id/unitary-authority/warrington ,FWB,Care Purchase Budget,54490,CP ExternalOther Exp,440800,23-May-17,1900227374,"95,000.00",CareConcepts (Appleton) Ltd,105804
WARRINGTON BOROUGH COUNCIL,http://opendatacommunities.org/id/unitary-authority/warrington ,FWB,Care Purchase Budget,54490,CP ExternalOther Exp,440800,22-May-17,1900227255,"17,640.00",CareConcepts (Appleton) Ltd,105804
WARRINGTON BOROUGH COUNCIL,http://opendatacommunities.org/id/unitary-authority/warrington ,FWB,Healthwatch,56150,Consult.& Prof. Serv,440000,07-Apr-17,1900224508,"3,228.00",Carers Federation Limited,112653
WARRINGTON BOROUGH COUNCIL,http://opendatacommunities.org/id/unitary-authority/warrington ,FWB,Care Purchase West Team,54080,CP-Domicil.External,440950,11-May-17,1900226746,"21,599.00",Carewatch North Cheshire,104573
WARRINGTON BOROUGH COUNCIL,http://opendatacommunities.org/id/unitary-authority/warrington ,FWB,Care Purchase East Team,54060,CP-Domicil.External,440950,11-May-17,1900226746,"19,016.00",Carewatch North Cheshire,104573
WARRINGTON BOROUGH COUNCIL,http://opendatacommunities.org/id/unitary-authority/warrington ,FWB,Care Purchase South Team,54070,CP-Domicil.External,440950,11-May-17,1900226746,"12,744.00",Carewatch North Cheshire,104573
WARRINGTON BOROUGH COUNCIL,http://opendatacommunities.org/id/unitary-authority/warrington ,FWB,Care Purchase Central Team,54050,CP-Domicil.External,440950,11-May-17,1900226746,"7,872.00",Carewatch North Cheshire,104573
WARRINGTON BOROUGH COUNCIL,http://opendatacommunities.org/id/unitary-authority/warrington ,FWB,Care Purchase West Team,54080,CP-Domicil.External,440950,23-May-17,1900227387,"1,394.00",Caring Alternatives limited,110164
WARRINGTON BOROUGH COUNCIL,http://opendatacommunities.org/id/unitary-authority/warrington ,FWB,Care Purchase West Team,54080,CP-Domicil.External,440950,23-May-17,1900227386,"1,394.00",Caring Alternatives limited,110164
WARRINGTON BOROUGH COUNCIL,http://opendatacommunities.org/id/unitary-authority/warrington ,FWB,Care Purchase South Team,54070,CP-Domicil.External,440950,08-May-17,1900226523,"1,344.00",Caring Hands,102486
WARRINGTON BOROUGH COUNCIL,http://opendatacommunities.org/id/unitary-authority/warrington ,FWB,Child Disability,32212,CP-Domicil.External,440950,12-May-17,1900226794,"1,094.00",Castlerock Recruitment Group,105279
WARRINGTON BOROUGH COUNCIL,http://opendatacommunities.org/id/unitary-authority/warrington ,FWB,Catalyst Choices,54495,Equipment Purchase & Contract,400000,16-May-17,1900226971,891,CBRE Ltd (Glasgow),115302
WARRINGTON BOROUGH COUNCIL,http://opendatacommunities.org/id/unitary-authority/warrington ,FWB,Care Purchase East Team,54060,CP-Nursing Care-External,441200,08-May-17,1900226489,"2,694.00",Chadderton Total-Care Unit Ltd,100425
WARRINGTON BOROUGH COUNCIL,http://opendatacommunities.org/id/unitary-authority/warrington ,FWB,Music Education Grant,32220,Consult.& Prof. Serv,440000,11-May-17,1900226732,"2,138.00",Charanga,113364
WARRINGTON BOROUGH COUNCIL,http://opendatacommunities.org/id/unitary-authority/warrington ,FWB,Halton Music Income,32218,Consult.& Prof. Serv,440000,11-May-17,1900226732,712,Charanga,113364
WARRINGTON BOROUGH COUNCIL,http://opendatacommunities.org/id/unitary-authority/warrington ,FWB,Care Purchase South Team,54070,CP-Nursing Care-External,441200,08-May-17,1900226521,"3,600.00",Cherry Hinton Care Home,112195
WARRINGTON BOROUGH COUNCIL,http://opendatacommunities.org/id/unitary-authority/warrington ,FWB,Care Purchase Central Team,54050,CP-LongStayExternal,441150,23-May-17,1900227389,"1,737.00",Cherry Tree care Homes (Burlington,115693
WARRINGTON BOROUGH COUNCIL,http://opendatacommunities.org/id/unitary-authority/warrington ,FWB,Care Purchase Central Team,54050,CP-LongStayExternal,441150,23-May-17,1900227388,"1,737.00",Cherry Tree care Homes (Burlington,115693
WARRINGTON BOROUGH COUNCIL,http://opendatacommunities.org/id/unitary-authority/warrington ,EE0,Building Control Services,43410,Consult.& Prof. Serv,440000,12-May-17,1900226786,"1,683.00",Cheshire East Council,410116
WARRINGTON BOROUGH COUNCIL,http://opendatacommunities.org/id/unitary-authority/warrington ,COR,Refugees,60300,Consult.& Prof. Serv,440000,28-Apr-17,1900226172,730,Cheshire Language Academy,112359
WARRINGTON BOROUGH COUNCIL,http://opendatacommunities.org/id/unitary-authority/warrington ,COR,Concessionary Travel,60000,Travelling Allowance,330000,11-May-17,1900226714,"260,552.00",Cheshire West And Chester,103357
WARRINGTON BOROUGH COUNCIL,http://opendatacommunities.org/id/unitary-authority/warrington ,COR,Concessionary Travel,60000,Travelling Allowance,330000,28-Apr-17,1900226201,"260,552.00",Cheshire West And Chester Pension F,440027
WARRINGTON BOROUGH COUNCIL,http://opendatacommunities.org/id/unitary-authority/warrington ,COR,Corporate Adjustments,60120,Actuarial Costs,190500,05-May-17,1900226457,"10,367,000.00",Cheshire West And Chester Pension F,440027
WARRINGTON BOROUGH COUNCIL,http://opendatacommunities.org/id/unitary-authority/warrington ,COR,Corporate Adjustments,60120,Actuarial Costs,190500,10-May-17,1900226684,796,Cheshire West And Chester Pension F,440027
WARRINGTON BOROUGH COUNCIL,http://opendatacommunities.org/id/unitary-authority/warrington ,FWB,Care Purchase South Team,54070,CP-LongStayExternal,441150,08-May-17,1900226513,"10,707.00",Church Walk Health Care Ltd,112505
WARRINGTON BOROUGH COUNCIL,http://opendatacommunities.org/id/unitary-authority/warrington ,RSC,ICT Centralised Budget,23100,Computer Software - Maintenance,450850,27-Apr-17,1900226033,"2,000.00",Civica Uk Ltd,100585
WARRINGTON BOROUGH COUNCIL,http://opendatacommunities.org/id/unitary-authority/warrington ,FWB,Woolston Sensory Centre,32033,Servicing Contracts,200150,15-May-17,1900226883,822,Clean Homes Industrial and Contract,112524
WARRINGTON BOROUGH COUNCIL,http://opendatacommunities.org/id/unitary-authority/warrington ,FWB,Care Purchase South Team,54070,CP-Nursing Care-External,441200,17-May-17,1900227096,"3,088.00",Coed Isaf Nursing Home Ltd,114867
WARRINGTON BOROUGH COUNCIL,http://opendatacommunities.org/id/unitary-authority/warrington ,FWB,Care Purchase East Team,54060,CP-Nursing Care-External,441200,23-May-17,1900227390,"27,620.00",Community Care Matters Limited,102791
WARRINGTON BOROUGH COUNCIL,http://opendatacommunities.org/id/unitary-authority/warrington ,FWB,Care Purchase East Team,54060,CP-LongStayExternal,441150,23-May-17,1900227391,"8,464.00",Community Care Matters Limited,102791
WARRINGTON BOROUGH COUNCIL,http://opendatacommunities.org/id/unitary-authority/warrington ,FWB,Care Purchase East Team,54060,CP-Nursing Care-External,441200,24-May-17,1900227469,"1,099.00",Community Integrated Care (Cic),100171
WARRINGTON BOROUGH COUNCIL,http://opendatacommunities.org/id/unitary-authority/warrington ,FWB,Care Purchase East Team,54060,CP-Nursing Care-External,441200,24-May-17,1900227468,"1,923.00",Community Integrated Care (Cic),100171
WARRINGTON BOROUGH COUNCIL,http://opendatacommunities.org/id/unitary-authority/warrington ,FWB,Care Purchase East Team,54060,CP-Nursing Care-External,441200,24-May-17,1900227470,"1,923.00",Community Integrated Care (Cic),100171
WARRINGTON BOROUGH COUNCIL,http://opendatacommunities.org/id/unitary-authority/warrington ,FWB,Care Purchase South Team,54070,CP-Nursing Care-External,441200,27-Apr-17,1900226147,"5,405.00",Community Integrated Care (Cic),100171
WARRINGTON BOROUGH COUNCIL,http://opendatacommunities.org/id/unitary-authority/warrington ,FWB,Care Purchase West Team,54080,CP-Nursing Care-External,441200,04-May-17,1900226370,"2,396.00",Community Integrated Care (Cic),100171
WARRINGTON BOROUGH COUNCIL,http://opendatacommunities.org/id/unitary-authority/warrington ,FWB,Care Purchase South Team,54070,CP-Domicil.External,440950,03-May-17,1900226346,"2,307.00",Community Integrated Care (Cic),100171
WARRINGTON BOROUGH COUNCIL,http://opendatacommunities.org/id/unitary-authority/warrington ,FWB,Care Purchase South Team,54070,CP-Domicil.External,440950,03-May-17,1900226352,"2,307.00",Community Integrated Care (Cic),100171
WARRINGTON BOROUGH COUNCIL,http://opendatacommunities.org/id/unitary-authority/warrington ,FWB,Care Purchase South Team,54070,CP-Domicil.External,440950,04-May-17,1900226364,"2,357.00",Community Integrated Care (Cic),100171
WARRINGTON BOROUGH COUNCIL,http://opendatacommunities.org/id/unitary-authority/warrington ,FWB,Care Purchase South Team,54070,CP-Domicil.External,440950,03-May-17,1900226348,"2,159.00",Community Integrated Care (Cic),100171
WARRINGTON BOROUGH COUNCIL,http://opendatacommunities.org/id/unitary-authority/warrington ,FWB,Care Purchase Central Team,54050,CP-Domicil.External,440950,03-May-17,1900226344,"1,867.00",Community Integrated Care (Cic),100171
WARRINGTON BOROUGH COUNCIL,http://opendatacommunities.org/id/unitary-authority/warrington ,FWB,Care Purchase Central Team,54050,CP-Domicil.External,440950,03-May-17,1900226342,"1,669.00",Community Integrated Care (Cic),100171
WARRINGTON BOROUGH COUNCIL,http://opendatacommunities.org/id/unitary-authority/warrington ,FWB,Care Purchase Central Team,54050,CP-Domicil.External,440950,03-May-17,1900226343,"1,817.00",Community Integrated Care (Cic),100171
WARRINGTON BOROUGH COUNCIL,http://opendatacommunities.org/id/unitary-authority/warrington ,FWB,Care Purchase Central Team,54050,CP-Domicil.External,440950,03-May-17,1900226341,"1,966.00",Community Integrated Care (Cic),100171
WARRINGTON BOROUGH COUNCIL,http://opendatacommunities.org/id/unitary-authority/warrington ,FWB,Care Purchase South Team,54070,CP-Domicil.External,440950,04-May-17,1900226371,754,Community Integrated Care (Cic),100171
WARRINGTON BOROUGH COUNCIL,http://opendatacommunities.org/id/unitary-authority/warrington ,FWB,Care Purchase South Team,54070,CP-Domicil.External,440950,03-May-17,1900226345,754,Community Integrated Care (Cic),100171
WARRINGTON BOROUGH COUNCIL,http://opendatacommunities.org/id/unitary-authority/warrington ,FWB,Care Purchase West Team,54080,CP-Domicil.External,440950,03-May-17,1900226351,"1,875.00",Community Integrated Care (Cic),100171
WARRINGTON BOROUGH COUNCIL,http://opendatacommunities.org/id/unitary-authority/warrington ,FWB,Care Purchase South Team,54070,CP-Domicil.External,440950,22-May-17,1900227253,"2,307.00",Community Integrated Care (Cic),100171
WARRINGTON BOROUGH COUNCIL,http://opendatacommunities.org/id/unitary-authority/warrington ,FWB,Care Purchase South Team,54070,CP-Domicil.External,440950,22-May-17,1900227260,"2,159.00",Community Integrated Care (Cic),100171
WARRINGTON BOROUGH COUNCIL,http://opendatacommunities.org/id/unitary-authority/warrington ,FWB,Care Purchase Central Team,54050,CP-Domicil.External,440950,22-May-17,1900227264,"1,867.00",Community Integrated Care (Cic),100171
WARRINGTON BOROUGH COUNCIL,http://opendatacommunities.org/id/unitary-authority/warrington ,FWB,Care Purchase Central Team,54050,CP-Domicil.External,440950,22-May-17,1900227263,"1,669.00",Community Integrated Care (Cic),100171
WARRINGTON BOROUGH COUNCIL,http://opendatacommunities.org/id/unitary-authority/warrington ,FWB,Care Purchase Central Team,54050,CP-Domicil.External,440950,22-May-17,1900227266,"1,966.00",Community Integrated Care (Cic),100171
WARRINGTON BOROUGH COUNCIL,http://opendatacommunities.org/id/unitary-authority/warrington ,FWB,Care Purchase Central Team,54050,CP-Domicil.External,440950,22-May-17,1900227267,829,Community Integrated Care (Cic),100171
WARRINGTON BOROUGH COUNCIL,http://opendatacommunities.org/id/unitary-authority/warrington ,FWB,Care Purchase West Team,54080,CP-Domicil.External,440950,22-May-17,1900227265,"1,875.00",Community Integrated Care (Cic),100171
WARRINGTON BOROUGH COUNCIL,http://opendatacommunities.org/id/unitary-authority/warrington ,FWB,Care Purchase South Team,54070,CP-Domicil.External,440950,22-May-17,1900227254,"2,307.00",Community Integrated Care (Cic),100171
WARRINGTON BOROUGH COUNCIL,http://opendatacommunities.org/id/unitary-authority/warrington ,FWB,Care Purchase South Team,54070,CP-Domicil.External,440950,22-May-17,1900227256,"2,357.00",Community Integrated Care (Cic),100171
WARRINGTON BOROUGH COUNCIL,http://opendatacommunities.org/id/unitary-authority/warrington ,FWB,Care Purchase Central Team,54050,CP-Domicil.External,440950,22-May-17,1900227257,"1,817.00",Community Integrated Care (Cic),100171
WARRINGTON BOROUGH COUNCIL,http://opendatacommunities.org/id/unitary-authority/warrington ,FWB,Care Purchase Central Team,54050,CP-Domicil.External,440950,28-Apr-17,1900226223,"2,080.00",Continuum Support Ltd,112065
WARRINGTON BOROUGH COUNCIL,http://opendatacommunities.org/id/unitary-authority/warrington ,FWB,Care Purchase Central Team,54050,CP-Domicil.External,440950,28-Apr-17,1900226224,"9,468.00",Continuum Support Ltd,112065
WARRINGTON BOROUGH COUNCIL,http://opendatacommunities.org/id/unitary-authority/warrington ,FWB,Care Purchase East Team,54060,CP-Domicil.External,440950,04-May-17,1900226367,"11,932.00",Continuum Support Ltd,112065
WARRINGTON BOROUGH COUNCIL,http://opendatacommunities.org/id/unitary-authority/warrington ,FWB,Care Purchase Central Team,54050,CP-Domicil.External,440950,28-Apr-17,1900226226,"2,080.00",Continuum Support Ltd,112065
WARRINGTON BOROUGH COUNCIL,http://opendatacommunities.org/id/unitary-authority/warrington ,FWB,Care Purchase Central Team,54050,CP-Domicil.External,440950,28-Apr-17,1900226227,"9,468.00",Continuum Support Ltd,112065
WARRINGTON BOROUGH COUNCIL,http://opendatacommunities.org/id/unitary-authority/warrington ,FWB,Care Purchase East Team,54060,CP-Domicil.External,440950,28-Apr-17,1900226225,"11,932.00",Continuum Support Ltd,112065
WARRINGTON BOROUGH COUNCIL,http://opendatacommunities.org/id/unitary-authority/warrington ,FWB,Care Purchase Central Team,54050,CP-Domicil.External,440950,10-May-17,1900226671,"1,180.00",Continuum Support Ltd,112065
WARRINGTON BOROUGH COUNCIL,http://opendatacommunities.org/id/unitary-authority/warrington ,FWB,Care Purchase East Team,54060,CP-Domicil.External,440950,12-May-17,1900226798,"11,932.00",Continuum Support Ltd,112065
WARRINGTON BOROUGH COUNCIL,http://opendatacommunities.org/id/unitary-authority/warrington ,FWB,Care Purchase Central Team,54050,CP-Domicil.External,440950,09-May-17,1900226608,"11,932.00",Continuum Support Ltd,112065
WARRINGTON BOROUGH COUNCIL,http://opendatacommunities.org/id/unitary-authority/warrington ,FWB,Care Purchase Central Team,54050,CP-Domicil.External,440950,09-May-17,1900226610,"9,468.00",Continuum Support Ltd,112065
WARRINGTON BOROUGH COUNCIL,http://opendatacommunities.org/id/unitary-authority/warrington ,FWB,Care Purchase South Team,54070,CP-Domicil.External,440950,09-May-17,1900226609,"11,932.00",Continuum Support Ltd,112065
WARRINGTON BOROUGH COUNCIL,http://opendatacommunities.org/id/unitary-authority/warrington ,RSC,Coroners Service,11100,Removal Bodies & Exc,440350,03-May-17,1900226326,604,Co-Operative Funeralcare,104637
WARRINGTON BOROUGH COUNCIL,http://opendatacommunities.org/id/unitary-authority/warrington ,RSC,Coroners Service,11100,Removal Bodies & Exc,440350,12-May-17,1900226824,"1,400.00",Co-Operative Funeralcare,104637
WARRINGTON BOROUGH COUNCIL,http://opendatacommunities.org/id/unitary-authority/warrington ,RSC,Coroners Service,11100,Removal Bodies & Exc,440350,25-May-17,1900228006,560,Co-Operative Funeralcare,104637
WARRINGTON BOROUGH COUNCIL,http://opendatacommunities.org/id/unitary-authority/warrington ,EE0,Other Commercial Prop.,43560,Consult.& Prof. Serv,440000,17-May-17,1900227063,"5,046.00",CoStar Limited,108100
WARRINGTON BOROUGH COUNCIL,http://opendatacommunities.org/id/unitary-authority/warrington ,EE0,Industrial Estates,43570,Consult.& Prof. Serv,440000,17-May-17,1900227063,"5,046.00",CoStar Limited,108100
WARRINGTON BOROUGH COUNCIL,http://opendatacommunities.org/id/unitary-authority/warrington ,FWB,Care Purchase East Team,54060,CP-LongStayExternal,441150,16-May-17,1900226941,"21,376.00",Craegmoor Oxen Barn Priory,112933
WARRINGTON BOROUGH COUNCIL,http://opendatacommunities.org/id/unitary-authority/warrington ,FWB,Care Purchase Budget,54490,CP - Cont Care - External,441350,16-May-17,1900226940,"11,096.00",Craegmoor Oxen Barn Priory,112933
WARRINGTON BOROUGH COUNCIL,http://opendatacommunities.org/id/unitary-authority/warrington ,FWB,Care Purchase - Learning Disability,54450,Supporting People - External,441250,06-Oct-15,1900183559,"6,287.00",Creative Support Ltd,100902
WARRINGTON BOROUGH COUNCIL,http://opendatacommunities.org/id/unitary-authority/warrington ,FWB,Care Purchase Central Team,54050,CP-Domicil.External,440950,08-May-17,1900226497,"1,048.00",Creative Support Ltd,100902
WARRINGTON BOROUGH COUNCIL,http://opendatacommunities.org/id/unitary-authority/warrington ,FWB,Care Purchase Central Team,54050,CP-Domicil.External,440950,08-May-17,1900226519,774,Creative Support Ltd,100902
WARRINGTON BOROUGH COUNCIL,http://opendatacommunities.org/id/unitary-authority/warrington ,FWB,Care Purchase Central Team,54050,CP-Domicil.External,440950,08-May-17,1900226517,"5,391.00",Creative Support Ltd,100902
WARRINGTON BOROUGH COUNCIL,http://opendatacommunities.org/id/unitary-authority/warrington ,FWB,Care Purchase Central Team,54050,Supporting People - External,441250,08-May-17,1900226517,"4,867.00",Creative Support Ltd,100902
WARRINGTON BOROUGH COUNCIL,http://opendatacommunities.org/id/unitary-authority/warrington ,FWB,Care Purchase Central Team,54050,Supporting People - External,441250,08-May-17,1900226520,"3,494.00",Creative Support Ltd,100902
WARRINGTON BOROUGH COUNCIL,http://opendatacommunities.org/id/unitary-authority/warrington ,FWB,Care Purchase Central Team,54050,CP-Domicil.External,440950,08-May-17,1900226484,"1,797.00",Creative Support Ltd,100902
WARRINGTON BOROUGH COUNCIL,http://opendatacommunities.org/id/unitary-authority/warrington ,FWB,Care Purchase Central Team,54050,Supporting People - External,441250,08-May-17,1900226484,"2,446.00",Creative Support Ltd,100902
WARRINGTON BOROUGH COUNCIL,http://opendatacommunities.org/id/unitary-authority/warrington ,FWB,Care Purchase West Team,54080,CP-Domicil.External,440950,08-May-17,1900226518,"9,267.00",Creative Support Ltd,100902
WARRINGTON BOROUGH COUNCIL,http://opendatacommunities.org/id/unitary-authority/warrington ,FWB,Care Purchase East Team,54060,CP-Domicil.External,440950,08-May-17,1900226518,"2,286.00",Creative Support Ltd,100902
WARRINGTON BOROUGH COUNCIL,http://opendatacommunities.org/id/unitary-authority/warrington ,FWB,Care Purchase Central Team,54050,CP-Domicil.External,440950,08-May-17,1900226518,645,Creative Support Ltd,100902
WARRINGTON BOROUGH COUNCIL,http://opendatacommunities.org/id/unitary-authority/warrington ,FWB,Care Purchase South Team,54070,CP-Domicil.External,440950,08-May-17,1900226499,"4,022.00",Creative Support Ltd,100902
WARRINGTON BOROUGH COUNCIL,http://opendatacommunities.org/id/unitary-authority/warrington ,FWB,Care Purchase South Team,54070,Supporting People - External,441250,08-May-17,1900226499,"5,438.00",Creative Support Ltd,100902
WARRINGTON BOROUGH COUNCIL,http://opendatacommunities.org/id/unitary-authority/warrington ,FWB,Care Purchase West Team,54080,Supporting People - External,441250,08-May-17,1900226499,551,Creative Support Ltd,100902
WARRINGTON BOROUGH COUNCIL,http://opendatacommunities.org/id/unitary-authority/warrington ,FWB,Care Purchase South Team,54070,CP-Domicil.External,440950,11-May-17,1900226717,"28,674.00",Creative Support Ltd,100902
WARRINGTON BOROUGH COUNCIL,http://opendatacommunities.org/id/unitary-authority/warrington ,FWB,Care Purchase Central Team,54050,CP-Domicil.External,440950,11-May-17,1900226717,"21,161.00",Creative Support Ltd,100902
WARRINGTON BOROUGH COUNCIL,http://opendatacommunities.org/id/unitary-authority/warrington ,FWB,Care Purchase Central Team,54050,Supporting People - External,441250,11-May-17,1900226717,"1,917.00",Creative Support Ltd,100902
WARRINGTON BOROUGH COUNCIL,http://opendatacommunities.org/id/unitary-authority/warrington ,FWB,Care Purchase South Team,54070,Supporting People - External,441250,11-May-17,1900226717,"1,131.00",Creative Support Ltd,100902
WARRINGTON BOROUGH COUNCIL,http://opendatacommunities.org/id/unitary-authority/warrington ,FWB,Care Purchase Central Team,54050,Supporting People - External,441250,22-May-17,1900227269,"3,632.00",Creative Support Ltd,100902
WARRINGTON BOROUGH COUNCIL,http://opendatacommunities.org/id/unitary-authority/warrington ,FWB,Care Purchase West Team,54080,CP-Domicil.External,440950,22-May-17,1900227298,"1,198.00",Creative Support Ltd,100902
WARRINGTON BOROUGH COUNCIL,http://opendatacommunities.org/id/unitary-authority/warrington ,FWB,Care Purchase Central Team,54050,CP-Domicil.External,440950,22-May-17,1900227294,804,Creative Support Ltd,100902
WARRINGTON BOROUGH COUNCIL,http://opendatacommunities.org/id/unitary-authority/warrington ,FWB,Care Purchase Central Team,54050,CP-Domicil.External,440950,22-May-17,1900227292,"1,089.00",Creative Support Ltd,100902
WARRINGTON BOROUGH COUNCIL,http://opendatacommunities.org/id/unitary-authority/warrington ,FWB,Care Purchase Central Team,54050,CP-Domicil.External,440950,22-May-17,1900227299,"5,642.00",Creative Support Ltd,100902
WARRINGTON BOROUGH COUNCIL,http://opendatacommunities.org/id/unitary-authority/warrington ,FWB,Care Purchase Central Team,54050,Supporting People - External,441250,22-May-17,1900227299,"5,058.00",Creative Support Ltd,100902
WARRINGTON BOROUGH COUNCIL,http://opendatacommunities.org/id/unitary-authority/warrington ,FWB,Care Purchase Central Team,54050,CP-Domicil.External,440950,22-May-17,1900227296,"1,796.00",Creative Support Ltd,100902
WARRINGTON BOROUGH COUNCIL,http://opendatacommunities.org/id/unitary-authority/warrington ,FWB,Care Purchase Central Team,54050,Supporting People - External,441250,22-May-17,1900227296,"2,542.00",Creative Support Ltd,100902
WARRINGTON BOROUGH COUNCIL,http://opendatacommunities.org/id/unitary-authority/warrington ,FWB,Care Purchase South Team,54070,CP-Domicil.External,440950,22-May-17,1900227288,"2,645.00",Creative Support Ltd,100902
WARRINGTON BOROUGH COUNCIL,http://opendatacommunities.org/id/unitary-authority/warrington ,FWB,Care Purchase South Team,54070,Supporting People - External,441250,22-May-17,1900227288,"8,194.00",Creative Support Ltd,100902
WARRINGTON BOROUGH COUNCIL,http://opendatacommunities.org/id/unitary-authority/warrington ,FWB,Care Purchase West Team,54080,CP-Domicil.External,440950,22-May-17,1900227275,"9,279.00",Creative Support Ltd,100902
WARRINGTON BOROUGH COUNCIL,http://opendatacommunities.org/id/unitary-authority/warrington ,FWB,Care Purchase East Team,54060,CP-Domicil.External,440950,22-May-17,1900227275,"2,286.00",Creative Support Ltd,100902
WARRINGTON BOROUGH COUNCIL,http://opendatacommunities.org/id/unitary-authority/warrington ,FWB,Care Purchase Central Team,54050,CP-Domicil.External,440950,22-May-17,1900227275,584,Creative Support Ltd,100902
WARRINGTON BOROUGH COUNCIL,http://opendatacommunities.org/id/unitary-authority/warrington ,FWB,Care Purchase Budget,54490,CP ExternalOther Exp,440800,12-May-17,1900226818,"3,232.00",Croftwood Care ltd - Holcroft Grang,115736
WARRINGTON BOROUGH COUNCIL,http://opendatacommunities.org/id/unitary-authority/warrington ,FWB,Care Purchase Budget,54490,CP ExternalOther Exp,440800,22-May-17,1900227281,"15,000.00",Croftwood Care ltd - Holcroft Grang,115736
WARRINGTON BOROUGH COUNCIL,http://opendatacommunities.org/id/unitary-authority/warrington ,FWB,Care Purchase Budget,54490,CP ExternalOther Exp,440800,22-May-17,1900227282,"38,000.00",Croftwood Care Ltd - Westy Hall,115737
WARRINGTON BOROUGH COUNCIL,http://opendatacommunities.org/id/unitary-authority/warrington ,FWB,Care Purchase South Team,54070,CP-Day Care-External,441100,22-May-17,1900227277,607,Days Together Ltd,109116
WARRINGTON BOROUGH COUNCIL,http://opendatacommunities.org/id/unitary-authority/warrington ,FWB,Care Purchase Central Team,54050,CP-Domicil.External,440950,16-May-17,1900226967,"2,217.00",Deafness Support Network,104657
WARRINGTON BOROUGH COUNCIL,http://opendatacommunities.org/id/unitary-authority/warrington ,FWB,DSG Micellaneous Licences & Subscription,32408,Subscriptions,470000,12-May-17,1900226782,"1,000.00",Derbyshire County Council,410036
WARRINGTON BOROUGH COUNCIL,http://opendatacommunities.org/id/unitary-authority/warrington ,RSC,Advertising Team,52123,CRB Checks,190050,15-May-17,1900226884,"7,206.00",Disclosure & Barring Service,440085
WARRINGTON BOROUGH COUNCIL,http://opendatacommunities.org/id/unitary-authority/warrington ,RSC,Coroners Service,11100,Post Mortem Fees-Rep,440250,12-May-17,1900226823,"1,395.00",Dr Bianca Da Gama-Rose,115567
WARRINGTON BOROUGH COUNCIL,http://opendatacommunities.org/id/unitary-authority/warrington ,RSC,Coroners Service,11100,Post Mortem Fees-Rep,440250,12-May-17,1900226821,"2,022.00",Dr C M Manson,100080
WARRINGTON BOROUGH COUNCIL,http://opendatacommunities.org/id/unitary-authority/warrington ,RSC,Coroners Service,11100,Post Mortem Fees-Rep,440250,17-May-17,1900227036,"4,512.00",Dr D Butterworth,100765
WARRINGTON BOROUGH COUNCIL,http://opendatacommunities.org/id/unitary-authority/warrington ,RSC,Coroners Service,11100,Post Mortem Fees-Rep,440250,17-May-17,1900227018,678,Dr D S Shareef,105121
WARRINGTON BOROUGH COUNCIL,http://opendatacommunities.org/id/unitary-authority/warrington ,RSC,Coroners Service,11100,Post Mortem Fees-Rep,440250,17-May-17,1900227019,943,Dr D S Shareef,105121
WARRINGTON BOROUGH COUNCIL,http://opendatacommunities.org/id/unitary-authority/warrington ,RSC,Coroners Service,11100,Reimbursement for Deputy Coroner,440400,15-May-17,1900226854,638,Dr J E Napier,100061
WARRINGTON BOROUGH COUNCIL,http://opendatacommunities.org/id/unitary-authority/warrington ,RSC,Coroners Service,11100,Post Mortem Fees-Rep,440250,15-May-17,1900226855,839,Dr J Krajacevic,100409
WARRINGTON BOROUGH COUNCIL,http://opendatacommunities.org/id/unitary-authority/warrington ,RSC,Coroners Service,11100,Post Mortem Fees-Rep,440250,23-May-17,1900227416,"1,275.00",Dr Jackie Elder,101240
WARRINGTON BOROUGH COUNCIL,http://opendatacommunities.org/id/unitary-authority/warrington ,RSC,Coroners Service,11100,Post Mortem Fees-Rep,440250,15-May-17,1900226856,"2,823.00",Dr M S Al-Jafari,104464
WARRINGTON BOROUGH COUNCIL,http://opendatacommunities.org/id/unitary-authority/warrington ,RSC,Coroners Service,11100,Post Mortem Fees-Rep,440250,08-May-17,1900226555,"1,590.00",Dr Michael Wall,107545
WARRINGTON BOROUGH COUNCIL,http://opendatacommunities.org/id/unitary-authority/warrington ,RSC,Coroners Service,11100,Reimbursement for Deputy Coroner,440400,15-May-17,1900226858,850,Dr N A Mir,106632
WARRINGTON BOROUGH COUNCIL,http://opendatacommunities.org/id/unitary-authority/warrington ,RSC,Coroners Service,11100,Post Mortem Fees-Rep,440250,17-May-17,1900227033,"1,956.00",Dr N Alash,100579
WARRINGTON BOROUGH COUNCIL,http://opendatacommunities.org/id/unitary-authority/warrington ,RSC,Coroners Service,11100,Post Mortem Fees-Rep,440250,23-May-17,1900227417,774,Dr Natalie Meara,101727
WARRINGTON BOROUGH COUNCIL,http://opendatacommunities.org/id/unitary-authority/warrington ,RSC,Coroners Service,11100,Consult.& Prof. Serv,440000,15-May-17,1900226859,523,Dr R T Shepherd,101823
WARRINGTON BOROUGH COUNCIL,http://opendatacommunities.org/id/unitary-authority/warrington ,FWB,Legal Fees - Safeguarding,30100,Legal Costs Incurred,440200,02-May-17,1900226305,522,Dr T and Dr J Billington,114460
WARRINGTON BOROUGH COUNCIL,http://opendatacommunities.org/id/unitary-authority/warrington ,RSC,Coroners Service,11100,Post Mortem Fees-Rep,440250,17-May-17,1900227023,619,Dr W E Kenyon,104851
WARRINGTON BOROUGH COUNCIL,http://opendatacommunities.org/id/unitary-authority/warrington ,RSC,Coroners Service,11100,Post Mortem Fees-Rep,440250,17-May-17,1900227028,944,Dr William Lawler,101052
WARRINGTON BOROUGH COUNCIL,http://opendatacommunities.org/id/unitary-authority/warrington ,FWB,Care Purchase Budget,54490,CP ExternalOther Exp,440800,22-May-17,1900227284,"3,332.00",DRB Healthcare Ltd,115695
WARRINGTON BOROUGH COUNCIL,http://opendatacommunities.org/id/unitary-authority/warrington ,FWB,Care Purchase Budget,54490,CP ExternalOther Exp,440800,23-May-17,1900227350,"65,000.00",DRB Healthcare Ltd,115695
WARRINGTON BOROUGH COUNCIL,http://opendatacommunities.org/id/unitary-authority/warrington ,FWB,Contracts - SM Commissioning Team 2,55920,Public Health Contract Payments,540000,02-May-17,1900226259,514,Drs Brassil and Saeid,107076
WARRINGTON BOROUGH COUNCIL,http://opendatacommunities.org/id/unitary-authority/warrington ,FWB,Care Purchase Central Team,54050,CP-Domicil.External,440950,27-Apr-17,1900226136,"2,000.00",East Cheshire Housing Consortium,110170
WARRINGTON BOROUGH COUNCIL,http://opendatacommunities.org/id/unitary-authority/warrington ,FWB,Care Purchase Central Team,54050,CP-Domicil.External,440950,27-Apr-17,1900226134,"4,000.00",East Cheshire Housing Consortium,110170
WARRINGTON BOROUGH COUNCIL,http://opendatacommunities.org/id/unitary-authority/warrington ,FWB,Care Purchase East Team,54060,CP-Domicil.External,440950,27-Apr-17,1900226137,"1,200.00",East Cheshire Housing Consortium,110170
WARRINGTON BOROUGH COUNCIL,http://opendatacommunities.org/id/unitary-authority/warrington ,FWB,Care Purchase Central Team,54050,CP-Domicil.External,440950,27-Apr-17,1900226135,"2,000.00",East Cheshire Housing Consortium,110170
WARRINGTON BOROUGH COUNCIL,http://opendatacommunities.org/id/unitary-authority/warrington ,FWB,Contracts - SM Commissioning Team 2,55920,Public Health Contract Payments,540000,28-Apr-17,1900226217,695,East Cheshire Nhs Trust,440130
WARRINGTON BOROUGH COUNCIL,http://opendatacommunities.org/id/unitary-authority/warrington ,RSC,Coroners Service,11100,Hire Of Mortuaries,220200,17-May-17,1900227030,"2,034.00",East Cheshire Nhs Trust,440130
WARRINGTON BOROUGH COUNCIL,http://opendatacommunities.org/id/unitary-authority/warrington ,FWB,Central -Operational,54010,Agency Supply - GF,180000,09-May-17,1900226581,550,Easymove Removals,104684
WARRINGTON BOROUGH COUNCIL,http://opendatacommunities.org/id/unitary-authority/warrington ,FWB,Leaving Care,31101,Furniture & Fittings,400150,21-Apr-17,1900225233,570,EDS Ltd,114882
WARRINGTON BOROUGH COUNCIL,http://opendatacommunities.org/id/unitary-authority/warrington ,FWB,Children with Disabilities,31005,Sect 17 (Child Act),490950,11-May-17,1900226750,525,Edward Butler Ltd,115862
WARRINGTON BOROUGH COUNCIL,http://opendatacommunities.org/id/unitary-authority/warrington ,FWB,Children with Disabilities,31005,Sect 17 (Child Act),490950,25-May-17,1900228027,525,Edward Butler Ltd,115862
WARRINGTON BOROUGH COUNCIL,http://opendatacommunities.org/id/unitary-authority/warrington ,FWB,Children with Disabilities,31005,Sect 17 (Child Act),490950,11-May-17,1900226751,525,Edward Butler Ltd,115862
WARRINGTON BOROUGH COUNCIL,http://opendatacommunities.org/id/unitary-authority/warrington ,HOL,Single Billing Holding Account,91130,ICT Comms - Line Rental,450200,08-May-17,1900226548,"3,273.00",EE Airtime,104996
WARRINGTON BOROUGH COUNCIL,http://opendatacommunities.org/id/unitary-authority/warrington ,HOL,Single Billing Holding Account,91130,ICT Comms - Line Rental,450200,08-May-17,1900226549,"7,612.00",EE Airtime,104996
WARRINGTON BOROUGH COUNCIL,http://opendatacommunities.org/id/unitary-authority/warrington ,EE1,Highways Drainage,44270,ICT Comms - Line Rental,450200,10-Apr-17,1900224690,"1,476.00",EE Hardware Ltd,114106
WARRINGTON BOROUGH COUNCIL,http://opendatacommunities.org/id/unitary-authority/warrington ,FWB,Care Purchase Budget,54490,CP ExternalOther Exp,440800,17-May-17,1900227097,"13,106.00",Embrace Group,109675
WARRINGTON BOROUGH COUNCIL,http://opendatacommunities.org/id/unitary-authority/warrington ,FWB,Care Purchase Budget,54490,CP ExternalOther Exp,440800,22-May-17,1900227280,"40,000.00",Embrace Group,109675
WARRINGTON BOROUGH COUNCIL,http://opendatacommunities.org/id/unitary-authority/warrington ,FWB,Contracts - SM Commissioning Team 2,55920,Public Health Contract Payments,540000,02-May-17,1900226258,"1,144.00",Eric Moore Partnership,113398
WARRINGTON BOROUGH COUNCIL,http://opendatacommunities.org/id/unitary-authority/warrington ,CYP,Childrens & Young People,81000,Consult.& Prof. Serv,440000,19-May-17,1900227162,"2,650.00",FDR Solicitors,111996
WARRINGTON BOROUGH COUNCIL,http://opendatacommunities.org/id/unitary-authority/warrington ,CYP,Childrens & Young People,81000,Consult.& Prof. Serv,440000,19-May-17,1900227162,922,FDR Solicitors,111996
WARRINGTON BOROUGH COUNCIL,http://opendatacommunities.org/id/unitary-authority/warrington ,FWB,Care Purchase East Team,54060,CP-Domicil.External,440950,02-May-17,1900226233,879,Focus on Care,108343
WARRINGTON BOROUGH COUNCIL,http://opendatacommunities.org/id/unitary-authority/warrington ,FWB,Care Purchase Budget,54490,CP - Cont Care - External,441350,02-May-17,1900226234,879,Focus on Care,108343
WARRINGTON BOROUGH COUNCIL,http://opendatacommunities.org/id/unitary-authority/warrington ,FWB,Music Education Grant,32220,Consult.& Prof. Serv,440000,11-May-17,1900226733,520,Fodens Youth Band,114853
WARRINGTON BOROUGH COUNCIL,http://opendatacommunities.org/id/unitary-authority/warrington ,RSC,Coroners Service,11100,Analysts Fees,440300,03-May-17,1900226311,"1,768.00",Forensics Ltd,105295
WARRINGTON BOROUGH COUNCIL,http://opendatacommunities.org/id/unitary-authority/warrington ,RSC,Coroners Service,11100,Analysts Fees,440300,03-May-17,1900226310,842,Forensics Ltd,105295
WARRINGTON BOROUGH COUNCIL,http://opendatacommunities.org/id/unitary-authority/warrington ,RSC,Coroners Service,11100,Analysts Fees,440300,12-May-17,1900226828,"1,241.00",Forensics Ltd,105295
WARRINGTON BOROUGH COUNCIL,http://opendatacommunities.org/id/unitary-authority/warrington ,RSC,Coroners Service,11100,Analysts Fees,440300,12-May-17,1900226827,820,Forensics Ltd,105295
WARRINGTON BOROUGH COUNCIL,http://opendatacommunities.org/id/unitary-authority/warrington ,RSC,Coroners Service,11100,Analysts Fees,440300,23-May-17,1900227411,842,Forensics Ltd,105295
WARRINGTON BOROUGH COUNCIL,http://opendatacommunities.org/id/unitary-authority/warrington ,RSC,Coroners Service,11100,Analysts Fees,440300,23-May-17,1900227413,"1,118.00",Forensics Ltd,105295
WARRINGTON BOROUGH COUNCIL,http://opendatacommunities.org/id/unitary-authority/warrington ,RSC,Coroners Service,11100,Analysts Fees,440300,23-May-17,1900227412,799,Forensics Ltd,105295
WARRINGTON BOROUGH COUNCIL,http://opendatacommunities.org/id/unitary-authority/warrington ,RSC,Coroners Service,11100,Analysts Fees,440300,23-May-17,1900227414,506,Forensics Ltd,105295
WARRINGTON BOROUGH COUNCIL,http://opendatacommunities.org/id/unitary-authority/warrington ,FWB,Care Purchase East Team,54060,CP-Nursing Care-External,441200,16-May-17,1900226958,"8,804.00",Four Oaks Care Home,115778
WARRINGTON BOROUGH COUNCIL,http://opendatacommunities.org/id/unitary-authority/warrington ,FWB,Care Purchase Budget,54490,CP Free Nursing Care External,443500,17-May-17,1900227107,"1,674.00",Four Seasons ta St Oswalds Care Hom,109422
WARRINGTON BOROUGH COUNCIL,http://opendatacommunities.org/id/unitary-authority/warrington ,FWB,Care Purchase Budget,54490,CP ExternalOther Exp,440800,15-May-17,1900226842,"18,470.00",Four Seasons ta St Oswalds Care Hom,109422
WARRINGTON BOROUGH COUNCIL,http://opendatacommunities.org/id/unitary-authority/warrington ,FWB,Care Purchase Budget,54490,CP ExternalOther Exp,440800,17-May-17,1900227106,"4,074.00",Four Seasons ta St Oswalds Care Hom,109422
WARRINGTON BOROUGH COUNCIL,http://opendatacommunities.org/id/unitary-authority/warrington ,FWB,Care Purchase Budget,54490,CP ExternalOther Exp,440800,22-May-17,1900227304,"30,000.00",Four Seasons ta St Oswalds Care Hom,109422
WARRINGTON BOROUGH COUNCIL,http://opendatacommunities.org/id/unitary-authority/warrington ,CYP,Childrens Other,81004,Equipment Purchase & Contract,400000,09-May-17,1900226594,"2,308.00",Fox Wood School,400144
WARRINGTON BOROUGH COUNCIL,http://opendatacommunities.org/id/unitary-authority/warrington ,CYP,Childrens Other,81004,Equipment Purchase & Contract,400000,09-May-17,1900226595,"2,185.00",Fox Wood School,400144
WARRINGTON BOROUGH COUNCIL,http://opendatacommunities.org/id/unitary-authority/warrington ,CYP,Childrens & Young People,81000,Specific Work,200200,22-May-17,1900227166,640,Fulwood Roofing Serv (Northern) Ltd,105362
WARRINGTON BOROUGH COUNCIL,http://opendatacommunities.org/id/unitary-authority/warrington ,FWB,Care Purchase West Team,54080,CP-Domicil.External,440950,04-May-17,1900226372,"27,058.00",Future Directions Community Interes,111498
WARRINGTON BOROUGH COUNCIL,http://opendatacommunities.org/id/unitary-authority/warrington ,FWB,Care Purchase East Team,54060,CP-Domicil.External,440950,04-May-17,1900226372,"15,740.00",Future Directions Community Interes,111498
WARRINGTON BOROUGH COUNCIL,http://opendatacommunities.org/id/unitary-authority/warrington ,FWB,Care Purchase East Team,54060,Supporting People - External,441250,04-May-17,1900226372,"3,574.00",Future Directions Community Interes,111498
WARRINGTON BOROUGH COUNCIL,http://opendatacommunities.org/id/unitary-authority/warrington ,FWB,Care Purchase West Team,54080,Supporting People - External,441250,04-May-17,1900226372,"1,450.00",Future Directions Community Interes,111498
WARRINGTON BOROUGH COUNCIL,http://opendatacommunities.org/id/unitary-authority/warrington ,FWB,Care Purchase South Team,54070,CP-Domicil.External,440950,04-May-17,1900226375,"6,614.00",Future Directions Community Interes,111498
WARRINGTON BOROUGH COUNCIL,http://opendatacommunities.org/id/unitary-authority/warrington ,FWB,Care Purchase West Team,54080,CP-Domicil.External,440950,04-May-17,1900226375,"1,981.00",Future Directions Community Interes,111498
WARRINGTON BOROUGH COUNCIL,http://opendatacommunities.org/id/unitary-authority/warrington ,FWB,Legal Fees - Safeguarding,30100,Legal Costs Incurred,440200,25-May-17,1900228030,"1,013.00",Gateway Psychology Limited,113687
WARRINGTON BOROUGH COUNCIL,http://opendatacommunities.org/id/unitary-authority/warrington ,EE0,Transport Holding Account,41311,Diesel,300100,25-May-17,1900228012,"18,922.00",GB Oils Ltd (Martindale Fuels),103439
WARRINGTON BOROUGH COUNCIL,http://opendatacommunities.org/id/unitary-authority/warrington ,ENO,Highways Other,82005,Consult.& Prof. Serv,440000,23-May-17,1900227409,"12,888.00",George Cox & Sons,105471
WARRINGTON BOROUGH COUNCIL,http://opendatacommunities.org/id/unitary-authority/warrington ,FWB,Residential Placements,30102,CP-LongStayExternal,441150,28-Apr-17,1900226212,"3,025.00",G-Map Services,106244
WARRINGTON BOROUGH COUNCIL,http://opendatacommunities.org/id/unitary-authority/warrington ,FWB,Care Purchase Budget,54490,CP ExternalOther Exp,440800,17-May-17,1900227098,"2,992.00",GNR Care Limited,114127
WARRINGTON BOROUGH COUNCIL,http://opendatacommunities.org/id/unitary-authority/warrington ,FWB,Care Purchase Budget,54490,CP ExternalOther Exp,440800,22-May-17,1900227335,"18,000.00",GNR Care Limited,114127
WARRINGTON BOROUGH COUNCIL,http://opendatacommunities.org/id/unitary-authority/warrington ,FWB,Ross Close,31102,Car Leasing Charges,350000,16-May-17,1900226960,530,Golden Gates Housing Trust,101005
WARRINGTON BOROUGH COUNCIL,http://opendatacommunities.org/id/unitary-authority/warrington ,COR,Fees & Subscriptions,60020,Audit Comm-Fee,441550,02-May-17,1900226260,"10,000.00",Grant Thornton UK LLP,108316
WARRINGTON BOROUGH COUNCIL,http://opendatacommunities.org/id/unitary-authority/warrington ,FWB,Care Purchase West Team,54080,CP-Day Care-External,441100,22-May-17,1900227332,"1,040.00",Great Opportunities Together CIC,110076
WARRINGTON BOROUGH COUNCIL,http://opendatacommunities.org/id/unitary-authority/warrington ,FWB,Care Purchase East Team,54060,CP-LongStayExternal,441150,17-May-17,1900227100,"12,348.00",Griffin Care Ltd,101672
WARRINGTON BOROUGH COUNCIL,http://opendatacommunities.org/id/unitary-authority/warrington ,FWB,Care Purchase South Team,54070,CP-LongStayExternal,441150,17-May-17,1900227099,"12,348.00",Griffin Care Ltd,101672
WARRINGTON BOROUGH COUNCIL,http://opendatacommunities.org/id/unitary-authority/warrington ,ENO,Housing Projects,82008,Disabled Persons Grant 1996,554000,16-May-17,1900226930,"12,910.00",Gt Builders,104761
WARRINGTON BOROUGH COUNCIL,http://opendatacommunities.org/id/unitary-authority/warrington ,FWB,Music Education Grant,32220,Events Costs,490000,11-May-17,1900226734,"1,559.00",Halton Borough Council,410008
WARRINGTON BOROUGH COUNCIL,http://opendatacommunities.org/id/unitary-authority/warrington ,FWB,Halton Music Income,32218,Events Costs,490000,11-May-17,1900226734,"1,559.00",Halton Borough Council,410008
WARRINGTON BOROUGH COUNCIL,http://opendatacommunities.org/id/unitary-authority/warrington ,FWB,Halton Music Income,32218,Events Costs,490000,08-May-17,1900226539,765,Halton Borough Council,410008
WARRINGTON BOROUGH COUNCIL,http://opendatacommunities.org/id/unitary-authority/warrington ,FWB,Care Purchase West Team,54080,CP-Domicil.External,440950,08-May-17,1900226467,"24,032.00",Hannahs Homecare Ltd,114443
WARRINGTON BOROUGH COUNCIL,http://opendatacommunities.org/id/unitary-authority/warrington ,FWB,Care Purchase West Team,54080,CP-Domicil.External,440950,08-May-17,1900226467,952,Hannahs Homecare Ltd,114443
WARRINGTON BOROUGH COUNCIL,http://opendatacommunities.org/id/unitary-authority/warrington ,FWB,Care Purchase Budget,54490,CP ExternalOther Exp,440800,08-May-17,1900226478,848,Harbour Healthcare 1 Ltd,110527
WARRINGTON BOROUGH COUNCIL,http://opendatacommunities.org/id/unitary-authority/warrington ,FWB,Care Purchase Budget,54490,CP ExternalOther Exp,440800,22-May-17,1900227333,"4,875.00",Harbour Healthcare 1 Ltd,110527
WARRINGTON BOROUGH COUNCIL,http://opendatacommunities.org/id/unitary-authority/warrington ,FWB,Care Purchase Budget,54490,CP ExternalOther Exp,440800,23-May-17,1900227373,"50,000.00",Harbour Healthcare 1 Ltd,110527
WARRINGTON BOROUGH COUNCIL,http://opendatacommunities.org/id/unitary-authority/warrington ,FWB,Hospital Discharge Team,54390,Agency Supply - GF,180000,22-May-17,1700016865,"1,103.00",Hays Specialist Recruitment Ltd,107512
WARRINGTON BOROUGH COUNCIL,http://opendatacommunities.org/id/unitary-authority/warrington ,FWB,Care Purchase East Team,54060,CP-Nursing Care-External,441200,22-May-17,1900227329,"1,596.00",HC One - Carrington Court,115063
WARRINGTON BOROUGH COUNCIL,http://opendatacommunities.org/id/unitary-authority/warrington ,FWB,Care Purchase Central Team,54050,CP-LongStayExternal,441150,09-May-17,1900226614,"1,842.00",HC One (Hulton Care Nursing Home),115141
WARRINGTON BOROUGH COUNCIL,http://opendatacommunities.org/id/unitary-authority/warrington ,FWB,Care Purchase Central Team,54050,CP-Nursing Care-External,441200,09-May-17,1900226613,"1,673.00",HC One Ferndale Court,110394
WARRINGTON BOROUGH COUNCIL,http://opendatacommunities.org/id/unitary-authority/warrington ,FWB,Care Purchase Budget,54490,CP ExternalOther Exp,440800,23-May-17,1900227358,"160,000.00",HC-One Limited Callands,109640
WARRINGTON BOROUGH COUNCIL,http://opendatacommunities.org/id/unitary-authority/warrington ,FWB,Care Purchase Budget,54490,CP ExternalOther Exp,440800,23-May-17,1900227363,"160,000.00",HC-One Limited Callands,109640
WARRINGTON BOROUGH COUNCIL,http://opendatacommunities.org/id/unitary-authority/warrington ,FWB,Care Purchase Budget,54490,CP ExternalOther Exp,440800,22-May-17,1900227328,"7,000.00",Heathfield Residental Home,100059
WARRINGTON BOROUGH COUNCIL,http://opendatacommunities.org/id/unitary-authority/warrington ,FWB,Care Purchase Budget,54490,CP ExternalOther Exp,440800,02-May-17,1900226246,"2,386.00",Heathside Elderly Persons Home,104777
WARRINGTON BOROUGH COUNCIL,http://opendatacommunities.org/id/unitary-authority/warrington ,FWB,Care Purchase Budget,54490,CP ExternalOther Exp,440800,04-May-17,1900226377,564,Heathside Elderly Persons Home,104777
WARRINGTON BOROUGH COUNCIL,http://opendatacommunities.org/id/unitary-authority/warrington ,FWB,Care Purchase Budget,54490,CP ExternalOther Exp,440800,24-May-17,1900227472,"2,261.00",Heathside Elderly Persons Home,104777
WARRINGTON BOROUGH COUNCIL,http://opendatacommunities.org/id/unitary-authority/warrington ,FWB,Care Purchase Budget,54490,CP ExternalOther Exp,440800,22-May-17,1900227331,"43,000.00",Heathside Elderly Persons Home,104777
WARRINGTON BOROUGH COUNCIL,http://opendatacommunities.org/id/unitary-authority/warrington ,COR,Corporate Planning Items,61020,Apprenticeship Levy,505175,11-May-17,1900226743,"39,420.00",Hm Revenue And Customs,440026
WARRINGTON BOROUGH COUNCIL,http://opendatacommunities.org/id/unitary-authority/warrington ,RSC,Council Tax & Recovery,10320,Court Costs,460100,16-May-17,1900226943,"2,097.00",Hmcs North Cheshire Collections,102261
WARRINGTON BOROUGH COUNCIL,http://opendatacommunities.org/id/unitary-authority/warrington ,ENO,Housing Projects,82008,Specific Work,200200,04-May-17,1900226388,"34,000.00",Hmrc,103722
WARRINGTON BOROUGH COUNCIL,http://opendatacommunities.org/id/unitary-authority/warrington ,FWB,DSG Early Years PVI Settings,32417,Payment of Grants,470050,22-May-17,1900227320,615,Holly Grange Montessori Nursery Ltd,400236
WARRINGTON BOROUGH COUNCIL,http://opendatacommunities.org/id/unitary-authority/warrington ,FWB,Care Purchase Central Team,54050,CP-Domicil.External,440950,04-May-17,1900226378,"2,524.00",Homelife Leeds Ltd,101794
WARRINGTON BOROUGH COUNCIL,http://opendatacommunities.org/id/unitary-authority/warrington ,FWB,DSG Inter Authority Recoupment,32009,Recoupment Charges,490700,19-May-17,1900227155,"6,000.00",Hope Academy,111362
WARRINGTON BOROUGH COUNCIL,http://opendatacommunities.org/id/unitary-authority/warrington ,FWB,DAT Pooled Budget,53860,Drug Action,443600,10-May-17,1900226681,765,Hub Pharmacy Ltd,104278
WARRINGTON BOROUGH COUNCIL,http://opendatacommunities.org/id/unitary-authority/warrington ,ENO,Environment & Regeneration Other,82002,Computer Software - Purchase,450800,17-May-17,1900227079,"2,097.00",IBM Ltd,105153
WARRINGTON BOROUGH COUNCIL,http://opendatacommunities.org/id/unitary-authority/warrington ,FWB,Children with Disabilities,31005,Training,190150,12-May-17,1900226773,"1,000.00",In Fine Fettle,115711
WARRINGTON BOROUGH COUNCIL,http://opendatacommunities.org/id/unitary-authority/warrington ,FWB,Care Purchase West Team,54080,CP-Domicil.External,440950,12-May-17,1900226814,"12,470.00",Independent Living Alliance,100726
WARRINGTON BOROUGH COUNCIL,http://opendatacommunities.org/id/unitary-authority/warrington ,FWB,Care Purchase Central Team,54050,CP-Domicil.External,440950,12-May-17,1900226814,"9,200.00",Independent Living Alliance,100726
WARRINGTON BOROUGH COUNCIL,http://opendatacommunities.org/id/unitary-authority/warrington ,FWB,Care Purchase Central Team,54050,Supporting People - External,441250,12-May-17,1900226814,"1,235.00",Independent Living Alliance,100726
WARRINGTON BOROUGH COUNCIL,http://opendatacommunities.org/id/unitary-authority/warrington ,FWB,Care Purchase Central Team,54050,CP-Domicil.External,440950,12-May-17,1900226795,"3,813.00",Independent Living Alliance,100726
WARRINGTON BOROUGH COUNCIL,http://opendatacommunities.org/id/unitary-authority/warrington ,FWB,Care Purchase Central Team,54050,CP-Domicil.External,440950,12-May-17,1900226815,"1,843.00",Independent Living Alliance,100726
WARRINGTON BOROUGH COUNCIL,http://opendatacommunities.org/id/unitary-authority/warrington ,FWB,Care Purchase South Team,54070,CP-Domicil.External,440950,12-May-17,1900226817,"9,056.00",Independent Living Alliance,100726
WARRINGTON BOROUGH COUNCIL,http://opendatacommunities.org/id/unitary-authority/warrington ,FWB,Care Purchase Central Team,54050,CP-Domicil.External,440950,12-May-17,1900226817,"2,875.00",Independent Living Alliance,100726
WARRINGTON BOROUGH COUNCIL,http://opendatacommunities.org/id/unitary-authority/warrington ,FWB,Care Purchase South Team,54070,Supporting People - External,441250,12-May-17,1900226817,"2,727.00",Independent Living Alliance,100726
WARRINGTON BOROUGH COUNCIL,http://opendatacommunities.org/id/unitary-authority/warrington ,FWB,Care Purchase Central Team,54050,Supporting People - External,441250,12-May-17,1900226817,"1,363.00",Independent Living Alliance,100726
WARRINGTON BOROUGH COUNCIL,http://opendatacommunities.org/id/unitary-authority/warrington ,FWB,Care Purchase Central Team,54050,CP-Domicil.External,440950,12-May-17,1900226816,"5,763.00",Independent Living Alliance,100726
WARRINGTON BOROUGH COUNCIL,http://opendatacommunities.org/id/unitary-authority/warrington ,FWB,Care Purchase South Team,54070,CP-Domicil.External,440950,12-May-17,1900226816,"1,233.00",Independent Living Alliance,100726
WARRINGTON BOROUGH COUNCIL,http://opendatacommunities.org/id/unitary-authority/warrington ,FWB,Care Purchase Central Team,54050,Supporting People - External,441250,12-May-17,1900226816,"3,553.00",Independent Living Alliance,100726
WARRINGTON BOROUGH COUNCIL,http://opendatacommunities.org/id/unitary-authority/warrington ,FWB,Care Purchase South Team,54070,Supporting People - External,441250,12-May-17,1900226816,888,Independent Living Alliance,100726
WARRINGTON BOROUGH COUNCIL,http://opendatacommunities.org/id/unitary-authority/warrington ,FWB,Care Purchase South Team,54070,CP-Domicil.External,440950,12-May-17,1900226813,"2,227.00",Independent Living Alliance,100726
WARRINGTON BOROUGH COUNCIL,http://opendatacommunities.org/id/unitary-authority/warrington ,FWB,Care Purchase Central Team,54050,CP-Domicil.External,440950,12-May-17,1900226806,"12,037.00",Independent Living Alliance,100726
WARRINGTON BOROUGH COUNCIL,http://opendatacommunities.org/id/unitary-authority/warrington ,FWB,Care Purchase South Team,54070,CP-Domicil.External,440950,12-May-17,1900226806,"7,807.00",Independent Living Alliance,100726
WARRINGTON BOROUGH COUNCIL,http://opendatacommunities.org/id/unitary-authority/warrington ,FWB,NCSL,32215,Consult.& Prof. Serv,440000,28-Apr-17,1900226208,"8,000.00",ITS Training UK Ltd,115704
WARRINGTON BOROUGH COUNCIL,http://opendatacommunities.org/id/unitary-authority/warrington ,FWB,Care Purchase West Team,54080,CP-LongStayExternal,441150,08-May-17,1900226469,"1,777.00",James Nugent Court,115155
WARRINGTON BOROUGH COUNCIL,http://opendatacommunities.org/id/unitary-authority/warrington ,FWB,Residential Placements,30102,CP-LongStayExternal,441150,13-Apr-17,1900225002,"2,714.00",KALEIDOSCOPE ASSESSMENT SERVICES,114734
WARRINGTON BOROUGH COUNCIL,http://opendatacommunities.org/id/unitary-authority/warrington ,FWB,Care Purchase Budget,54490,CP ExternalOther Exp,440800,17-May-17,1900227101,"3,878.00",Keate House Residential Home,104849
WARRINGTON BOROUGH COUNCIL,http://opendatacommunities.org/id/unitary-authority/warrington ,FWB,Care Purchase Budget,54490,CP ExternalOther Exp,440800,22-May-17,1900227324,"24,000.00",Keate House Residential Home,104849
WARRINGTON BOROUGH COUNCIL,http://opendatacommunities.org/id/unitary-authority/warrington ,RSC,Coroners Service,11100,Consult.& Prof. Serv,440000,15-May-17,1900226864,"2,495.00",Key Forensic Services Limited,114600
WARRINGTON BOROUGH COUNCIL,http://opendatacommunities.org/id/unitary-authority/warrington ,RSC,Professional Development Centre,21000,Equipment Purchase & Contract,400000,28-Apr-17,1900226191,656,Kingdom Security Ltd,101324
WARRINGTON BOROUGH COUNCIL,http://opendatacommunities.org/id/unitary-authority/warrington ,EE0,Planning Policy,43440,Consult.& Prof. Serv,440000,28-Apr-17,1900226179,"1,250.00",Kings Chambers,101921
WARRINGTON BOROUGH COUNCIL,http://opendatacommunities.org/id/unitary-authority/warrington ,EE0,Property Acquisition,40021,Consult.& Prof. Serv,440000,11-May-17,1900226740,"55,000.00",Knight Frank Llp,104426
WARRINGTON BOROUGH COUNCIL,http://opendatacommunities.org/id/unitary-authority/warrington ,FWB,DSG Inter Authority Recoupment,32009,Recoupment Charges,490700,19-May-17,1900227160,"1,500.00",Lancashire County Council,410062
WARRINGTON BOROUGH COUNCIL,http://opendatacommunities.org/id/unitary-authority/warrington ,EE0,The Base,43850,Gen. Personal Needs,490850,17-May-17,1900227002,"9,901.00",Langtree Property Partners Ltd,114859
WARRINGTON BOROUGH COUNCIL,http://opendatacommunities.org/id/unitary-authority/warrington ,FWB,Care Purchase Central Team,54050,CP-Nursing Care-External,441200,23-May-17,1900227395,"2,878.00",Leonard Cheshire Disability,100370
WARRINGTON BOROUGH COUNCIL,http://opendatacommunities.org/id/unitary-authority/warrington ,RSC,Coroners Service,11100,Consult.& Prof. Serv,440000,15-May-17,1900226865,"1,706.00",LGC Ltd,107222
WARRINGTON BOROUGH COUNCIL,http://opendatacommunities.org/id/unitary-authority/warrington ,FWB,Care Purchase West Team,54080,CP-LongStayExternal,441150,08-May-17,1900226512,"1,482.00",Lifeways Inclusive Lifestyles Ltd,101840
WARRINGTON BOROUGH COUNCIL,http://opendatacommunities.org/id/unitary-authority/warrington ,FWB,Care Purchase West Team,54080,CP-LongStayExternal,441150,08-May-17,1900226515,"12,744.00",Lifeways Inclusive Lifestyles Ltd,101840
WARRINGTON BOROUGH COUNCIL,http://opendatacommunities.org/id/unitary-authority/warrington ,FWB,Care Purchase South Team,54070,CP-Domicil.External,440950,03-May-17,1900226315,"2,850.00",Lifeways SIL,115859
WARRINGTON BOROUGH COUNCIL,http://opendatacommunities.org/id/unitary-authority/warrington ,FWB,Care Purchase Central Team,54050,CP-Domicil.External,440950,28-Apr-17,1900226232,"3,800.00",Lifeways SIL,115859
WARRINGTON BOROUGH COUNCIL,http://opendatacommunities.org/id/unitary-authority/warrington ,FWB,Care Purchase South Team,54070,CP-Domicil.External,440950,03-May-17,1900226313,"3,800.00",Lifeways SIL,115859
WARRINGTON BOROUGH COUNCIL,http://opendatacommunities.org/id/unitary-authority/warrington ,FWB,Care Purchase Central Team,54050,CP-Domicil.External,440950,03-May-17,1900226314,"1,900.00",Lifeways SIL,115859
WARRINGTON BOROUGH COUNCIL,http://opendatacommunities.org/id/unitary-authority/warrington ,FWB,Care Purchase Central Team,54050,CP-Domicil.External,440950,02-May-17,1900226251,"3,800.00",Lifeways SIL,115859
WARRINGTON BOROUGH COUNCIL,http://opendatacommunities.org/id/unitary-authority/warrington ,FWB,Care Purchase Central Team,54050,CP-Domicil.External,440950,28-Apr-17,1900226231,"3,800.00",Lifeways SIL,115859
WARRINGTON BOROUGH COUNCIL,http://opendatacommunities.org/id/unitary-authority/warrington ,FWB,Care Purchase Central Team,54050,CP-Domicil.External,440950,02-May-17,1900226248,"3,800.00",Lifeways SIL,115859
WARRINGTON BOROUGH COUNCIL,http://opendatacommunities.org/id/unitary-authority/warrington ,FWB,Care Purchase Central Team,54050,CP-Domicil.External,440950,02-May-17,1900226245,950,Lifeways SIL,115859
WARRINGTON BOROUGH COUNCIL,http://opendatacommunities.org/id/unitary-authority/warrington ,FWB,Care Purchase Central Team,54050,CP-Domicil.External,440950,02-May-17,1900226249,"3,800.00",Lifeways SIL,115859
WARRINGTON BOROUGH COUNCIL,http://opendatacommunities.org/id/unitary-authority/warrington ,FWB,Care Purchase Central Team,54050,CP-Domicil.External,440950,02-May-17,1900226243,"3,800.00",Lifeways SIL,115859
WARRINGTON BOROUGH COUNCIL,http://opendatacommunities.org/id/unitary-authority/warrington ,FWB,Care Purchase Central Team,54050,CP-Domicil.External,440950,02-May-17,1900226239,"3,800.00",Lifeways SIL,115859
WARRINGTON BOROUGH COUNCIL,http://opendatacommunities.org/id/unitary-authority/warrington ,FWB,Care Purchase Central Team,54050,CP-Domicil.External,440950,02-May-17,1900226238,"3,800.00",Lifeways SIL,115859
WARRINGTON BOROUGH COUNCIL,http://opendatacommunities.org/id/unitary-authority/warrington ,FWB,Care Purchase Central Team,54050,CP-Domicil.External,440950,02-May-17,1900226240,"3,800.00",Lifeways SIL,115859
WARRINGTON BOROUGH COUNCIL,http://opendatacommunities.org/id/unitary-authority/warrington ,FWB,Care Purchase Central Team,54050,CP-Domicil.External,440950,02-May-17,1900226241,"3,800.00",Lifeways SIL,115859
WARRINGTON BOROUGH COUNCIL,http://opendatacommunities.org/id/unitary-authority/warrington ,FWB,Care Purchase Central Team,54050,CP-Domicil.External,440950,02-May-17,1900226242,"3,800.00",Lifeways SIL,115859
WARRINGTON BOROUGH COUNCIL,http://opendatacommunities.org/id/unitary-authority/warrington ,FWB,Care Purchase Central Team,54050,CP-Domicil.External,440950,02-May-17,1900226252,"3,800.00",Lifeways SIL,115859
WARRINGTON BOROUGH COUNCIL,http://opendatacommunities.org/id/unitary-authority/warrington ,FWB,Care Purchase Central Team,54050,CP-Domicil.External,440950,02-May-17,1900226250,"3,800.00",Lifeways SIL,115859
WARRINGTON BOROUGH COUNCIL,http://opendatacommunities.org/id/unitary-authority/warrington ,FWB,Care Purchase East Team,54060,CP-Domicil.External,440950,15-May-17,1900226847,"3,800.00",Lifeways SIL,115859
WARRINGTON BOROUGH COUNCIL,http://opendatacommunities.org/id/unitary-authority/warrington ,FWB,Care Purchase South Team,54070,CP-Domicil.External,440950,15-May-17,1900226845,"3,800.00",Lifeways SIL,115859
WARRINGTON BOROUGH COUNCIL,http://opendatacommunities.org/id/unitary-authority/warrington ,FWB,Care Purchase Central Team,54050,CP-Domicil.External,440950,15-May-17,1900226844,"3,800.00",Lifeways SIL,115859
WARRINGTON BOROUGH COUNCIL,http://opendatacommunities.org/id/unitary-authority/warrington ,FWB,Care Purchase Central Team,54050,CP-Domicil.External,440950,15-May-17,1900226846,"3,800.00",Lifeways SIL,115859
WARRINGTON BOROUGH COUNCIL,http://opendatacommunities.org/id/unitary-authority/warrington ,FWB,Care Purchase Central Team,54050,CP-Domicil.External,440950,15-May-17,1900226843,"3,800.00",Lifeways SIL,115859
WARRINGTON BOROUGH COUNCIL,http://opendatacommunities.org/id/unitary-authority/warrington ,RSC,Postal & Courier Services,52130,Postages,450000,10-Apr-17,1900224759,"2,250.00",Logistex Express Ltd,100946
WARRINGTON BOROUGH COUNCIL,http://opendatacommunities.org/id/unitary-authority/warrington ,RSC,Postal & Courier Services,52130,Postages,450000,15-May-17,1900226895,"1,000.00",Logistex Express Ltd,100946
WARRINGTON BOROUGH COUNCIL,http://opendatacommunities.org/id/unitary-authority/warrington ,FWB,Care Purchase Budget,54490,CP ExternalOther Exp,440800,17-May-17,1900227102,"14,771.00",London & Manchester Healthcare Ltd,109185
WARRINGTON BOROUGH COUNCIL,http://opendatacommunities.org/id/unitary-authority/warrington ,FWB,Care Purchase Budget,54490,CP ExternalOther Exp,440800,24-May-17,1900227474,"8,843.00",London & Manchester Healthcare Ltd,109185
WARRINGTON BOROUGH COUNCIL,http://opendatacommunities.org/id/unitary-authority/warrington ,FWB,Care Purchase Budget,54490,CP ExternalOther Exp,440800,23-May-17,1900227353,"88,000.00",London & Manchester Healthcare Ltd,109185
WARRINGTON BOROUGH COUNCIL,http://opendatacommunities.org/id/unitary-authority/warrington ,FWB,Care Purchase West Team,54080,CP-Nursing Care-External,441200,12-May-17,1900226804,610,Lymewood Court,111953
WARRINGTON BOROUGH COUNCIL,http://opendatacommunities.org/id/unitary-authority/warrington ,FWB,Care Purchase West Team,54080,CP-Nursing Care-External,441200,12-May-17,1900226800,"1,960.00",Lymewood Court,111953
WARRINGTON BOROUGH COUNCIL,http://opendatacommunities.org/id/unitary-authority/warrington ,FWB,Care Purchase West Team,54080,CP-Nursing Care-External,441200,15-May-17,1900226838,"1,960.00",Lymewood Court,111953
WARRINGTON BOROUGH COUNCIL,http://opendatacommunities.org/id/unitary-authority/warrington ,FWB,Care Purchase West Team,54080,CP-Nursing Care-External,441200,15-May-17,1900226830,"1,960.00",Lymewood Court,111953
WARRINGTON BOROUGH COUNCIL,http://opendatacommunities.org/id/unitary-authority/warrington ,FWB,Care Purchase West Team,54080,CP-Nursing Care-External,441200,15-May-17,1900226831,"1,960.00",Lymewood Court,111953
WARRINGTON BOROUGH COUNCIL,http://opendatacommunities.org/id/unitary-authority/warrington ,FWB,Care Purchase West Team,54080,CP-Nursing Care-External,441200,12-May-17,1900226801,"1,960.00",Lymewood Court,111953
WARRINGTON BOROUGH COUNCIL,http://opendatacommunities.org/id/unitary-authority/warrington ,FWB,Care Purchase West Team,54080,CP-Nursing Care-External,441200,15-May-17,1900226832,"1,960.00",Lymewood Court,111953
WARRINGTON BOROUGH COUNCIL,http://opendatacommunities.org/id/unitary-authority/warrington ,FWB,Care Purchase West Team,54080,CP-Nursing Care-External,441200,12-May-17,1900226802,"1,960.00",Lymewood Court,111953
WARRINGTON BOROUGH COUNCIL,http://opendatacommunities.org/id/unitary-authority/warrington ,FWB,Care Purchase West Team,54080,CP-Nursing Care-External,441200,15-May-17,1900226833,"1,960.00",Lymewood Court,111953
WARRINGTON BOROUGH COUNCIL,http://opendatacommunities.org/id/unitary-authority/warrington ,FWB,Care Purchase West Team,54080,CP-Nursing Care-External,441200,15-May-17,1900226834,"1,960.00",Lymewood Court,111953
WARRINGTON BOROUGH COUNCIL,http://opendatacommunities.org/id/unitary-authority/warrington ,FWB,Care Purchase West Team,54080,CP-Nursing Care-External,441200,15-May-17,1900226835,"1,960.00",Lymewood Court,111953
WARRINGTON BOROUGH COUNCIL,http://opendatacommunities.org/id/unitary-authority/warrington ,FWB,Care Purchase West Team,54080,CP-Nursing Care-External,441200,15-May-17,1900226829,"1,960.00",Lymewood Court,111953
WARRINGTON BOROUGH COUNCIL,http://opendatacommunities.org/id/unitary-authority/warrington ,FWB,Care Purchase West Team,54080,CP-Nursing Care-External,441200,15-May-17,1900226836,"1,960.00",Lymewood Court,111953
WARRINGTON BOROUGH COUNCIL,http://opendatacommunities.org/id/unitary-authority/warrington ,EE0,Estates & Valuation,43520,Agency Supply - GF,180000,25-May-17,1900228015,"1,606.00",Macdonald And Company,100697
WARRINGTON BOROUGH COUNCIL,http://opendatacommunities.org/id/unitary-authority/warrington ,EE0,Estates & Valuation,43520,Agency Supply - GF,180000,15-May-17,1900226874,"1,579.00",Macdonald And Company,100697
WARRINGTON BOROUGH COUNCIL,http://opendatacommunities.org/id/unitary-authority/warrington ,EE0,Estates & Valuation,43520,Agency Supply - GF,180000,15-May-17,1900226868,"1,250.00",Macdonald And Company,100697
WARRINGTON BOROUGH COUNCIL,http://opendatacommunities.org/id/unitary-authority/warrington ,EE0,Estates & Valuation,43520,Agency Supply - GF,180000,15-May-17,1900226869,"1,287.00",Macdonald And Company,100697
WARRINGTON BOROUGH COUNCIL,http://opendatacommunities.org/id/unitary-authority/warrington ,EE0,Estates & Valuation,43520,Agency Supply - GF,180000,25-May-17,1900228016,"1,296.00",Macdonald And Company,100697
WARRINGTON BOROUGH COUNCIL,http://opendatacommunities.org/id/unitary-authority/warrington ,FWB,Child Disability,32212,CP-Domicil.External,440950,11-May-17,1900226755,566,Macintyre Care,104907
WARRINGTON BOROUGH COUNCIL,http://opendatacommunities.org/id/unitary-authority/warrington ,FWB,Child Disability,32212,CP-Domicil.External,440950,12-May-17,1900226768,946,Macintyre Care,104907
WARRINGTON BOROUGH COUNCIL,http://opendatacommunities.org/id/unitary-authority/warrington ,FWB,Care Purchase Central Team,54050,CP-Domicil.External,440950,22-May-17,1900227270,"21,476.00",Macintyre Care,104907
WARRINGTON BOROUGH COUNCIL,http://opendatacommunities.org/id/unitary-authority/warrington ,FWB,Care Purchase East Team,54060,CP-Domicil.External,440950,22-May-17,1900227274,"5,360.00",Macintyre Care,104907
WARRINGTON BOROUGH COUNCIL,http://opendatacommunities.org/id/unitary-authority/warrington ,FWB,Care Purchase Central Team,54050,CP-Domicil.External,440950,22-May-17,1900227274,"1,005.00",Macintyre Care,104907
WARRINGTON BOROUGH COUNCIL,http://opendatacommunities.org/id/unitary-authority/warrington ,FWB,Care Purchase East Team,54060,Supporting People - External,441250,22-May-17,1900227297,"1,718.00",Macintyre Care,104907
WARRINGTON BOROUGH COUNCIL,http://opendatacommunities.org/id/unitary-authority/warrington ,FWB,Care Purchase East Team,54060,Supporting People - External,441250,22-May-17,1900227317,"1,718.00",Macintyre Care,104907
WARRINGTON BOROUGH COUNCIL,http://opendatacommunities.org/id/unitary-authority/warrington ,FWB,Care Purchase West Team,54080,CP-Day Care-External,441100,22-May-17,1900227318,"4,145.00",Macintyre Care,104907
WARRINGTON BOROUGH COUNCIL,http://opendatacommunities.org/id/unitary-authority/warrington ,FWB,Care Purchase East Team,54060,CP-Day Care-External,441100,22-May-17,1900227318,"3,675.00",Macintyre Care,104907
WARRINGTON BOROUGH COUNCIL,http://opendatacommunities.org/id/unitary-authority/warrington ,FWB,Care Purchase Central Team,54050,CP-Day Care-External,441100,22-May-17,1900227318,"2,468.00",Macintyre Care,104907
WARRINGTON BOROUGH COUNCIL,http://opendatacommunities.org/id/unitary-authority/warrington ,FWB,Care Purchase South Team,54070,CP-Day Care-External,441100,22-May-17,1900227318,"2,352.00",Macintyre Care,104907
WARRINGTON BOROUGH COUNCIL,http://opendatacommunities.org/id/unitary-authority/warrington ,FWB,Care Purchase Budget,54490,Voids,515150,22-May-17,1900227318,"3,782.00",Macintyre Care,104907
WARRINGTON BOROUGH COUNCIL,http://opendatacommunities.org/id/unitary-authority/warrington ,EE0,Hatters Row,43710,Rent Of Premises,220000,01-Mar-16,1900194322,"23,844.00",Manchester & Provincial Car Pks Ltd,104918
WARRINGTON BOROUGH COUNCIL,http://opendatacommunities.org/id/unitary-authority/warrington ,HOL,Single Billing Holding Account,91130,Non BMP General Repairs,200050,15-May-17,1900226871,"2,673.00",Manchester Working Limited,105646
WARRINGTON BOROUGH COUNCIL,http://opendatacommunities.org/id/unitary-authority/warrington ,HOL,Single Billing Holding Account,91130,Non BMP General Repairs,200050,15-May-17,1900226872,855,Manchester Working Limited,105646
WARRINGTON BOROUGH COUNCIL,http://opendatacommunities.org/id/unitary-authority/warrington ,HOL,Single Billing Holding Account,91130,Non BMP General Repairs,200050,15-May-17,1900226873,"3,652.00",Manchester Working Limited,105646
WARRINGTON BOROUGH COUNCIL,http://opendatacommunities.org/id/unitary-authority/warrington ,HOL,Single Billing Holding Account,91130,Non BMP General Repairs,200050,09-May-17,1900226571,"1,406.00",Manchester Working Limited,105646
WARRINGTON BOROUGH COUNCIL,http://opendatacommunities.org/id/unitary-authority/warrington ,HOL,Single Billing Holding Account,91130,Non BMP General Repairs,200050,08-May-17,1900226562,"2,804.00",Manchester Working Limited,105646
WARRINGTON BOROUGH COUNCIL,http://opendatacommunities.org/id/unitary-authority/warrington ,EE0,Primary Schools BMP External Income,45435,Specific Work,200200,12-May-17,1900226790,632,Manchester Working Limited,105646
WARRINGTON BOROUGH COUNCIL,http://opendatacommunities.org/id/unitary-authority/warrington ,FWB,Care Purchase South Team,54070,CP-Domicil.External,440950,28-Apr-17,1900226173,"21,167.00",Mayfield Home Care Agency,104928
WARRINGTON BOROUGH COUNCIL,http://opendatacommunities.org/id/unitary-authority/warrington ,FWB,Care Purchase Central Team,54050,CP-Domicil.External,440950,28-Apr-17,1900226173,"19,544.00",Mayfield Home Care Agency,104928
WARRINGTON BOROUGH COUNCIL,http://opendatacommunities.org/id/unitary-authority/warrington ,FWB,Care Purchase East Team,54060,CP-Domicil.External,440950,28-Apr-17,1900226173,"10,865.00",Mayfield Home Care Agency,104928
WARRINGTON BOROUGH COUNCIL,http://opendatacommunities.org/id/unitary-authority/warrington ,FWB,Care Purchase West Team,54080,CP-Domicil.External,440950,28-Apr-17,1900226173,"9,528.00",Mayfield Home Care Agency,104928
WARRINGTON BOROUGH COUNCIL,http://opendatacommunities.org/id/unitary-authority/warrington ,FWB,Care Purchase East Team,54060,Supporting People - External,441250,28-Apr-17,1900226173,574,Mayfield Home Care Agency,104928
WARRINGTON BOROUGH COUNCIL,http://opendatacommunities.org/id/unitary-authority/warrington ,FWB,Care Purchase Budget,54490,CP - Cont Care - External,441350,28-Apr-17,1900226173,"2,781.00",Mayfield Home Care Agency,104928
WARRINGTON BOROUGH COUNCIL,http://opendatacommunities.org/id/unitary-authority/warrington ,FWB,Care Purchase South Team,54070,CP-Domicil.External,440950,17-May-17,1900226999,"22,855.00",Mayfield Home Care Agency,104928
WARRINGTON BOROUGH COUNCIL,http://opendatacommunities.org/id/unitary-authority/warrington ,FWB,Care Purchase Central Team,54050,CP-Domicil.External,440950,17-May-17,1900226999,"16,779.00",Mayfield Home Care Agency,104928
WARRINGTON BOROUGH COUNCIL,http://opendatacommunities.org/id/unitary-authority/warrington ,FWB,Care Purchase East Team,54060,CP-Domicil.External,440950,17-May-17,1900226999,"10,811.00",Mayfield Home Care Agency,104928
WARRINGTON BOROUGH COUNCIL,http://opendatacommunities.org/id/unitary-authority/warrington ,FWB,Care Purchase West Team,54080,CP-Domicil.External,440950,17-May-17,1900226999,"10,205.00",Mayfield Home Care Agency,104928
WARRINGTON BOROUGH COUNCIL,http://opendatacommunities.org/id/unitary-authority/warrington ,FWB,Care Purchase East Team,54060,Supporting People - External,441250,17-May-17,1900226999,614,Mayfield Home Care Agency,104928
WARRINGTON BOROUGH COUNCIL,http://opendatacommunities.org/id/unitary-authority/warrington ,FWB,Care Purchase Budget,54490,CP - Cont Care - External,441350,17-May-17,1900226999,"2,781.00",Mayfield Home Care Agency,104928
WARRINGTON BOROUGH COUNCIL,http://opendatacommunities.org/id/unitary-authority/warrington ,FWB,Care Purchase Central Team,54050,CP-LongStayExternal,441150,08-May-17,1900226511,"5,602.00",Mental Health Care UK Ltd,114128
WARRINGTON BOROUGH COUNCIL,http://opendatacommunities.org/id/unitary-authority/warrington ,FWB,Care Purchase South Team,54070,CP-LongStayExternal,441150,08-May-17,1900226508,"12,291.00",Mental Health Care UK Ltd,114128
WARRINGTON BOROUGH COUNCIL,http://opendatacommunities.org/id/unitary-authority/warrington ,FWB,Care Purchase West Team,54080,CP-LongStayExternal,441150,08-May-17,1900226505,"10,907.00",Mental Health Care UK Ltd,114128
WARRINGTON BOROUGH COUNCIL,http://opendatacommunities.org/id/unitary-authority/warrington ,CYP,Childrens Other,81004,Furniture & Fittings,400150,13-Apr-17,1900224997,"1,000.00",Merseyside Paper Supplies (MPS),115215
WARRINGTON BOROUGH COUNCIL,http://opendatacommunities.org/id/unitary-authority/warrington ,RSC,Coroners Service,11100,Hire Of Mortuaries,220200,21-Apr-17,1900225213,"2,662.00",Mid Cheshire Hospitals,440149
WARRINGTON BOROUGH COUNCIL,http://opendatacommunities.org/id/unitary-authority/warrington ,FWB,Care Purchase Budget,54490,CP ExternalOther Exp,440800,08-May-17,1900226470,"11,529.00",Minster Care Management Ltd,105179
WARRINGTON BOROUGH COUNCIL,http://opendatacommunities.org/id/unitary-authority/warrington ,FWB,Care Purchase Budget,54490,CP ExternalOther Exp,440800,23-May-17,1900227364,"50,000.00",Minster Care Management Ltd,105179
WARRINGTON BOROUGH COUNCIL,http://opendatacommunities.org/id/unitary-authority/warrington ,FWB,Child Disability,32212,Sect 17 (Child Act),490950,19-Apr-17,1900225123,"2,618.00",M-Power Activity Services Ltd,102186
WARRINGTON BOROUGH COUNCIL,http://opendatacommunities.org/id/unitary-authority/warrington ,FWB,Supporting People Grant Payments,53260,Risk of Homelessness and Floating Suppor,535100,10-May-17,1900226701,"1,240.00",Muir Housing Association Ltd,100053
WARRINGTON BOROUGH COUNCIL,http://opendatacommunities.org/id/unitary-authority/warrington ,FWB,Supporting People Grant Payments,53260,Risk of Homelessness and Floating Suppor,535100,23-May-17,1900227420,"1,041.00",Muir Housing Association Ltd,100053
WARRINGTON BOROUGH COUNCIL,http://opendatacommunities.org/id/unitary-authority/warrington ,RSC,Postal & Courier Services,52130,Postages,450000,26-May-17,1900228095,"30,000.00",Neopost Finance Ltd Supplies/Top up,100694
WARRINGTON BOROUGH COUNCIL,http://opendatacommunities.org/id/unitary-authority/warrington ,FWB,Care Purchase South Team,54070,CP-LongStayExternal,441150,16-May-17,1900226944,"2,000.00",Nethermoor House Ltd,114660
WARRINGTON BOROUGH COUNCIL,http://opendatacommunities.org/id/unitary-authority/warrington ,FWB,DSG Support for SEN,32013,Independent School Fees,490200,22-May-17,1900227165,600,Network Ventures Ltd,110554
WARRINGTON BOROUGH COUNCIL,http://opendatacommunities.org/id/unitary-authority/warrington ,FWB,Care Purchase Central Team,54050,CP-Nursing Care-External,441200,21-Apr-17,1900225189,"3,400.00",New Care West Bridgford,115614
WARRINGTON BOROUGH COUNCIL,http://opendatacommunities.org/id/unitary-authority/warrington ,FWB,Care Purchase Central Team,54050,CP-Domicil.External,440950,08-May-17,1900226471,"5,400.00",Next Stage A Way Forward Ltd,101217
WARRINGTON BOROUGH COUNCIL,http://opendatacommunities.org/id/unitary-authority/warrington ,FWB,Care Purchase West Team,54080,CP-Domicil.External,440950,08-May-17,1900226471,"2,400.00",Next Stage A Way Forward Ltd,101217
WARRINGTON BOROUGH COUNCIL,http://opendatacommunities.org/id/unitary-authority/warrington ,FWB,Care Purchase Central Team,54050,CP-Domicil.External,440950,09-May-17,1900226615,"2,400.00",Next Stage A Way Forward Ltd,101217
WARRINGTON BOROUGH COUNCIL,http://opendatacommunities.org/id/unitary-authority/warrington ,FWB,Care Purchase Central Team,54050,CP-Domicil.External,440950,22-May-17,1900227295,"21,385.00",Next Stage A Way Forward Ltd,101217
WARRINGTON BOROUGH COUNCIL,http://opendatacommunities.org/id/unitary-authority/warrington ,FWB,Care Purchase West Team,54080,CP-Domicil.External,440950,22-May-17,1900227295,"13,954.00",Next Stage A Way Forward Ltd,101217
WARRINGTON BOROUGH COUNCIL,http://opendatacommunities.org/id/unitary-authority/warrington ,FWB,Care Purchase East Team,54060,CP-Domicil.External,440950,22-May-17,1900227295,"5,829.00",Next Stage A Way Forward Ltd,101217
WARRINGTON BOROUGH COUNCIL,http://opendatacommunities.org/id/unitary-authority/warrington ,FWB,Care Purchase South Team,54070,CP-Domicil.External,440950,22-May-17,1900227295,"1,221.00",Next Stage A Way Forward Ltd,101217
WARRINGTON BOROUGH COUNCIL,http://opendatacommunities.org/id/unitary-authority/warrington ,FWB,Care Purchase Budget,54490,CP - Cont Care - External,441350,22-May-17,1900227295,"1,437.00",Next Stage A Way Forward Ltd,101217
WARRINGTON BOROUGH COUNCIL,http://opendatacommunities.org/id/unitary-authority/warrington ,COR,Car Leasing Scheme - Salary Sacrifice,52126,Car Leasing Charges,350000,17-May-17,1900226998,"2,958.00",NHS Foundation Trust,110359
WARRINGTON BOROUGH COUNCIL,http://opendatacommunities.org/id/unitary-authority/warrington ,COR,Car Leasing Scheme - Salary Sacrifice,52126,Car Leasing Charges,350000,17-May-17,1900226998,795,NHS Foundation Trust,110359
WARRINGTON BOROUGH COUNCIL,http://opendatacommunities.org/id/unitary-authority/warrington ,COR,Car Leasing Scheme - Salary Sacrifice,52126,Car Leasing Charges,350000,16-May-17,1900226981,"4,926.00",NHS Foundation Trust,110359
WARRINGTON BOROUGH COUNCIL,http://opendatacommunities.org/id/unitary-authority/warrington ,COR,Car Leasing Scheme - Salary Sacrifice,52126,Car Leasing Charges,350000,16-May-17,1900226981,820,NHS Foundation Trust,110359
WARRINGTON BOROUGH COUNCIL,http://opendatacommunities.org/id/unitary-authority/warrington ,COR,Car Leasing Scheme - Salary Sacrifice,52126,Car Leasing Charges,350000,09-May-17,1900226632,"1,970.00",NHS Foundation Trust,110359
WARRINGTON BOROUGH COUNCIL,http://opendatacommunities.org/id/unitary-authority/warrington ,COR,Car Leasing Scheme - Salary Sacrifice,52126,Car Leasing Charges,350000,08-May-17,1900226502,"2,409.00",NHS Foundation Trust,110359
WARRINGTON BOROUGH COUNCIL,http://opendatacommunities.org/id/unitary-authority/warrington ,COR,Car Leasing Scheme - Salary Sacrifice,52126,Car Leasing Charges,350000,16-May-17,1900226982,"3,028.00",NHS Foundation Trust,110359
WARRINGTON BOROUGH COUNCIL,http://opendatacommunities.org/id/unitary-authority/warrington ,COR,Car Leasing Scheme - Salary Sacrifice,52126,Car Leasing Charges,350000,16-May-17,1900226982,820,NHS Foundation Trust,110359
WARRINGTON BOROUGH COUNCIL,http://opendatacommunities.org/id/unitary-authority/warrington ,COR,Car Leasing Scheme - Salary Sacrifice,52126,Car Leasing Charges,350000,09-May-17,1900226640,"2,362.00",NHS Foundation Trust,110359
WARRINGTON BOROUGH COUNCIL,http://opendatacommunities.org/id/unitary-authority/warrington ,COR,Car Leasing Scheme - Salary Sacrifice,52126,Car Leasing Charges,350000,09-May-17,1900226640,739,NHS Foundation Trust,110359
WARRINGTON BOROUGH COUNCIL,http://opendatacommunities.org/id/unitary-authority/warrington ,COR,Car Leasing Scheme - Salary Sacrifice,52126,Car Leasing Charges,350000,16-May-17,1900226989,"4,542.00",NHS Foundation Trust,110359
WARRINGTON BOROUGH COUNCIL,http://opendatacommunities.org/id/unitary-authority/warrington ,COR,Car Leasing Scheme - Salary Sacrifice,52126,Car Leasing Charges,350000,16-May-17,1900226989,820,NHS Foundation Trust,110359
WARRINGTON BOROUGH COUNCIL,http://opendatacommunities.org/id/unitary-authority/warrington ,COR,Car Leasing Scheme - Salary Sacrifice,52126,Car Leasing Charges,350000,16-May-17,1900226985,"5,051.00",NHS Foundation Trust,110359
WARRINGTON BOROUGH COUNCIL,http://opendatacommunities.org/id/unitary-authority/warrington ,COR,Car Leasing Scheme - Salary Sacrifice,52126,Car Leasing Charges,350000,16-May-17,1900226985,739,NHS Foundation Trust,110359
WARRINGTON BOROUGH COUNCIL,http://opendatacommunities.org/id/unitary-authority/warrington ,COR,Car Leasing Scheme - Salary Sacrifice,52126,Car Leasing Charges,350000,16-May-17,1900226985,505,NHS Foundation Trust,110359
WARRINGTON BOROUGH COUNCIL,http://opendatacommunities.org/id/unitary-authority/warrington ,COR,Car Leasing Scheme - Salary Sacrifice,52126,Car Leasing Charges,350000,16-May-17,1900226980,"5,087.00",NHS Foundation Trust,110359
WARRINGTON BOROUGH COUNCIL,http://opendatacommunities.org/id/unitary-authority/warrington ,COR,Car Leasing Scheme - Salary Sacrifice,52126,Car Leasing Charges,350000,16-May-17,1900226980,795,NHS Foundation Trust,110359
WARRINGTON BOROUGH COUNCIL,http://opendatacommunities.org/id/unitary-authority/warrington ,COR,Car Leasing Scheme - Salary Sacrifice,52126,Car Leasing Charges,350000,16-May-17,1900226980,509,NHS Foundation Trust,110359
WARRINGTON BOROUGH COUNCIL,http://opendatacommunities.org/id/unitary-authority/warrington ,COR,Car Leasing Scheme - Salary Sacrifice,52126,Car Leasing Charges,350000,17-May-17,1900227000,"2,095.00",NHS Foundation Trust,110359
WARRINGTON BOROUGH COUNCIL,http://opendatacommunities.org/id/unitary-authority/warrington ,COR,Car Leasing Scheme - Salary Sacrifice,52126,Car Leasing Charges,350000,17-May-17,1900227000,739,NHS Foundation Trust,110359
WARRINGTON BOROUGH COUNCIL,http://opendatacommunities.org/id/unitary-authority/warrington ,COR,Car Leasing Scheme - Salary Sacrifice,52126,Car Leasing Charges,350000,16-May-17,1900226984,"4,894.00",NHS Foundation Trust,110359
WARRINGTON BOROUGH COUNCIL,http://opendatacommunities.org/id/unitary-authority/warrington ,COR,Car Leasing Scheme - Salary Sacrifice,52126,Car Leasing Charges,350000,16-May-17,1900226984,795,NHS Foundation Trust,110359
WARRINGTON BOROUGH COUNCIL,http://opendatacommunities.org/id/unitary-authority/warrington ,COR,Car Leasing Scheme - Salary Sacrifice,52126,Car Leasing Charges,350000,09-May-17,1900226633,"4,136.00",NHS Foundation Trust,110359
WARRINGTON BOROUGH COUNCIL,http://opendatacommunities.org/id/unitary-authority/warrington ,COR,Car Leasing Scheme - Salary Sacrifice,52126,Car Leasing Charges,350000,09-May-17,1900226633,739,NHS Foundation Trust,110359
WARRINGTON BOROUGH COUNCIL,http://opendatacommunities.org/id/unitary-authority/warrington ,COR,Car Leasing Scheme - Salary Sacrifice,52126,Car Leasing Charges,350000,08-May-17,1900226494,"3,703.00",NHS Foundation Trust,110359
WARRINGTON BOROUGH COUNCIL,http://opendatacommunities.org/id/unitary-authority/warrington ,COR,Car Leasing Scheme - Salary Sacrifice,52126,Car Leasing Charges,350000,08-May-17,1900226494,795,NHS Foundation Trust,110359
WARRINGTON BOROUGH COUNCIL,http://opendatacommunities.org/id/unitary-authority/warrington ,COR,Car Leasing Scheme - Salary Sacrifice,52126,Car Leasing Charges,350000,09-May-17,1900226634,"4,162.00",NHS Foundation Trust,110359
WARRINGTON BOROUGH COUNCIL,http://opendatacommunities.org/id/unitary-authority/warrington ,COR,Car Leasing Scheme - Salary Sacrifice,52126,Car Leasing Charges,350000,09-May-17,1900226634,739,NHS Foundation Trust,110359
WARRINGTON BOROUGH COUNCIL,http://opendatacommunities.org/id/unitary-authority/warrington ,COR,Car Leasing Scheme - Salary Sacrifice,52126,Car Leasing Charges,350000,09-May-17,1900226639,"3,991.00",NHS Foundation Trust,110359
WARRINGTON BOROUGH COUNCIL,http://opendatacommunities.org/id/unitary-authority/warrington ,COR,Car Leasing Scheme - Salary Sacrifice,52126,Car Leasing Charges,350000,09-May-17,1900226639,795,NHS Foundation Trust,110359
WARRINGTON BOROUGH COUNCIL,http://opendatacommunities.org/id/unitary-authority/warrington ,COR,Car Leasing Scheme - Salary Sacrifice,52126,Car Leasing Charges,350000,09-May-17,1900226635,"2,182.00",NHS Foundation Trust,110359
WARRINGTON BOROUGH COUNCIL,http://opendatacommunities.org/id/unitary-authority/warrington ,COR,Car Leasing Scheme - Salary Sacrifice,52126,Car Leasing Charges,350000,09-May-17,1900226635,739,NHS Foundation Trust,110359
WARRINGTON BOROUGH COUNCIL,http://opendatacommunities.org/id/unitary-authority/warrington ,COR,Car Leasing Scheme - Salary Sacrifice,52126,Car Leasing Charges,350000,17-May-17,1900227001,"2,395.00",NHS Foundation Trust,110359
WARRINGTON BOROUGH COUNCIL,http://opendatacommunities.org/id/unitary-authority/warrington ,COR,Car Leasing Scheme - Salary Sacrifice,52126,Car Leasing Charges,350000,17-May-17,1900227001,820,NHS Foundation Trust,110359
WARRINGTON BOROUGH COUNCIL,http://opendatacommunities.org/id/unitary-authority/warrington ,FWB,Carers Breaks,56600,BCF Contribution to Schemes,582750,11-May-17,1900226724,"160,445.00",NHS Warrington CCG,113053
WARRINGTON BOROUGH COUNCIL,http://opendatacommunities.org/id/unitary-authority/warrington ,FWB,Carers Breaks,56600,BCF Contribution to Schemes,582750,16-May-17,1900226962,"153,476.00",NHS Warrington CCG,113053
WARRINGTON BOROUGH COUNCIL,http://opendatacommunities.org/id/unitary-authority/warrington ,FWB,Care Purchase East Team,54060,CP-Domicil.External,440950,12-May-17,1900226812,"19,055.00",Nightingales Homecare Services Agen,104972
WARRINGTON BOROUGH COUNCIL,http://opendatacommunities.org/id/unitary-authority/warrington ,FWB,Care Purchase West Team,54080,CP-Domicil.External,440950,12-May-17,1900226812,"15,530.00",Nightingales Homecare Services Agen,104972
WARRINGTON BOROUGH COUNCIL,http://opendatacommunities.org/id/unitary-authority/warrington ,FWB,Care Purchase South Team,54070,CP-Domicil.External,440950,12-May-17,1900226812,"13,798.00",Nightingales Homecare Services Agen,104972
WARRINGTON BOROUGH COUNCIL,http://opendatacommunities.org/id/unitary-authority/warrington ,FWB,Care Purchase Central Team,54050,CP-Domicil.External,440950,12-May-17,1900226812,"7,386.00",Nightingales Homecare Services Agen,104972
WARRINGTON BOROUGH COUNCIL,http://opendatacommunities.org/id/unitary-authority/warrington ,FWB,DSG Independent School Fees,32011,Independent School Fees,490200,19-May-17,1900227159,"3,286.00",North Ayrshire Coucil,109075
WARRINGTON BOROUGH COUNCIL,http://opendatacommunities.org/id/unitary-authority/warrington ,FWB,Music Education Grant,32220,Consult.& Prof. Serv,440000,08-May-17,1900226561,"2,007.00",Northern Chamber Orchestra,103752
WARRINGTON BOROUGH COUNCIL,http://opendatacommunities.org/id/unitary-authority/warrington ,FWB,Halton Music Income,32218,Consult.& Prof. Serv,440000,11-May-17,1900226739,"1,204.00",Northern Chamber Orchestra,103752
WARRINGTON BOROUGH COUNCIL,http://opendatacommunities.org/id/unitary-authority/warrington ,FWB,Music Education Grant,32220,Consult.& Prof. Serv,440000,11-May-17,1900226739,803,Northern Chamber Orchestra,103752
WARRINGTON BOROUGH COUNCIL,http://opendatacommunities.org/id/unitary-authority/warrington ,CYP,Childrens Other,81004,ICT Comms - Equipment Purchase,450100,09-May-17,1900226601,"1,572.00",Novus Networks,114215
WARRINGTON BOROUGH COUNCIL,http://opendatacommunities.org/id/unitary-authority/warrington ,ENO,Housing Projects,82008,Disabled Persons Grant 1996,554000,16-May-17,1900226933,"16,208.00",Oakmead Building Services,115723
WARRINGTON BOROUGH COUNCIL,http://opendatacommunities.org/id/unitary-authority/warrington ,FWB,Neighbourhood Co-o East,51306,Payment of Grants,470050,26-May-17,1900228054,"1,000.00",Oakwood Community Association,112122
WARRINGTON BOROUGH COUNCIL,http://opendatacommunities.org/id/unitary-authority/warrington ,FWB,Neighbourhood Co-o East,51306,Payment of Grants,470050,26-May-17,1900228060,"1,000.00",Oakwood Community Association,112122
WARRINGTON BOROUGH COUNCIL,http://opendatacommunities.org/id/unitary-authority/warrington ,FWB,Care Purchase Budget,54490,CP ExternalOther Exp,440800,22-May-17,1900227310,"28,000.00",Old Rectory Private Nursing Home,104990
WARRINGTON BOROUGH COUNCIL,http://opendatacommunities.org/id/unitary-authority/warrington ,FWB,Care Purchase East Team,54060,CP-Nursing Care-External,441200,09-May-17,1900226616,"3,107.00",Olea Care Ltd (Fernlea),115034
WARRINGTON BOROUGH COUNCIL,http://opendatacommunities.org/id/unitary-authority/warrington ,FWB,Care Purchase South Team,54070,CP-Domicil.External,440950,08-May-17,1900226472,512,Olive Tree Domiciliary Services Ltd,114940
WARRINGTON BOROUGH COUNCIL,http://opendatacommunities.org/id/unitary-authority/warrington ,FWB,Care Purchase Budget,54490,CP ExternalOther Exp,440800,15-May-17,1900226837,"1,185.00",Orchard Care Homes Limited (Green P,114976
WARRINGTON BOROUGH COUNCIL,http://opendatacommunities.org/id/unitary-authority/warrington ,FWB,Care Purchase Budget,54490,CP ExternalOther Exp,440800,23-May-17,1900227370,"130,000.00",Orchard Care Homes Limited (Green P,114976
WARRINGTON BOROUGH COUNCIL,http://opendatacommunities.org/id/unitary-authority/warrington ,FWB,Care Purchase Budget,54490,CP ExternalOther Exp,440800,08-May-17,1900226482,"8,791.00",Orchard Care Homes Ltd (Three bridg,115239
WARRINGTON BOROUGH COUNCIL,http://opendatacommunities.org/id/unitary-authority/warrington ,FWB,Care Purchase Budget,54490,CP ExternalOther Exp,440800,22-May-17,1900227301,"18,238.00",Orchard Care Homes Ltd (Three bridg,115239
WARRINGTON BOROUGH COUNCIL,http://opendatacommunities.org/id/unitary-authority/warrington ,FWB,Care Purchase Budget,54490,CP ExternalOther Exp,440800,23-May-17,1900227348,"100,000.00",Orchard Care Homes Ltd (Three bridg,115239
WARRINGTON BOROUGH COUNCIL,http://opendatacommunities.org/id/unitary-authority/warrington ,FWB,Care Purchase Central Team,54050,CP-LongStayExternal,441150,08-May-17,1900226559,"1,996.00",Orchard Care Homes.Com2 LTD,115255
WARRINGTON BOROUGH COUNCIL,http://opendatacommunities.org/id/unitary-authority/warrington ,FWB,DAT Pooled Budget,53860,Drug Action,443600,17-May-17,1900227043,630,Orford Pharmacy,101867
WARRINGTON BOROUGH COUNCIL,http://opendatacommunities.org/id/unitary-authority/warrington ,FWB,Care Purchase West Team,54080,CP-Domicil.External,440950,23-May-17,1900227402,650,P S S,105048
WARRINGTON BOROUGH COUNCIL,http://opendatacommunities.org/id/unitary-authority/warrington ,FWB,Care Purchase West Team,54080,CP-LongStayExternal,441150,08-May-17,1900226468,"2,400.00",Peel Moat Harbour Healthcare,114680
WARRINGTON BOROUGH COUNCIL,http://opendatacommunities.org/id/unitary-authority/warrington ,FWB,Care Purchase West Team,54080,CP-Nursing Care-External,441200,08-May-17,1900226558,"2,264.00",Pendine Park Care Organisation,112763
WARRINGTON BOROUGH COUNCIL,http://opendatacommunities.org/id/unitary-authority/warrington ,FWB,Care Purchase West Team,54080,CP-LongStayExternal,441150,16-May-17,1900226968,"10,471.00",Pendleton Care Limited,101213
WARRINGTON BOROUGH COUNCIL,http://opendatacommunities.org/id/unitary-authority/warrington ,FWB,Aming High,32213,CP-Domicil.External,440950,19-Apr-17,1900225137,"3,376.00",Playability,110980
WARRINGTON BOROUGH COUNCIL,http://opendatacommunities.org/id/unitary-authority/warrington ,FWB,Aming High,32213,People with Physical or Sensory Disabili,535250,19-Apr-17,1900225138,"40,203.00",Playability,110980
WARRINGTON BOROUGH COUNCIL,http://opendatacommunities.org/id/unitary-authority/warrington ,EE0,Transport Holding Account,41311,Road Fund Licences,300200,15-May-17,1900226899,"1,530.00",Post Office Counters Ltd,100004
WARRINGTON BOROUGH COUNCIL,http://opendatacommunities.org/id/unitary-authority/warrington ,FWB,Care Purchase East Team,54060,CP-LongStayExternal,441150,23-May-17,1900227401,"5,500.00",Potens Ltd TA Heath Lodge,102481
WARRINGTON BOROUGH COUNCIL,http://opendatacommunities.org/id/unitary-authority/warrington ,FWB,Care Purchase East Team,54060,CP-LongStayExternal,441150,23-May-17,1900227399,"3,508.00",Potens Ltd TA Heath Lodge,102481
WARRINGTON BOROUGH COUNCIL,http://opendatacommunities.org/id/unitary-authority/warrington ,FWB,Care Purchase West Team,54080,CP-LongStayExternal,441150,23-May-17,1900227400,"2,944.00",Potens Ltd TA Heath Lodge,102481
WARRINGTON BOROUGH COUNCIL,http://opendatacommunities.org/id/unitary-authority/warrington ,FWB,Care Purchase South Team,54070,CP-Domicil.External,440950,11-May-17,1900226715,"18,120.00",Premier Care Cheshire Ltd,105142
WARRINGTON BOROUGH COUNCIL,http://opendatacommunities.org/id/unitary-authority/warrington ,FWB,Care Purchase Central Team,54050,CP-Domicil.External,440950,11-May-17,1900226715,"17,776.00",Premier Care Cheshire Ltd,105142
WARRINGTON BOROUGH COUNCIL,http://opendatacommunities.org/id/unitary-authority/warrington ,FWB,Care Purchase East Team,54060,CP-Domicil.External,440950,11-May-17,1900226715,"11,181.00",Premier Care Cheshire Ltd,105142
WARRINGTON BOROUGH COUNCIL,http://opendatacommunities.org/id/unitary-authority/warrington ,FWB,Care Purchase West Team,54080,CP-Domicil.External,440950,11-May-17,1900226715,"7,678.00",Premier Care Cheshire Ltd,105142
WARRINGTON BOROUGH COUNCIL,http://opendatacommunities.org/id/unitary-authority/warrington ,FWB,Care Purchase South Team,54070,CP-Domicil.External,440950,24-May-17,1900227449,"18,725.00",Premier Care Cheshire Ltd,105142
WARRINGTON BOROUGH COUNCIL,http://opendatacommunities.org/id/unitary-authority/warrington ,FWB,Care Purchase Central Team,54050,CP-Domicil.External,440950,24-May-17,1900227449,"17,026.00",Premier Care Cheshire Ltd,105142
WARRINGTON BOROUGH COUNCIL,http://opendatacommunities.org/id/unitary-authority/warrington ,FWB,Care Purchase East Team,54060,CP-Domicil.External,440950,24-May-17,1900227449,"11,487.00",Premier Care Cheshire Ltd,105142
WARRINGTON BOROUGH COUNCIL,http://opendatacommunities.org/id/unitary-authority/warrington ,FWB,Care Purchase West Team,54080,CP-Domicil.External,440950,24-May-17,1900227449,"7,488.00",Premier Care Cheshire Ltd,105142
WARRINGTON BOROUGH COUNCIL,http://opendatacommunities.org/id/unitary-authority/warrington ,FWB,Care Call,54550,Periodicals & Publ.,430250,09-May-17,1900226604,"1,265.00",Premier Concepts Ltd,105539
WARRINGTON BOROUGH COUNCIL,http://opendatacommunities.org/id/unitary-authority/warrington ,FWB,Care Purchase South Team,54070,CP-LongStayExternal,441150,16-May-17,1900226956,"11,896.00",Priory Group Fernleigh & Lynbrook,115368
WARRINGTON BOROUGH COUNCIL,http://opendatacommunities.org/id/unitary-authority/warrington ,FWB,Care Purchase East Team,54060,CP-LongStayExternal,441150,16-May-17,1900226957,"11,238.00",Priory Group Fernleigh & Lynbrook,115368
WARRINGTON BOROUGH COUNCIL,http://opendatacommunities.org/id/unitary-authority/warrington ,FWB,Care Purchase East Team,54060,CP-Domicil.External,440950,16-May-17,1900226945,"3,325.00",Priory Group Fernleigh & Lynbrook,115368
WARRINGTON BOROUGH COUNCIL,http://opendatacommunities.org/id/unitary-authority/warrington ,FWB,Care Purchase East Team,54060,CP-LongStayExternal,441150,16-May-17,1900226945,"11,238.00",Priory Group Fernleigh & Lynbrook,115368
WARRINGTON BOROUGH COUNCIL,http://opendatacommunities.org/id/unitary-authority/warrington ,FWB,Care Purchase Budget,54490,CP - Cont Care - External,441350,08-May-17,1900226476,"1,195.00",Pulse Healthcare Limited,114083
WARRINGTON BOROUGH COUNCIL,http://opendatacommunities.org/id/unitary-authority/warrington ,FWB,Care Purchase Budget,54490,CP - Cont Care - External,441350,08-May-17,1900226473,"1,195.00",Pulse Healthcare Limited,114083
WARRINGTON BOROUGH COUNCIL,http://opendatacommunities.org/id/unitary-authority/warrington ,FWB,Care Purchase Budget,54490,CP - Cont Care - External,441350,08-May-17,1900226474,"1,403.00",Pulse Healthcare Limited,114083
WARRINGTON BOROUGH COUNCIL,http://opendatacommunities.org/id/unitary-authority/warrington ,FWB,Care Purchase Budget,54490,CP - Cont Care - External,441350,15-May-17,1900226839,"1,195.00",Pulse Healthcare Limited,114083
WARRINGTON BOROUGH COUNCIL,http://opendatacommunities.org/id/unitary-authority/warrington ,EE0,B.U.M Transport Services Staffing,44480,Consult.& Prof. Serv,440000,15-May-17,1900226886,"8,551.00",Rafman Consulting Limited,115207
WARRINGTON BOROUGH COUNCIL,http://opendatacommunities.org/id/unitary-authority/warrington ,RSC,Coroners Service,11100,Consult.& Prof. Serv,440000,17-May-17,1900227021,920,REDACTED PERSONAL DATA,421145
WARRINGTON BOROUGH COUNCIL,http://opendatacommunities.org/id/unitary-authority/warrington ,FWB,Halton Music Expenditure,32219,Consult.& Prof. Serv,440000,08-May-17,1900226541,662,REDACTED PERSONAL DATA,113675
WARRINGTON BOROUGH COUNCIL,http://opendatacommunities.org/id/unitary-authority/warrington ,FWB,Assistant Director - Adult Social Care,54000,Consult.& Prof. Serv,440000,09-May-17,1900226564,"1,300.00",REDACTED PERSONAL DATA,101489
WARRINGTON BOROUGH COUNCIL,http://opendatacommunities.org/id/unitary-authority/warrington ,FWB,ComFnd - Padgate Hse,59020,Comforts Fund Expenditure,492150,17-May-17,1900227077,"5,000.00",REDACTED PERSONAL DATA,116024
WARRINGTON BOROUGH COUNCIL,http://opendatacommunities.org/id/unitary-authority/warrington ,ENO,Environment & Regeneration Other,82002,Legal Costs Incurred,440200,05-May-17,1900226434,615,REDACTED PERSONAL DATA,102113
WARRINGTON BOROUGH COUNCIL,http://opendatacommunities.org/id/unitary-authority/warrington ,EE0,Estates & Valuation,43520,Agency Supply - GF,180000,11-May-17,1900226721,"1,429.00",REDACTED PERSONAL DATA,114730
WARRINGTON BOROUGH COUNCIL,http://opendatacommunities.org/id/unitary-authority/warrington ,EE0,Estates & Valuation,43520,Agency Supply - GF,180000,11-May-17,1900226721,"1,077.00",REDACTED PERSONAL DATA,114730
WARRINGTON BOROUGH COUNCIL,http://opendatacommunities.org/id/unitary-authority/warrington ,EE0,Building Maintenance,43220,Agency Supply - GF,180000,11-May-17,1900226721,901,REDACTED PERSONAL DATA,114730
WARRINGTON BOROUGH COUNCIL,http://opendatacommunities.org/id/unitary-authority/warrington ,EE0,Building Maintenance,43220,Agency Supply - GF,180000,11-May-17,1900226721,788,REDACTED PERSONAL DATA,114730
WARRINGTON BOROUGH COUNCIL,http://opendatacommunities.org/id/unitary-authority/warrington ,FWB,Effective Practice,33300,Agency Supply - GF,180000,11-May-17,1900226721,703,REDACTED PERSONAL DATA,114730
WARRINGTON BOROUGH COUNCIL,http://opendatacommunities.org/id/unitary-authority/warrington ,FWB,Commissioning,33001,Agency Supply - GF,180000,11-May-17,1900226721,"2,348.00",REDACTED PERSONAL DATA,114730
WARRINGTON BOROUGH COUNCIL,http://opendatacommunities.org/id/unitary-authority/warrington ,FWB,Commissioning,33001,Agency Supply - GF,180000,11-May-17,1900226721,"1,074.00",REDACTED PERSONAL DATA,114730
WARRINGTON BOROUGH COUNCIL,http://opendatacommunities.org/id/unitary-authority/warrington ,FWB,Operational Manager  - Intermediate Care,53210,Agency Supply - GF,180000,11-May-17,1900226721,"1,203.00",REDACTED PERSONAL DATA,114730
WARRINGTON BOROUGH COUNCIL,http://opendatacommunities.org/id/unitary-authority/warrington ,FWB,Central -Operational,54010,Agency Supply - GF,180000,11-May-17,1900226721,"1,538.00",REDACTED PERSONAL DATA,114730
WARRINGTON BOROUGH COUNCIL,http://opendatacommunities.org/id/unitary-authority/warrington ,FWB,Safeguarding Team 2,31002,Agency Supply - GF,180000,11-May-17,1900226721,"1,538.00",REDACTED PERSONAL DATA,114730
WARRINGTON BOROUGH COUNCIL,http://opendatacommunities.org/id/unitary-authority/warrington ,FWB,CIN Management,30101,Agency Supply - GF,180000,11-May-17,1900226721,"1,203.00",REDACTED PERSONAL DATA,114730
WARRINGTON BOROUGH COUNCIL,http://opendatacommunities.org/id/unitary-authority/warrington ,FWB,Safeguarding Team 1,31001,Agency Supply - GF,180000,11-May-17,1900226721,"1,203.00",REDACTED PERSONAL DATA,114730
WARRINGTON BOROUGH COUNCIL,http://opendatacommunities.org/id/unitary-authority/warrington ,FWB,Safeguarding Team 1,31001,Agency Supply - GF,180000,11-May-17,1900226721,"1,203.00",REDACTED PERSONAL DATA,114730
WARRINGTON BOROUGH COUNCIL,http://opendatacommunities.org/id/unitary-authority/warrington ,FWB,Safeguarding Team 2,31002,Agency Supply - GF,180000,11-May-17,1900226721,"1,087.00",REDACTED PERSONAL DATA,114730
WARRINGTON BOROUGH COUNCIL,http://opendatacommunities.org/id/unitary-authority/warrington ,FWB,Safeguarding Team 2,31002,Agency Supply - GF,180000,11-May-17,1900226721,"1,087.00",REDACTED PERSONAL DATA,114730
WARRINGTON BOROUGH COUNCIL,http://opendatacommunities.org/id/unitary-authority/warrington ,FWB,CIN Management,30101,Agency Supply - GF,180000,11-May-17,1900226721,"1,087.00",REDACTED PERSONAL DATA,114730
WARRINGTON BOROUGH COUNCIL,http://opendatacommunities.org/id/unitary-authority/warrington ,FWB,Safeguarding Team 1,31001,Agency Supply - GF,180000,11-May-17,1900226721,"1,082.00",REDACTED PERSONAL DATA,114730
WARRINGTON BOROUGH COUNCIL,http://opendatacommunities.org/id/unitary-authority/warrington ,FWB,CIN Management,30101,Agency Supply - GF,180000,11-May-17,1900226721,975,REDACTED PERSONAL DATA,114730
WARRINGTON BOROUGH COUNCIL,http://opendatacommunities.org/id/unitary-authority/warrington ,FWB,Permanence Team,31100,Agency Supply - GF,180000,11-May-17,1900226721,"1,634.00",REDACTED PERSONAL DATA,114730
WARRINGTON BOROUGH COUNCIL,http://opendatacommunities.org/id/unitary-authority/warrington ,FWB,Permanence Team,31100,Agency Supply - GF,180000,11-May-17,1900226721,"1,326.00",REDACTED PERSONAL DATA,114730
WARRINGTON BOROUGH COUNCIL,http://opendatacommunities.org/id/unitary-authority/warrington ,FWB,Safeguarding Team 3,31003,Agency Supply - GF,180000,11-May-17,1900226721,"1,203.00",REDACTED PERSONAL DATA,114730
WARRINGTON BOROUGH COUNCIL,http://opendatacommunities.org/id/unitary-authority/warrington ,FWB,Safeguarding Team 3,31003,Agency Supply - GF,180000,11-May-17,1900226721,"1,203.00",REDACTED PERSONAL DATA,114730
WARRINGTON BOROUGH COUNCIL,http://opendatacommunities.org/id/unitary-authority/warrington ,FWB,Permanence Team,31100,Agency Supply - GF,180000,11-May-17,1900226721,"1,198.00",REDACTED PERSONAL DATA,114730
WARRINGTON BOROUGH COUNCIL,http://opendatacommunities.org/id/unitary-authority/warrington ,FWB,Permanence Team,31100,Agency Supply - GF,180000,11-May-17,1900226721,"1,087.00",REDACTED PERSONAL DATA,114730
WARRINGTON BOROUGH COUNCIL,http://opendatacommunities.org/id/unitary-authority/warrington ,FWB,Children with Disabilities,31005,Agency Supply - GF,180000,11-May-17,1900226721,611,REDACTED PERSONAL DATA,114730
WARRINGTON BOROUGH COUNCIL,http://opendatacommunities.org/id/unitary-authority/warrington ,FWB,Hospital Discharge Team,54390,Agency Supply - GF,180000,11-May-17,1900226721,"1,082.00",REDACTED PERSONAL DATA,114730
WARRINGTON BOROUGH COUNCIL,http://opendatacommunities.org/id/unitary-authority/warrington ,RSC,Legal Services,11200,Agency Supply - GF,180000,11-May-17,1900226721,"1,464.00",REDACTED PERSONAL DATA,114730
WARRINGTON BOROUGH COUNCIL,http://opendatacommunities.org/id/unitary-authority/warrington ,EE0,Estates & Valuation,43520,Agency Supply - GF,180000,26-Apr-17,1900225915,"1,337.00",REDACTED PERSONAL DATA,114730
WARRINGTON BOROUGH COUNCIL,http://opendatacommunities.org/id/unitary-authority/warrington ,EE0,Building Maintenance,43220,Agency Supply - GF,180000,26-Apr-17,1900225915,979,REDACTED PERSONAL DATA,114730
WARRINGTON BOROUGH COUNCIL,http://opendatacommunities.org/id/unitary-authority/warrington ,EE0,Building Maintenance,43220,Agency Supply - GF,180000,26-Apr-17,1900225915,884,REDACTED PERSONAL DATA,114730
WARRINGTON BOROUGH COUNCIL,http://opendatacommunities.org/id/unitary-authority/warrington ,FWB,Effective Practice,33300,Agency Supply - GF,180000,26-Apr-17,1900225915,715,REDACTED PERSONAL DATA,114730
WARRINGTON BOROUGH COUNCIL,http://opendatacommunities.org/id/unitary-authority/warrington ,FWB,Commissioning,33001,Agency Supply - GF,180000,26-Apr-17,1900225915,"2,348.00",REDACTED PERSONAL DATA,114730
WARRINGTON BOROUGH COUNCIL,http://opendatacommunities.org/id/unitary-authority/warrington ,FWB,Commissioning,33001,Agency Supply - GF,180000,26-Apr-17,1900225915,"2,270.00",REDACTED PERSONAL DATA,114730
WARRINGTON BOROUGH COUNCIL,http://opendatacommunities.org/id/unitary-authority/warrington ,FWB,Commissioning,33001,Agency Supply - GF,180000,26-Apr-17,1900225915,"1,867.00",REDACTED PERSONAL DATA,114730
WARRINGTON BOROUGH COUNCIL,http://opendatacommunities.org/id/unitary-authority/warrington ,FWB,LD Team,54160,Agency Supply - GF,180000,26-Apr-17,1900225915,773,REDACTED PERSONAL DATA,114730
WARRINGTON BOROUGH COUNCIL,http://opendatacommunities.org/id/unitary-authority/warrington ,FWB,CIN Management,30101,Agency Supply - GF,180000,26-Apr-17,1900225915,"1,203.00",REDACTED PERSONAL DATA,114730
WARRINGTON BOROUGH COUNCIL,http://opendatacommunities.org/id/unitary-authority/warrington ,FWB,Safeguarding Team 1,31001,Agency Supply - GF,180000,26-Apr-17,1900225915,"1,203.00",REDACTED PERSONAL DATA,114730
WARRINGTON BOROUGH COUNCIL,http://opendatacommunities.org/id/unitary-authority/warrington ,FWB,Assessment & Intervention,31000,Agency Supply - GF,180000,26-Apr-17,1900225915,"1,102.00",REDACTED PERSONAL DATA,114730
WARRINGTON BOROUGH COUNCIL,http://opendatacommunities.org/id/unitary-authority/warrington ,FWB,Assessment & Intervention,31000,Agency Supply - GF,180000,26-Apr-17,1900225915,"1,102.00",REDACTED PERSONAL DATA,114730
WARRINGTON BOROUGH COUNCIL,http://opendatacommunities.org/id/unitary-authority/warrington ,FWB,Safeguarding Team 2,31002,Agency Supply - GF,180000,26-Apr-17,1900225915,"1,087.00",REDACTED PERSONAL DATA,114730
WARRINGTON BOROUGH COUNCIL,http://opendatacommunities.org/id/unitary-authority/warrington ,FWB,Safeguarding Team 2,31002,Agency Supply - GF,180000,26-Apr-17,1900225915,"1,087.00",REDACTED PERSONAL DATA,114730
WARRINGTON BOROUGH COUNCIL,http://opendatacommunities.org/id/unitary-authority/warrington ,FWB,CIN Management,30101,Agency Supply - GF,180000,26-Apr-17,1900225915,"1,087.00",REDACTED PERSONAL DATA,114730
WARRINGTON BOROUGH COUNCIL,http://opendatacommunities.org/id/unitary-authority/warrington ,FWB,Safeguarding Team 1,31001,Agency Supply - GF,180000,26-Apr-17,1900225915,"1,087.00",REDACTED PERSONAL DATA,114730
WARRINGTON BOROUGH COUNCIL,http://opendatacommunities.org/id/unitary-authority/warrington ,FWB,Safeguarding Team 1,31001,Agency Supply - GF,180000,26-Apr-17,1900225915,"1,082.00",REDACTED PERSONAL DATA,114730
WARRINGTON BOROUGH COUNCIL,http://opendatacommunities.org/id/unitary-authority/warrington ,FWB,Safeguarding Team 3,31003,Agency Supply - GF,180000,26-Apr-17,1900225915,"1,203.00",REDACTED PERSONAL DATA,114730
WARRINGTON BOROUGH COUNCIL,http://opendatacommunities.org/id/unitary-authority/warrington ,FWB,Safeguarding Team 3,31003,Agency Supply - GF,180000,26-Apr-17,1900225915,"1,203.00",REDACTED PERSONAL DATA,114730
WARRINGTON BOROUGH COUNCIL,http://opendatacommunities.org/id/unitary-authority/warrington ,FWB,Children with Disabilities,31005,Agency Supply - GF,180000,26-Apr-17,1900225915,556,REDACTED PERSONAL DATA,114730
WARRINGTON BOROUGH COUNCIL,http://opendatacommunities.org/id/unitary-authority/warrington ,FWB,Hospital Discharge Team,54390,Agency Supply - GF,180000,26-Apr-17,1900225915,"1,082.00",REDACTED PERSONAL DATA,114730
WARRINGTON BOROUGH COUNCIL,http://opendatacommunities.org/id/unitary-authority/warrington ,EE0,Building Maintenance,43220,Agency Supply - GF,180000,18-May-17,1900227117,993,REDACTED PERSONAL DATA,114730
WARRINGTON BOROUGH COUNCIL,http://opendatacommunities.org/id/unitary-authority/warrington ,EE0,Building Maintenance,43220,Agency Supply - GF,180000,18-May-17,1900227117,884,REDACTED PERSONAL DATA,114730
WARRINGTON BOROUGH COUNCIL,http://opendatacommunities.org/id/unitary-authority/warrington ,EE0,Building Maintenance,43220,Agency Supply - GF,180000,18-May-17,1900227117,884,REDACTED PERSONAL DATA,114730
WARRINGTON BOROUGH COUNCIL,http://opendatacommunities.org/id/unitary-authority/warrington ,EE1,Transport & Environmental Improvements,44560,Agency Supply - GF,180000,18-May-17,1900227117,"1,814.00",REDACTED PERSONAL DATA,114730
WARRINGTON BOROUGH COUNCIL,http://opendatacommunities.org/id/unitary-authority/warrington ,FWB,Effective Practice,33300,Agency Supply - GF,180000,18-May-17,1900227117,823,REDACTED PERSONAL DATA,114730
WARRINGTON BOROUGH COUNCIL,http://opendatacommunities.org/id/unitary-authority/warrington ,FWB,Operational Manager  - Intermediate Care,53210,Agency Supply - GF,180000,18-May-17,1900227117,"1,087.00",REDACTED PERSONAL DATA,114730
WARRINGTON BOROUGH COUNCIL,http://opendatacommunities.org/id/unitary-authority/warrington ,FWB,Safeguarding Team 2,31002,Agency Supply - GF,180000,18-May-17,1900227117,"1,388.00",REDACTED PERSONAL DATA,114730
WARRINGTON BOROUGH COUNCIL,http://opendatacommunities.org/id/unitary-authority/warrington ,FWB,Safeguarding Team 1,31001,Agency Supply - GF,180000,18-May-17,1900227117,"1,102.00",REDACTED PERSONAL DATA,114730
WARRINGTON BOROUGH COUNCIL,http://opendatacommunities.org/id/unitary-authority/warrington ,FWB,Safeguarding Team 2,31002,Agency Supply - GF,180000,18-May-17,1900227117,"1,087.00",REDACTED PERSONAL DATA,114730
WARRINGTON BOROUGH COUNCIL,http://opendatacommunities.org/id/unitary-authority/warrington ,FWB,Safeguarding Team 2,31002,Agency Supply - GF,180000,18-May-17,1900227117,"1,087.00",REDACTED PERSONAL DATA,114730
WARRINGTON BOROUGH COUNCIL,http://opendatacommunities.org/id/unitary-authority/warrington ,FWB,CIN Management,30101,Agency Supply - GF,180000,18-May-17,1900227117,"1,087.00",REDACTED PERSONAL DATA,114730
WARRINGTON BOROUGH COUNCIL,http://opendatacommunities.org/id/unitary-authority/warrington ,FWB,Safeguarding Team 1,31001,Agency Supply - GF,180000,18-May-17,1900227117,"1,087.00",REDACTED PERSONAL DATA,114730
WARRINGTON BOROUGH COUNCIL,http://opendatacommunities.org/id/unitary-authority/warrington ,FWB,Safeguarding Team 1,31001,Agency Supply - GF,180000,18-May-17,1900227117,"1,087.00",REDACTED PERSONAL DATA,114730
WARRINGTON BOROUGH COUNCIL,http://opendatacommunities.org/id/unitary-authority/warrington ,FWB,Assessment & Intervention,31000,Agency Supply - GF,180000,18-May-17,1900227117,"1,087.00",REDACTED PERSONAL DATA,114730
WARRINGTON BOROUGH COUNCIL,http://opendatacommunities.org/id/unitary-authority/warrington ,FWB,Safeguarding Team 1,31001,Agency Supply - GF,180000,18-May-17,1900227117,"1,087.00",REDACTED PERSONAL DATA,114730
WARRINGTON BOROUGH COUNCIL,http://opendatacommunities.org/id/unitary-authority/warrington ,FWB,Safeguarding Team 2,31002,Agency Supply - GF,180000,18-May-17,1900227117,"1,087.00",REDACTED PERSONAL DATA,114730
WARRINGTON BOROUGH COUNCIL,http://opendatacommunities.org/id/unitary-authority/warrington ,FWB,Safeguarding Team 1,31001,Agency Supply - GF,180000,18-May-17,1900227117,881,REDACTED PERSONAL DATA,114730
WARRINGTON BOROUGH COUNCIL,http://opendatacommunities.org/id/unitary-authority/warrington ,FWB,Safeguarding Team 3,31003,Agency Supply - GF,180000,18-May-17,1900227117,"1,087.00",REDACTED PERSONAL DATA,114730
WARRINGTON BOROUGH COUNCIL,http://opendatacommunities.org/id/unitary-authority/warrington ,FWB,Safeguarding Team 3,31003,Agency Supply - GF,180000,18-May-17,1900227117,"1,028.00",REDACTED PERSONAL DATA,114730
WARRINGTON BOROUGH COUNCIL,http://opendatacommunities.org/id/unitary-authority/warrington ,FWB,Children with Disabilities,31005,Agency Supply - GF,180000,18-May-17,1900227117,"1,203.00",REDACTED PERSONAL DATA,114730
WARRINGTON BOROUGH COUNCIL,http://opendatacommunities.org/id/unitary-authority/warrington ,FWB,Children with Disabilities,31005,Agency Supply - GF,180000,18-May-17,1900227117,"1,087.00",REDACTED PERSONAL DATA,114730
WARRINGTON BOROUGH COUNCIL,http://opendatacommunities.org/id/unitary-authority/warrington ,FWB,Children with Disabilities,31005,Agency Supply - GF,180000,18-May-17,1900227117,852,REDACTED PERSONAL DATA,114730
WARRINGTON BOROUGH COUNCIL,http://opendatacommunities.org/id/unitary-authority/warrington ,FWB,Children with Disabilities,31005,Agency Supply - GF,180000,18-May-17,1900227117,551,REDACTED PERSONAL DATA,114730
WARRINGTON BOROUGH COUNCIL,http://opendatacommunities.org/id/unitary-authority/warrington ,FWB,Hospital Discharge Team,54390,Agency Supply - GF,180000,18-May-17,1900227117,"1,082.00",REDACTED PERSONAL DATA,114730
WARRINGTON BOROUGH COUNCIL,http://opendatacommunities.org/id/unitary-authority/warrington ,FWB,Hospital Discharge Team,54390,Agency Supply - GF,180000,18-May-17,1900227117,"1,018.00",REDACTED PERSONAL DATA,114730
WARRINGTON BOROUGH COUNCIL,http://opendatacommunities.org/id/unitary-authority/warrington ,RSC,Legal Services,11200,Agency Supply - GF,180000,18-May-17,1900227117,"1,119.00",REDACTED PERSONAL DATA,114730
WARRINGTON BOROUGH COUNCIL,http://opendatacommunities.org/id/unitary-authority/warrington ,EE0,Estates & Valuation,43520,Agency Supply - GF,180000,08-May-17,1900226550,"1,328.00",REDACTED PERSONAL DATA,114730
WARRINGTON BOROUGH COUNCIL,http://opendatacommunities.org/id/unitary-authority/warrington ,EE0,Building Maintenance,43220,Agency Supply - GF,180000,08-May-17,1900226550,887,REDACTED PERSONAL DATA,114730
WARRINGTON BOROUGH COUNCIL,http://opendatacommunities.org/id/unitary-authority/warrington ,EE0,Building Maintenance,43220,Agency Supply - GF,180000,08-May-17,1900226550,717,REDACTED PERSONAL DATA,114730
WARRINGTON BOROUGH COUNCIL,http://opendatacommunities.org/id/unitary-authority/warrington ,FWB,Effective Practice,33300,Agency Supply - GF,180000,08-May-17,1900226550,693,REDACTED PERSONAL DATA,114730
WARRINGTON BOROUGH COUNCIL,http://opendatacommunities.org/id/unitary-authority/warrington ,FWB,Commissioning,33001,Agency Supply - GF,180000,08-May-17,1900226550,"1,879.00",REDACTED PERSONAL DATA,114730
WARRINGTON BOROUGH COUNCIL,http://opendatacommunities.org/id/unitary-authority/warrington ,FWB,Operational Manager  - Intermediate Care,53210,Agency Supply - GF,180000,08-May-17,1900226550,882,REDACTED PERSONAL DATA,114730
WARRINGTON BOROUGH COUNCIL,http://opendatacommunities.org/id/unitary-authority/warrington ,FWB,Central -Operational,54010,Agency Supply - GF,180000,08-May-17,1900226550,"1,538.00",REDACTED PERSONAL DATA,114730
WARRINGTON BOROUGH COUNCIL,http://opendatacommunities.org/id/unitary-authority/warrington ,FWB,Central -Operational,54010,Agency Supply - GF,180000,08-May-17,1900226550,"1,357.00",REDACTED PERSONAL DATA,114730
WARRINGTON BOROUGH COUNCIL,http://opendatacommunities.org/id/unitary-authority/warrington ,FWB,Central -Operational,54010,Agency Supply - GF,180000,08-May-17,1900226550,"1,247.00",REDACTED PERSONAL DATA,114730
WARRINGTON BOROUGH COUNCIL,http://opendatacommunities.org/id/unitary-authority/warrington ,FWB,Safeguarding Team 2,31002,Agency Supply - GF,180000,08-May-17,1900226550,"1,388.00",REDACTED PERSONAL DATA,114730
WARRINGTON BOROUGH COUNCIL,http://opendatacommunities.org/id/unitary-authority/warrington ,FWB,Safeguarding Team 2,31002,Agency Supply - GF,180000,08-May-17,1900226550,"1,125.00",REDACTED PERSONAL DATA,114730
WARRINGTON BOROUGH COUNCIL,http://opendatacommunities.org/id/unitary-authority/warrington ,FWB,Safeguarding Team 2,31002,Agency Supply - GF,180000,08-May-17,1900226550,"1,087.00",REDACTED PERSONAL DATA,114730
WARRINGTON BOROUGH COUNCIL,http://opendatacommunities.org/id/unitary-authority/warrington ,FWB,CIN Management,30101,Agency Supply - GF,180000,08-May-17,1900226550,"1,087.00",REDACTED PERSONAL DATA,114730
WARRINGTON BOROUGH COUNCIL,http://opendatacommunities.org/id/unitary-authority/warrington ,FWB,Safeguarding Team 1,31001,Agency Supply - GF,180000,08-May-17,1900226550,"1,087.00",REDACTED PERSONAL DATA,114730
WARRINGTON BOROUGH COUNCIL,http://opendatacommunities.org/id/unitary-authority/warrington ,FWB,CIN Management,30101,Agency Supply - GF,180000,08-May-17,1900226550,975,REDACTED PERSONAL DATA,114730
WARRINGTON BOROUGH COUNCIL,http://opendatacommunities.org/id/unitary-authority/warrington ,FWB,Assessment & Intervention,31000,Agency Supply - GF,180000,08-May-17,1900226550,911,REDACTED PERSONAL DATA,114730
WARRINGTON BOROUGH COUNCIL,http://opendatacommunities.org/id/unitary-authority/warrington ,FWB,Safeguarding Team 1,31001,Agency Supply - GF,180000,08-May-17,1900226550,910,REDACTED PERSONAL DATA,114730
WARRINGTON BOROUGH COUNCIL,http://opendatacommunities.org/id/unitary-authority/warrington ,FWB,Safeguarding Team 2,31002,Agency Supply - GF,180000,08-May-17,1900226550,882,REDACTED PERSONAL DATA,114730
WARRINGTON BOROUGH COUNCIL,http://opendatacommunities.org/id/unitary-authority/warrington ,FWB,Safeguarding Team 1,31001,Agency Supply - GF,180000,08-May-17,1900226550,877,REDACTED PERSONAL DATA,114730
WARRINGTON BOROUGH COUNCIL,http://opendatacommunities.org/id/unitary-authority/warrington ,FWB,Safeguarding Team 3,31003,Agency Supply - GF,180000,08-May-17,1900226550,"1,087.00",REDACTED PERSONAL DATA,114730
WARRINGTON BOROUGH COUNCIL,http://opendatacommunities.org/id/unitary-authority/warrington ,FWB,Safeguarding Team 3,31003,Agency Supply - GF,180000,08-May-17,1900226550,"1,087.00",REDACTED PERSONAL DATA,114730
WARRINGTON BOROUGH COUNCIL,http://opendatacommunities.org/id/unitary-authority/warrington ,FWB,Safeguarding Team 3,31003,Agency Supply - GF,180000,08-May-17,1900226550,882,REDACTED PERSONAL DATA,114730
WARRINGTON BOROUGH COUNCIL,http://opendatacommunities.org/id/unitary-authority/warrington ,FWB,Permanence Team,31100,Agency Supply - GF,180000,08-May-17,1900226550,882,REDACTED PERSONAL DATA,114730
WARRINGTON BOROUGH COUNCIL,http://opendatacommunities.org/id/unitary-authority/warrington ,FWB,Safeguarding Team 3,31003,Agency Supply - GF,180000,08-May-17,1900226550,705,REDACTED PERSONAL DATA,114730
WARRINGTON BOROUGH COUNCIL,http://opendatacommunities.org/id/unitary-authority/warrington ,FWB,Children with Disabilities,31005,Agency Supply - GF,180000,08-May-17,1900226550,"1,203.00",REDACTED PERSONAL DATA,114730
WARRINGTON BOROUGH COUNCIL,http://opendatacommunities.org/id/unitary-authority/warrington ,FWB,Children with Disabilities,31005,Agency Supply - GF,180000,08-May-17,1900226550,975,REDACTED PERSONAL DATA,114730
WARRINGTON BOROUGH COUNCIL,http://opendatacommunities.org/id/unitary-authority/warrington ,FWB,Children with Disabilities,31005,Agency Supply - GF,180000,08-May-17,1900226550,882,REDACTED PERSONAL DATA,114730
WARRINGTON BOROUGH COUNCIL,http://opendatacommunities.org/id/unitary-authority/warrington ,FWB,Children with Disabilities,31005,Agency Supply - GF,180000,08-May-17,1900226550,553,REDACTED PERSONAL DATA,114730
WARRINGTON BOROUGH COUNCIL,http://opendatacommunities.org/id/unitary-authority/warrington ,FWB,Hospital Discharge Team,54390,Agency Supply - GF,180000,08-May-17,1900226550,658,REDACTED PERSONAL DATA,114730
WARRINGTON BOROUGH COUNCIL,http://opendatacommunities.org/id/unitary-authority/warrington ,EE0,Building Maintenance,43220,Agency Supply - GF,180000,08-May-17,1900226552,874,REDACTED PERSONAL DATA,114730
WARRINGTON BOROUGH COUNCIL,http://opendatacommunities.org/id/unitary-authority/warrington ,EE0,Building Maintenance,43220,Agency Supply - GF,180000,08-May-17,1900226552,717,REDACTED PERSONAL DATA,114730
WARRINGTON BOROUGH COUNCIL,http://opendatacommunities.org/id/unitary-authority/warrington ,FWB,Effective Practice,33300,Agency Supply - GF,180000,08-May-17,1900226552,693,REDACTED PERSONAL DATA,114730
WARRINGTON BOROUGH COUNCIL,http://opendatacommunities.org/id/unitary-authority/warrington ,FWB,Commissioning,33001,Agency Supply - GF,180000,08-May-17,1900226552,"1,991.00",REDACTED PERSONAL DATA,114730
WARRINGTON BOROUGH COUNCIL,http://opendatacommunities.org/id/unitary-authority/warrington ,FWB,Commissioning,33001,Agency Supply - GF,180000,08-May-17,1900226552,"1,656.00",REDACTED PERSONAL DATA,114730
WARRINGTON BOROUGH COUNCIL,http://opendatacommunities.org/id/unitary-authority/warrington ,FWB,Commissioning,33001,Agency Supply - GF,180000,08-May-17,1900226552,"1,656.00",REDACTED PERSONAL DATA,114730
WARRINGTON BOROUGH COUNCIL,http://opendatacommunities.org/id/unitary-authority/warrington ,FWB,Commissioning,33001,Agency Supply - GF,180000,08-May-17,1900226552,693,REDACTED PERSONAL DATA,114730
WARRINGTON BOROUGH COUNCIL,http://opendatacommunities.org/id/unitary-authority/warrington ,FWB,Operational Manager  - Intermediate Care,53210,Agency Supply - GF,180000,08-May-17,1900226552,882,REDACTED PERSONAL DATA,114730
WARRINGTON BOROUGH COUNCIL,http://opendatacommunities.org/id/unitary-authority/warrington ,FWB,Central -Operational,54010,Agency Supply - GF,180000,08-May-17,1900226552,"1,538.00",REDACTED PERSONAL DATA,114730
WARRINGTON BOROUGH COUNCIL,http://opendatacommunities.org/id/unitary-authority/warrington ,FWB,Safeguarding Team 2,31002,Agency Supply - GF,180000,08-May-17,1900226552,"1,125.00",REDACTED PERSONAL DATA,114730
WARRINGTON BOROUGH COUNCIL,http://opendatacommunities.org/id/unitary-authority/warrington ,FWB,CIN Management,30101,Agency Supply - GF,180000,08-May-17,1900226552,"1,087.00",REDACTED PERSONAL DATA,114730
WARRINGTON BOROUGH COUNCIL,http://opendatacommunities.org/id/unitary-authority/warrington ,FWB,Safeguarding Team 2,31002,Agency Supply - GF,180000,08-May-17,1900226552,"1,087.00",REDACTED PERSONAL DATA,114730
WARRINGTON BOROUGH COUNCIL,http://opendatacommunities.org/id/unitary-authority/warrington ,FWB,Safeguarding Team 1,31001,Agency Supply - GF,180000,08-May-17,1900226552,975,REDACTED PERSONAL DATA,114730
WARRINGTON BOROUGH COUNCIL,http://opendatacommunities.org/id/unitary-authority/warrington ,FWB,CIN Management,30101,Agency Supply - GF,180000,08-May-17,1900226552,882,REDACTED PERSONAL DATA,114730
WARRINGTON BOROUGH COUNCIL,http://opendatacommunities.org/id/unitary-authority/warrington ,FWB,Safeguarding Team 1,31001,Agency Supply - GF,180000,08-May-17,1900226552,882,REDACTED PERSONAL DATA,114730
WARRINGTON BOROUGH COUNCIL,http://opendatacommunities.org/id/unitary-authority/warrington ,FWB,Assessment & Intervention,31000,Agency Supply - GF,180000,08-May-17,1900226552,882,REDACTED PERSONAL DATA,114730
WARRINGTON BOROUGH COUNCIL,http://opendatacommunities.org/id/unitary-authority/warrington ,FWB,Safeguarding Team 1,31001,Agency Supply - GF,180000,08-May-17,1900226552,793,REDACTED PERSONAL DATA,114730
WARRINGTON BOROUGH COUNCIL,http://opendatacommunities.org/id/unitary-authority/warrington ,FWB,Permanence Team,31100,Agency Supply - GF,180000,08-May-17,1900226552,"1,634.00",REDACTED PERSONAL DATA,114730
WARRINGTON BOROUGH COUNCIL,http://opendatacommunities.org/id/unitary-authority/warrington ,FWB,Permanence Team,31100,Agency Supply - GF,180000,08-May-17,1900226552,"1,634.00",REDACTED PERSONAL DATA,114730
WARRINGTON BOROUGH COUNCIL,http://opendatacommunities.org/id/unitary-authority/warrington ,FWB,Permanence Team,31100,Agency Supply - GF,180000,08-May-17,1900226552,"1,325.00",REDACTED PERSONAL DATA,114730
WARRINGTON BOROUGH COUNCIL,http://opendatacommunities.org/id/unitary-authority/warrington ,FWB,Permanence Team,31100,Agency Supply - GF,180000,08-May-17,1900226552,"1,170.00",REDACTED PERSONAL DATA,114730
WARRINGTON BOROUGH COUNCIL,http://opendatacommunities.org/id/unitary-authority/warrington ,FWB,Permanence Team,31100,Agency Supply - GF,180000,08-May-17,1900226552,"1,029.00",REDACTED PERSONAL DATA,114730
WARRINGTON BOROUGH COUNCIL,http://opendatacommunities.org/id/unitary-authority/warrington ,FWB,Safeguarding Team 3,31003,Agency Supply - GF,180000,08-May-17,1900226552,882,REDACTED PERSONAL DATA,114730
WARRINGTON BOROUGH COUNCIL,http://opendatacommunities.org/id/unitary-authority/warrington ,FWB,Permanence Team,31100,Agency Supply - GF,180000,08-May-17,1900226552,882,REDACTED PERSONAL DATA,114730
WARRINGTON BOROUGH COUNCIL,http://opendatacommunities.org/id/unitary-authority/warrington ,FWB,Permanence Team,31100,Agency Supply - GF,180000,08-May-17,1900226552,882,REDACTED PERSONAL DATA,114730
WARRINGTON BOROUGH COUNCIL,http://opendatacommunities.org/id/unitary-authority/warrington ,FWB,Safeguarding Team 3,31003,Agency Supply - GF,180000,08-May-17,1900226552,872,REDACTED PERSONAL DATA,114730
WARRINGTON BOROUGH COUNCIL,http://opendatacommunities.org/id/unitary-authority/warrington ,FWB,Safeguarding Team 3,31003,Agency Supply - GF,180000,08-May-17,1900226552,872,REDACTED PERSONAL DATA,114730
WARRINGTON BOROUGH COUNCIL,http://opendatacommunities.org/id/unitary-authority/warrington ,FWB,Children with Disabilities,31005,Agency Supply - GF,180000,08-May-17,1900226552,975,REDACTED PERSONAL DATA,114730
WARRINGTON BOROUGH COUNCIL,http://opendatacommunities.org/id/unitary-authority/warrington ,FWB,Children with Disabilities,31005,Agency Supply - GF,180000,08-May-17,1900226552,549,REDACTED PERSONAL DATA,114730
WARRINGTON BOROUGH COUNCIL,http://opendatacommunities.org/id/unitary-authority/warrington ,FWB,Hospital Discharge Team,54390,Agency Supply - GF,180000,08-May-17,1900226552,863,REDACTED PERSONAL DATA,114730
WARRINGTON BOROUGH COUNCIL,http://opendatacommunities.org/id/unitary-authority/warrington ,FWB,Director of Public Health,55000,Public Health Contribution Payments,540010,05-May-17,1900226432,589,REDACTED PERSONAL DATA,421142
WARRINGTON BOROUGH COUNCIL,http://opendatacommunities.org/id/unitary-authority/warrington ,RSC,Coroners Service,11100,Post Mortem Fees-Rep,440250,12-May-17,1900226822,"2,795.00",REDACTED PERSONAL DATA,100499
WARRINGTON BOROUGH COUNCIL,http://opendatacommunities.org/id/unitary-authority/warrington ,FWB,Foster Allowances,31106,Fostering Allowance,550050,28-Apr-17,1900226184,600,REDACTED PERSONAL DATA,460796
WARRINGTON BOROUGH COUNCIL,http://opendatacommunities.org/id/unitary-authority/warrington ,FWB,Child Arrangement Orders,31114,Residence Orders,550350,09-May-17,1900226606,685,REDACTED PERSONAL DATA,105753
WARRINGTON BOROUGH COUNCIL,http://opendatacommunities.org/id/unitary-authority/warrington ,RSC,Coroners Service,11100,Reimbursement for Deputy Coroner,440400,03-May-17,1900226328,"12,750.00",REDACTED PERSONAL DATA,420667
WARRINGTON BOROUGH COUNCIL,http://opendatacommunities.org/id/unitary-authority/warrington ,RSC,Coroners Service,11100,Jury Witness Exps,460050,15-May-17,1900226862,523,REDACTED PERSONAL DATA,421143
WARRINGTON BOROUGH COUNCIL,http://opendatacommunities.org/id/unitary-authority/warrington ,RSC,Coroners Service,11100,Jury Witness Exps,460050,15-May-17,1900226876,774,REDACTED PERSONAL DATA,421149
WARRINGTON BOROUGH COUNCIL,http://opendatacommunities.org/id/unitary-authority/warrington ,RSC,Coroners Service,11100,Reimbursement for Deputy Coroner,440400,17-May-17,1900227039,850,REDACTED PERSONAL DATA,102292
WARRINGTON BOROUGH COUNCIL,http://opendatacommunities.org/id/unitary-authority/warrington ,FWB,Foster Allowances,31106,Fostering Allowance,550050,23-May-17,1900227341,770,REDACTED PERSONAL DATA,460704
WARRINGTON BOROUGH COUNCIL,http://opendatacommunities.org/id/unitary-authority/warrington ,FWB,Child Arrangement Orders,31114,Residence Orders,550350,17-May-17,1900226995,"1,952.00",REDACTED PERSONAL DATA,461196
WARRINGTON BOROUGH COUNCIL,http://opendatacommunities.org/id/unitary-authority/warrington ,FWB,Foster Allowances,31106,Travel Allowance,550250,04-May-17,1900226387,517,REDACTED PERSONAL DATA,461371
WARRINGTON BOROUGH COUNCIL,http://opendatacommunities.org/id/unitary-authority/warrington ,FWB,Foster Allowances,31106,Fostering Allowance,550050,09-May-17,1900226577,759,REDACTED PERSONAL DATA,460775
WARRINGTON BOROUGH COUNCIL,http://opendatacommunities.org/id/unitary-authority/warrington ,FWB,Foster Allowances,31106,Fostering Allowance,550050,23-May-17,1900227351,600,REDACTED PERSONAL DATA,460807
WARRINGTON BOROUGH COUNCIL,http://opendatacommunities.org/id/unitary-authority/warrington ,FWB,Foster Allowances,31106,Furniture & Fittings,400150,18-May-17,1900227130,563,REDACTED PERSONAL DATA,461569
WARRINGTON BOROUGH COUNCIL,http://opendatacommunities.org/id/unitary-authority/warrington ,FWB,Foster Allowances,31106,Fostering Allowance,550050,15-May-17,1900226888,600,REDACTED PERSONAL DATA,461483
WARRINGTON BOROUGH COUNCIL,http://opendatacommunities.org/id/unitary-authority/warrington ,FWB,Foster Allowances,31106,Travel Allowance,550250,15-May-17,1900226888,"1,040.00",REDACTED PERSONAL DATA,461483
WARRINGTON BOROUGH COUNCIL,http://opendatacommunities.org/id/unitary-authority/warrington ,FWB,Foster Allowances,31106,Fostering Allowance,550050,23-May-17,1900227344,600,REDACTED PERSONAL DATA,460794
WARRINGTON BOROUGH COUNCIL,http://opendatacommunities.org/id/unitary-authority/warrington ,FWB,Foster Allowances,31106,Travel Allowance,550250,23-May-17,1900227346,604,REDACTED PERSONAL DATA,460793
WARRINGTON BOROUGH COUNCIL,http://opendatacommunities.org/id/unitary-authority/warrington ,FWB,Foster Allowances,31106,Furniture & Fittings,400150,28-Apr-17,1900226187,672,REDACTED PERSONAL DATA,460648
WARRINGTON BOROUGH COUNCIL,http://opendatacommunities.org/id/unitary-authority/warrington ,FWB,Foster Allowances,31106,Travel Allowance,550250,28-Apr-17,1900226187,582,REDACTED PERSONAL DATA,460648
WARRINGTON BOROUGH COUNCIL,http://opendatacommunities.org/id/unitary-authority/warrington ,FWB,Foster Allowances,31106,Fostering Allowance,550050,15-May-17,1900226891,820,REDACTED PERSONAL DATA,460956
WARRINGTON BOROUGH COUNCIL,http://opendatacommunities.org/id/unitary-authority/warrington ,FWB,Foster Allowances,31106,Fostering Allowance,550050,18-May-17,1900227134,905,REDACTED PERSONAL DATA,461410
WARRINGTON BOROUGH COUNCIL,http://opendatacommunities.org/id/unitary-authority/warrington ,FWB,Foster Allowances,31106,Fostering Allowance,550050,04-May-17,1900226399,660,REDACTED PERSONAL DATA,460944
WARRINGTON BOROUGH COUNCIL,http://opendatacommunities.org/id/unitary-authority/warrington ,FWB,Foster Allowances,31106,Fostering Allowance,550050,15-May-17,1900226896,660,REDACTED PERSONAL DATA,460648
WARRINGTON BOROUGH COUNCIL,http://opendatacommunities.org/id/unitary-authority/warrington ,FWB,Foster Allowances,31106,Fostering Allowance,550050,05-May-17,1900226444,"2,550.00",REDACTED PERSONAL DATA,461554
WARRINGTON BOROUGH COUNCIL,http://opendatacommunities.org/id/unitary-authority/warrington ,FWB,Foster Allowances,31106,Fostering Allowance,550050,04-May-17,1900226408,849,REDACTED PERSONAL DATA,461563
WARRINGTON BOROUGH COUNCIL,http://opendatacommunities.org/id/unitary-authority/warrington ,FWB,Foster Allowances,31106,Fostering Allowance,550050,09-May-17,1900226565,"4,588.00",REDACTED PERSONAL DATA,461398
WARRINGTON BOROUGH COUNCIL,http://opendatacommunities.org/id/unitary-authority/warrington ,FWB,Care Purchase Central Team,54050,Supporting People - External,441250,25-Apr-17,1900225477,810,REDACTED PERSONAL DATA,103771
WARRINGTON BOROUGH COUNCIL,http://opendatacommunities.org/id/unitary-authority/warrington ,FWB,Care Purchase Central Team,54050,Direct Payments,552000,25-Apr-17,1900225477,"11,122.00",REDACTED PERSONAL DATA,103771
WARRINGTON BOROUGH COUNCIL,http://opendatacommunities.org/id/unitary-authority/warrington ,FWB,Care Purchase Central Team,54050,Direct Payments,552000,09-May-17,1900226643,696,REDACTED PERSONAL DATA,103771
WARRINGTON BOROUGH COUNCIL,http://opendatacommunities.org/id/unitary-authority/warrington ,FWB,Care Purchase Central Team,54050,Direct Payments,552000,09-May-17,1900226644,520,REDACTED PERSONAL DATA,460259
WARRINGTON BOROUGH COUNCIL,http://opendatacommunities.org/id/unitary-authority/warrington ,FWB,Care Purchase Central Team,54050,Direct Payments,552000,09-May-17,1900226649,"1,450.00",REDACTED PERSONAL DATA,461555
WARRINGTON BOROUGH COUNCIL,http://opendatacommunities.org/id/unitary-authority/warrington ,FWB,Care Purchase Central Team,54050,Direct Payments,552000,09-May-17,1900226645,764,REDACTED PERSONAL DATA,460265
WARRINGTON BOROUGH COUNCIL,http://opendatacommunities.org/id/unitary-authority/warrington ,FWB,Care Purchase Central Team,54050,Direct Payments,552000,10-May-17,1900226713,657,REDACTED PERSONAL DATA,461266
WARRINGTON BOROUGH COUNCIL,http://opendatacommunities.org/id/unitary-authority/warrington ,FWB,Care Purchase Central Team,54050,Direct Payments,552000,16-May-17,1900226992,"1,229.00",REDACTED PERSONAL DATA,460951
WARRINGTON BOROUGH COUNCIL,http://opendatacommunities.org/id/unitary-authority/warrington ,FWB,Care Purchase Central Team,54050,Direct Payments,552000,17-May-17,1900227113,784,REDACTED PERSONAL DATA,103771
WARRINGTON BOROUGH COUNCIL,http://opendatacommunities.org/id/unitary-authority/warrington ,FWB,Care Purchase South Team,54070,Direct Payments,552000,24-May-17,1900227542,"2,290.00",REDACTED PERSONAL DATA,101686
WARRINGTON BOROUGH COUNCIL,http://opendatacommunities.org/id/unitary-authority/warrington ,FWB,Care Purchase South Team,54070,Direct Payments,552000,24-May-17,1900227878,679,REDACTED PERSONAL DATA,461245
WARRINGTON BOROUGH COUNCIL,http://opendatacommunities.org/id/unitary-authority/warrington ,FWB,Care Purchase Central Team,54050,Direct Payments,552000,24-May-17,1900227713,"2,249.00",REDACTED PERSONAL DATA,460269
WARRINGTON BOROUGH COUNCIL,http://opendatacommunities.org/id/unitary-authority/warrington ,FWB,Care Purchase West Team,54080,Direct Payments,552000,24-May-17,1900227900,"2,969.00",REDACTED PERSONAL DATA,461330
WARRINGTON BOROUGH COUNCIL,http://opendatacommunities.org/id/unitary-authority/warrington ,FWB,Care Purchase East Team,54060,Direct Payments,552000,24-May-17,1900227814,"1,543.00",REDACTED PERSONAL DATA,460918
WARRINGTON BOROUGH COUNCIL,http://opendatacommunities.org/id/unitary-authority/warrington ,FWB,Care Purchase South Team,54070,Direct Payments,552000,24-May-17,1900227641,606,REDACTED PERSONAL DATA,107299
WARRINGTON BOROUGH COUNCIL,http://opendatacommunities.org/id/unitary-authority/warrington ,FWB,Care Purchase Central Team,54050,Direct Payments,552000,24-May-17,1900227500,851,REDACTED PERSONAL DATA,100766
WARRINGTON BOROUGH COUNCIL,http://opendatacommunities.org/id/unitary-authority/warrington ,FWB,Care Purchase West Team,54080,Direct Payments,552000,24-May-17,1900227883,652,REDACTED PERSONAL DATA,461263
WARRINGTON BOROUGH COUNCIL,http://opendatacommunities.org/id/unitary-authority/warrington ,FWB,Care Purchase South Team,54070,Direct Payments,552000,24-May-17,1900227575,"5,990.00",REDACTED PERSONAL DATA,103372
WARRINGTON BOROUGH COUNCIL,http://opendatacommunities.org/id/unitary-authority/warrington ,FWB,Care Purchase West Team,54080,Direct Payments,552000,24-May-17,1900227782,834,REDACTED PERSONAL DATA,460703
WARRINGTON BOROUGH COUNCIL,http://opendatacommunities.org/id/unitary-authority/warrington ,FWB,Care Purchase East Team,54060,Supporting People - External,441250,24-May-17,1900227595,849,REDACTED PERSONAL DATA,103794
WARRINGTON BOROUGH COUNCIL,http://opendatacommunities.org/id/unitary-authority/warrington ,FWB,Care Purchase Central Team,54050,Direct Payments,552000,24-May-17,1900227661,"1,249.00",REDACTED PERSONAL DATA,114446
WARRINGTON BOROUGH COUNCIL,http://opendatacommunities.org/id/unitary-authority/warrington ,FWB,Care Purchase West Team,54080,Direct Payments,552000,24-May-17,1900227510,849,REDACTED PERSONAL DATA,101045
WARRINGTON BOROUGH COUNCIL,http://opendatacommunities.org/id/unitary-authority/warrington ,FWB,Care Purchase Central Team,54050,Direct Payments,552000,24-May-17,1900227509,855,REDACTED PERSONAL DATA,101030
WARRINGTON BOROUGH COUNCIL,http://opendatacommunities.org/id/unitary-authority/warrington ,FWB,Care Purchase West Team,54080,Direct Payments,552000,24-May-17,1900227602,"1,830.00",REDACTED PERSONAL DATA,104205
WARRINGTON BOROUGH COUNCIL,http://opendatacommunities.org/id/unitary-authority/warrington ,FWB,Care Purchase Central Team,54050,Direct Payments,552000,24-May-17,1900227696,817,REDACTED PERSONAL DATA,460226
WARRINGTON BOROUGH COUNCIL,http://opendatacommunities.org/id/unitary-authority/warrington ,FWB,Care Purchase Central Team,54050,Direct Payments,552000,24-May-17,1900227766,997,REDACTED PERSONAL DATA,460581
WARRINGTON BOROUGH COUNCIL,http://opendatacommunities.org/id/unitary-authority/warrington ,FWB,Care Purchase Central Team,54050,Direct Payments,552000,24-May-17,1900227785,866,REDACTED PERSONAL DATA,460726
WARRINGTON BOROUGH COUNCIL,http://opendatacommunities.org/id/unitary-authority/warrington ,FWB,Care Purchase East Team,54060,Direct Payments,552000,24-May-17,1900227786,"1,053.00",REDACTED PERSONAL DATA,460734
WARRINGTON BOROUGH COUNCIL,http://opendatacommunities.org/id/unitary-authority/warrington ,FWB,Care Purchase Central Team,54050,Direct Payments,552000,24-May-17,1900227776,902,REDACTED PERSONAL DATA,460638
WARRINGTON BOROUGH COUNCIL,http://opendatacommunities.org/id/unitary-authority/warrington ,FWB,Care Purchase West Team,54080,Direct Payments,552000,24-May-17,1900227700,"1,682.00",REDACTED PERSONAL DATA,460243
WARRINGTON BOROUGH COUNCIL,http://opendatacommunities.org/id/unitary-authority/warrington ,FWB,Care Purchase South Team,54070,Direct Payments,552000,24-May-17,1900227832,840,REDACTED PERSONAL DATA,461016
WARRINGTON BOROUGH COUNCIL,http://opendatacommunities.org/id/unitary-authority/warrington ,FWB,Care Purchase South Team,54070,Direct Payments,552000,24-May-17,1900227984,"1,679.00",REDACTED PERSONAL DATA,461543
WARRINGTON BOROUGH COUNCIL,http://opendatacommunities.org/id/unitary-authority/warrington ,FWB,Care Purchase Central Team,54050,Direct Payments,552000,24-May-17,1900227741,798,REDACTED PERSONAL DATA,460457
WARRINGTON BOROUGH COUNCIL,http://opendatacommunities.org/id/unitary-authority/warrington ,FWB,Care Purchase South Team,54070,Direct Payments,552000,24-May-17,1900227626,637,REDACTED PERSONAL DATA,106066
WARRINGTON BOROUGH COUNCIL,http://opendatacommunities.org/id/unitary-authority/warrington ,FWB,Care Purchase East Team,54060,Direct Payments,552000,24-May-17,1900227889,566,REDACTED PERSONAL DATA,461283
WARRINGTON BOROUGH COUNCIL,http://opendatacommunities.org/id/unitary-authority/warrington ,FWB,Care Purchase South Team,54070,Direct Payments,552000,24-May-17,1900227734,594,REDACTED PERSONAL DATA,460426
WARRINGTON BOROUGH COUNCIL,http://opendatacommunities.org/id/unitary-authority/warrington ,FWB,Care Purchase Central Team,54050,Direct Payments,552000,24-May-17,1900227565,748,REDACTED PERSONAL DATA,102667
WARRINGTON BOROUGH COUNCIL,http://opendatacommunities.org/id/unitary-authority/warrington ,FWB,Care Purchase East Team,54060,Direct Payments,552000,24-May-17,1900227881,849,REDACTED PERSONAL DATA,461259
WARRINGTON BOROUGH COUNCIL,http://opendatacommunities.org/id/unitary-authority/warrington ,FWB,Care Purchase South Team,54070,Direct Payments,552000,24-May-17,1900227680,"2,795.00",REDACTED PERSONAL DATA,460172
WARRINGTON BOROUGH COUNCIL,http://opendatacommunities.org/id/unitary-authority/warrington ,FWB,Care Purchase West Team,54080,Direct Payments,552000,24-May-17,1900227606,956,REDACTED PERSONAL DATA,105621
WARRINGTON BOROUGH COUNCIL,http://opendatacommunities.org/id/unitary-authority/warrington ,FWB,Care Purchase East Team,54060,Direct Payments,552000,24-May-17,1900227621,849,REDACTED PERSONAL DATA,105758
WARRINGTON BOROUGH COUNCIL,http://opendatacommunities.org/id/unitary-authority/warrington ,FWB,Care Purchase West Team,54080,Direct Payments,552000,24-May-17,1900227817,"1,388.00",REDACTED PERSONAL DATA,460933
WARRINGTON BOROUGH COUNCIL,http://opendatacommunities.org/id/unitary-authority/warrington ,FWB,Child Disability,32212,Direct Payments,552000,24-May-17,1900227843,640,REDACTED PERSONAL DATA,461094
WARRINGTON BOROUGH COUNCIL,http://opendatacommunities.org/id/unitary-authority/warrington ,FWB,Care Purchase South Team,54070,Direct Payments,552000,24-May-17,1900227527,"4,173.00",REDACTED PERSONAL DATA,101516
WARRINGTON BOROUGH COUNCIL,http://opendatacommunities.org/id/unitary-authority/warrington ,FWB,Care Purchase Central Team,54050,Direct Payments,552000,24-May-17,1900227716,921,REDACTED PERSONAL DATA,460281
WARRINGTON BOROUGH COUNCIL,http://opendatacommunities.org/id/unitary-authority/warrington ,FWB,Care Purchase East Team,54060,Direct Payments,552000,24-May-17,1900227519,"1,358.00",REDACTED PERSONAL DATA,101336
WARRINGTON BOROUGH COUNCIL,http://opendatacommunities.org/id/unitary-authority/warrington ,FWB,Care Purchase West Team,54080,Direct Payments,552000,24-May-17,1900227640,759,REDACTED PERSONAL DATA,107297
WARRINGTON BOROUGH COUNCIL,http://opendatacommunities.org/id/unitary-authority/warrington ,FWB,Care Purchase West Team,54080,Direct Payments,552000,24-May-17,1900227643,"1,414.00",REDACTED PERSONAL DATA,107437
WARRINGTON BOROUGH COUNCIL,http://opendatacommunities.org/id/unitary-authority/warrington ,FWB,Care Purchase West Team,54080,Direct Payments,552000,24-May-17,1900227615,597,REDACTED PERSONAL DATA,105665
WARRINGTON BOROUGH COUNCIL,http://opendatacommunities.org/id/unitary-authority/warrington ,FWB,Care Purchase East Team,54060,Direct Payments,552000,24-May-17,1900227658,999,REDACTED PERSONAL DATA,112510
WARRINGTON BOROUGH COUNCIL,http://opendatacommunities.org/id/unitary-authority/warrington ,FWB,Care Purchase Central Team,54050,Direct Payments,552000,24-May-17,1900227927,865,REDACTED PERSONAL DATA,461400
WARRINGTON BOROUGH COUNCIL,http://opendatacommunities.org/id/unitary-authority/warrington ,FWB,Care Purchase Central Team,54050,Direct Payments,552000,24-May-17,1900227698,"1,081.00",REDACTED PERSONAL DATA,460238
WARRINGTON BOROUGH COUNCIL,http://opendatacommunities.org/id/unitary-authority/warrington ,FWB,Care Purchase East Team,54060,Direct Payments,552000,24-May-17,1900227502,"1,648.00",REDACTED PERSONAL DATA,100907
WARRINGTON BOROUGH COUNCIL,http://opendatacommunities.org/id/unitary-authority/warrington ,FWB,Care Purchase East Team,54060,Direct Payments,552000,24-May-17,1900227937,"1,924.00",REDACTED PERSONAL DATA,461428
WARRINGTON BOROUGH COUNCIL,http://opendatacommunities.org/id/unitary-authority/warrington ,FWB,Care Purchase South Team,54070,CP - Cont Care - External,441350,24-May-17,1900227609,638,REDACTED PERSONAL DATA,105625
WARRINGTON BOROUGH COUNCIL,http://opendatacommunities.org/id/unitary-authority/warrington ,FWB,Care Purchase Central Team,54050,Direct Payments,552000,24-May-17,1900227496,720,REDACTED PERSONAL DATA,100452
WARRINGTON BOROUGH COUNCIL,http://opendatacommunities.org/id/unitary-authority/warrington ,FWB,Care Purchase Central Team,54050,Direct Payments,552000,24-May-17,1900227686,"3,320.00",REDACTED PERSONAL DATA,460191
WARRINGTON BOROUGH COUNCIL,http://opendatacommunities.org/id/unitary-authority/warrington ,FWB,Care Purchase Central Team,54050,Direct Payments,552000,24-May-17,1900227804,976,REDACTED PERSONAL DATA,460850
WARRINGTON BOROUGH COUNCIL,http://opendatacommunities.org/id/unitary-authority/warrington ,FWB,Child Disability,32212,Direct Payments,552000,24-May-17,1900227517,666,REDACTED PERSONAL DATA,101322
WARRINGTON BOROUGH COUNCIL,http://opendatacommunities.org/id/unitary-authority/warrington ,FWB,Care Purchase South Team,54070,Direct Payments,552000,24-May-17,1900227960,637,REDACTED PERSONAL DATA,461481
WARRINGTON BOROUGH COUNCIL,http://opendatacommunities.org/id/unitary-authority/warrington ,FWB,Care Purchase East Team,54060,Direct Payments,552000,24-May-17,1900227844,764,REDACTED PERSONAL DATA,461109
WARRINGTON BOROUGH COUNCIL,http://opendatacommunities.org/id/unitary-authority/warrington ,FWB,Care Purchase West Team,54080,Direct Payments,552000,24-May-17,1900227530,"1,019.00",REDACTED PERSONAL DATA,101547
WARRINGTON BOROUGH COUNCIL,http://opendatacommunities.org/id/unitary-authority/warrington ,FWB,Care Purchase South Team,54070,Direct Payments,552000,24-May-17,1900227769,552,REDACTED PERSONAL DATA,460587
WARRINGTON BOROUGH COUNCIL,http://opendatacommunities.org/id/unitary-authority/warrington ,FWB,Care Purchase East Team,54060,Direct Payments,552000,24-May-17,1900227566,"1,273.00",REDACTED PERSONAL DATA,102710
WARRINGTON BOROUGH COUNCIL,http://opendatacommunities.org/id/unitary-authority/warrington ,FWB,Care Purchase East Team,54060,Direct Payments,552000,24-May-17,1900227505,"3,711.00",REDACTED PERSONAL DATA,100954
WARRINGTON BOROUGH COUNCIL,http://opendatacommunities.org/id/unitary-authority/warrington ,FWB,Care Purchase South Team,54070,Direct Payments,552000,24-May-17,1900227931,699,REDACTED PERSONAL DATA,461422
WARRINGTON BOROUGH COUNCIL,http://opendatacommunities.org/id/unitary-authority/warrington ,FWB,Care Purchase South Team,54070,Direct Payments,552000,24-May-17,1900227666,560,REDACTED PERSONAL DATA,460066
WARRINGTON BOROUGH COUNCIL,http://opendatacommunities.org/id/unitary-authority/warrington ,FWB,Care Purchase East Team,54060,Direct Payments,552000,24-May-17,1900227504,"3,310.00",REDACTED PERSONAL DATA,100945
WARRINGTON BOROUGH COUNCIL,http://opendatacommunities.org/id/unitary-authority/warrington ,FWB,Care Purchase South Team,54070,Direct Payments,552000,24-May-17,1900227868,976,REDACTED PERSONAL DATA,461182
WARRINGTON BOROUGH COUNCIL,http://opendatacommunities.org/id/unitary-authority/warrington ,FWB,Care Purchase Central Team,54050,Direct Payments,552000,24-May-17,1900227820,"1,503.00",REDACTED PERSONAL DATA,460951
WARRINGTON BOROUGH COUNCIL,http://opendatacommunities.org/id/unitary-authority/warrington ,FWB,Care Purchase West Team,54080,Direct Payments,552000,24-May-17,1900227604,797,REDACTED PERSONAL DATA,104327
WARRINGTON BOROUGH COUNCIL,http://opendatacommunities.org/id/unitary-authority/warrington ,FWB,Care Purchase Central Team,54050,Direct Payments,552000,24-May-17,1900227869,599,REDACTED PERSONAL DATA,461190
WARRINGTON BOROUGH COUNCIL,http://opendatacommunities.org/id/unitary-authority/warrington ,FWB,Care Purchase East Team,54060,Direct Payments,552000,24-May-17,1900227983,509,REDACTED PERSONAL DATA,461538
WARRINGTON BOROUGH COUNCIL,http://opendatacommunities.org/id/unitary-authority/warrington ,FWB,Care Purchase South Team,54070,Direct Payments,552000,24-May-17,1900227962,"1,142.00",REDACTED PERSONAL DATA,461485
WARRINGTON BOROUGH COUNCIL,http://opendatacommunities.org/id/unitary-authority/warrington ,FWB,Care Purchase East Team,54060,Direct Payments,552000,24-May-17,1900227662,"1,071.00",REDACTED PERSONAL DATA,114527
WARRINGTON BOROUGH COUNCIL,http://opendatacommunities.org/id/unitary-authority/warrington ,FWB,Care Purchase East Team,54060,Direct Payments,552000,24-May-17,1900227692,915,REDACTED PERSONAL DATA,460214
WARRINGTON BOROUGH COUNCIL,http://opendatacommunities.org/id/unitary-authority/warrington ,FWB,Care Purchase East Team,54060,Direct Payments,552000,24-May-17,1900227842,625,REDACTED PERSONAL DATA,461089
WARRINGTON BOROUGH COUNCIL,http://opendatacommunities.org/id/unitary-authority/warrington ,FWB,Care Purchase East Team,54060,Direct Payments,552000,24-May-17,1900227576,"2,822.00",REDACTED PERSONAL DATA,103404
WARRINGTON BOROUGH COUNCIL,http://opendatacommunities.org/id/unitary-authority/warrington ,FWB,Care Purchase South Team,54070,Direct Payments,552000,24-May-17,1900227589,"1,715.00",REDACTED PERSONAL DATA,103697
WARRINGTON BOROUGH COUNCIL,http://opendatacommunities.org/id/unitary-authority/warrington ,FWB,Care Purchase East Team,54060,Direct Payments,552000,24-May-17,1900227616,594,REDACTED PERSONAL DATA,105668
WARRINGTON BOROUGH COUNCIL,http://opendatacommunities.org/id/unitary-authority/warrington ,FWB,Child Disability,32212,Direct Payments,552000,24-May-17,1900227973,"1,200.00",REDACTED PERSONAL DATA,461520
WARRINGTON BOROUGH COUNCIL,http://opendatacommunities.org/id/unitary-authority/warrington ,FWB,Care Purchase Central Team,54050,Direct Payments,552000,24-May-17,1900227902,"1,097.00",REDACTED PERSONAL DATA,461344
WARRINGTON BOROUGH COUNCIL,http://opendatacommunities.org/id/unitary-authority/warrington ,FWB,Care Purchase South Team,54070,Direct Payments,552000,24-May-17,1900227584,"1,401.00",REDACTED PERSONAL DATA,103614
WARRINGTON BOROUGH COUNCIL,http://opendatacommunities.org/id/unitary-authority/warrington ,FWB,Care Purchase South Team,54070,Direct Payments,552000,24-May-17,1900227538,"1,019.00",REDACTED PERSONAL DATA,101625
WARRINGTON BOROUGH COUNCIL,http://opendatacommunities.org/id/unitary-authority/warrington ,FWB,Care Purchase Central Team,54050,Direct Payments,552000,24-May-17,1900227557,678,REDACTED PERSONAL DATA,102183
WARRINGTON BOROUGH COUNCIL,http://opendatacommunities.org/id/unitary-authority/warrington ,FWB,Care Purchase West Team,54080,Direct Payments,552000,24-May-17,1900227583,"1,594.00",REDACTED PERSONAL DATA,103613
WARRINGTON BOROUGH COUNCIL,http://opendatacommunities.org/id/unitary-authority/warrington ,FWB,Care Purchase West Team,54080,Direct Payments,552000,24-May-17,1900227985,582,REDACTED PERSONAL DATA,461549
WARRINGTON BOROUGH COUNCIL,http://opendatacommunities.org/id/unitary-authority/warrington ,FWB,Care Purchase East Team,54060,Direct Payments,552000,24-May-17,1900227923,"1,464.00",REDACTED PERSONAL DATA,461395
WARRINGTON BOROUGH COUNCIL,http://opendatacommunities.org/id/unitary-authority/warrington ,FWB,Care Purchase East Team,54060,Direct Payments,552000,24-May-17,1900227856,509,REDACTED PERSONAL DATA,461145
WARRINGTON BOROUGH COUNCIL,http://opendatacommunities.org/id/unitary-authority/warrington ,FWB,Care Purchase East Team,54060,Direct Payments,552000,24-May-17,1900227784,"11,453.00",REDACTED PERSONAL DATA,460725
WARRINGTON BOROUGH COUNCIL,http://opendatacommunities.org/id/unitary-authority/warrington ,FWB,Care Purchase East Team,54060,Direct Payments,552000,24-May-17,1900227637,"1,061.00",REDACTED PERSONAL DATA,106955
WARRINGTON BOROUGH COUNCIL,http://opendatacommunities.org/id/unitary-authority/warrington ,FWB,Care Purchase South Team,54070,Direct Payments,552000,24-May-17,1900227660,908,REDACTED PERSONAL DATA,114340
WARRINGTON BOROUGH COUNCIL,http://opendatacommunities.org/id/unitary-authority/warrington ,FWB,Child Disability,32212,Direct Payments,552000,24-May-17,1900227811,560,REDACTED PERSONAL DATA,460905
WARRINGTON BOROUGH COUNCIL,http://opendatacommunities.org/id/unitary-authority/warrington ,FWB,Care Purchase Central Team,54050,Direct Payments,552000,24-May-17,1900227836,919,REDACTED PERSONAL DATA,461050
WARRINGTON BOROUGH COUNCIL,http://opendatacommunities.org/id/unitary-authority/warrington ,FWB,Care Purchase Central Team,54050,Direct Payments,552000,24-May-17,1900227905,770,REDACTED PERSONAL DATA,461350
WARRINGTON BOROUGH COUNCIL,http://opendatacommunities.org/id/unitary-authority/warrington ,FWB,Care Purchase East Team,54060,Direct Payments,552000,24-May-17,1900227588,"9,881.00",REDACTED PERSONAL DATA,103696
WARRINGTON BOROUGH COUNCIL,http://opendatacommunities.org/id/unitary-authority/warrington ,FWB,Care Purchase Central Team,54050,Direct Payments,552000,24-May-17,1900227822,"1,347.00",REDACTED PERSONAL DATA,460973
WARRINGTON BOROUGH COUNCIL,http://opendatacommunities.org/id/unitary-authority/warrington ,FWB,Care Purchase East Team,54060,Direct Payments,552000,24-May-17,1900227558,542,REDACTED PERSONAL DATA,102225
WARRINGTON BOROUGH COUNCIL,http://opendatacommunities.org/id/unitary-authority/warrington ,FWB,Care Purchase West Team,54080,Direct Payments,552000,24-May-17,1900227546,630,REDACTED PERSONAL DATA,101748
WARRINGTON BOROUGH COUNCIL,http://opendatacommunities.org/id/unitary-authority/warrington ,FWB,Care Purchase West Team,54080,Direct Payments,552000,24-May-17,1900227876,976,REDACTED PERSONAL DATA,461242
WARRINGTON BOROUGH COUNCIL,http://opendatacommunities.org/id/unitary-authority/warrington ,FWB,Child Disability,32212,Direct Payments,552000,24-May-17,1900227943,"1,066.00",REDACTED PERSONAL DATA,461438
WARRINGTON BOROUGH COUNCIL,http://opendatacommunities.org/id/unitary-authority/warrington ,FWB,Care Purchase West Team,54080,Direct Payments,552000,24-May-17,1900227506,"10,018.00",REDACTED PERSONAL DATA,100959
WARRINGTON BOROUGH COUNCIL,http://opendatacommunities.org/id/unitary-authority/warrington ,FWB,Care Purchase Central Team,54050,Direct Payments,552000,24-May-17,1900227862,"1,358.00",REDACTED PERSONAL DATA,461164
WARRINGTON BOROUGH COUNCIL,http://opendatacommunities.org/id/unitary-authority/warrington ,FWB,Care Purchase East Team,54060,Direct Payments,552000,24-May-17,1900227543,"3,533.00",REDACTED PERSONAL DATA,101701
WARRINGTON BOROUGH COUNCIL,http://opendatacommunities.org/id/unitary-authority/warrington ,FWB,Child Disability,32212,Direct Payments,552000,24-May-17,1900227701,680,REDACTED PERSONAL DATA,460248
WARRINGTON BOROUGH COUNCIL,http://opendatacommunities.org/id/unitary-authority/warrington ,FWB,Care Purchase Central Team,54050,Direct Payments,552000,24-May-17,1900227497,"1,764.00",REDACTED PERSONAL DATA,100508
WARRINGTON BOROUGH COUNCIL,http://opendatacommunities.org/id/unitary-authority/warrington ,FWB,Care Purchase East Team,54060,Direct Payments,552000,24-May-17,1900227906,535,REDACTED PERSONAL DATA,461353
WARRINGTON BOROUGH COUNCIL,http://opendatacommunities.org/id/unitary-authority/warrington ,FWB,Care Purchase East Team,54060,Direct Payments,552000,24-May-17,1900227861,764,REDACTED PERSONAL DATA,461158
WARRINGTON BOROUGH COUNCIL,http://opendatacommunities.org/id/unitary-authority/warrington ,FWB,Care Purchase Central Team,54050,Direct Payments,552000,24-May-17,1900227892,806,REDACTED PERSONAL DATA,461293
WARRINGTON BOROUGH COUNCIL,http://opendatacommunities.org/id/unitary-authority/warrington ,FWB,Care Purchase East Team,54060,Direct Payments,552000,24-May-17,1900227964,"7,548.00",REDACTED PERSONAL DATA,461488
WARRINGTON BOROUGH COUNCIL,http://opendatacommunities.org/id/unitary-authority/warrington ,FWB,Child Disability,32212,Direct Payments,552000,24-May-17,1900227706,540,REDACTED PERSONAL DATA,460256
WARRINGTON BOROUGH COUNCIL,http://opendatacommunities.org/id/unitary-authority/warrington ,FWB,Child Disability,32212,Direct Payments,552000,24-May-17,1900227670,977,REDACTED PERSONAL DATA,460112
WARRINGTON BOROUGH COUNCIL,http://opendatacommunities.org/id/unitary-authority/warrington ,FWB,Care Purchase East Team,54060,Direct Payments,552000,24-May-17,1900227491,"4,874.00",REDACTED PERSONAL DATA,100049
WARRINGTON BOROUGH COUNCIL,http://opendatacommunities.org/id/unitary-authority/warrington ,FWB,Child Disability,32212,Direct Payments,552000,24-May-17,1900227633,730,REDACTED PERSONAL DATA,106708
WARRINGTON BOROUGH COUNCIL,http://opendatacommunities.org/id/unitary-authority/warrington ,FWB,Care Purchase West Team,54080,Direct Payments,552000,24-May-17,1900227520,"5,709.00",REDACTED PERSONAL DATA,101341
WARRINGTON BOROUGH COUNCIL,http://opendatacommunities.org/id/unitary-authority/warrington ,FWB,Child Disability,32212,Direct Payments,552000,24-May-17,1900227580,"1,000.00",REDACTED PERSONAL DATA,103574
WARRINGTON BOROUGH COUNCIL,http://opendatacommunities.org/id/unitary-authority/warrington ,FWB,Care Purchase West Team,54080,Direct Payments,552000,24-May-17,1900227965,"1,431.00",REDACTED PERSONAL DATA,461493
WARRINGTON BOROUGH COUNCIL,http://opendatacommunities.org/id/unitary-authority/warrington ,FWB,Care Purchase Central Team,54050,Direct Payments,552000,24-May-17,1900227852,"7,385.00",REDACTED PERSONAL DATA,461139
WARRINGTON BOROUGH COUNCIL,http://opendatacommunities.org/id/unitary-authority/warrington ,FWB,Care Purchase West Team,54080,Direct Payments,552000,24-May-17,1900227521,"4,881.00",REDACTED PERSONAL DATA,101354
WARRINGTON BOROUGH COUNCIL,http://opendatacommunities.org/id/unitary-authority/warrington ,FWB,Care Purchase East Team,54060,Direct Payments,552000,24-May-17,1900227774,976,REDACTED PERSONAL DATA,460623
WARRINGTON BOROUGH COUNCIL,http://opendatacommunities.org/id/unitary-authority/warrington ,FWB,Care Purchase South Team,54070,Direct Payments,552000,24-May-17,1900227513,"1,873.00",REDACTED PERSONAL DATA,101147
WARRINGTON BOROUGH COUNCIL,http://opendatacommunities.org/id/unitary-authority/warrington ,FWB,Care Purchase West Team,54080,Direct Payments,552000,24-May-17,1900227516,721,REDACTED PERSONAL DATA,101261
WARRINGTON BOROUGH COUNCIL,http://opendatacommunities.org/id/unitary-authority/warrington ,FWB,Care Purchase West Team,54080,Direct Payments,552000,24-May-17,1900227963,"1,192.00",REDACTED PERSONAL DATA,461487
WARRINGTON BOROUGH COUNCIL,http://opendatacommunities.org/id/unitary-authority/warrington ,FWB,Care Purchase West Team,54080,Direct Payments,552000,24-May-17,1900227518,679,REDACTED PERSONAL DATA,101323
WARRINGTON BOROUGH COUNCIL,http://opendatacommunities.org/id/unitary-authority/warrington ,FWB,Care Purchase West Team,54080,Direct Payments,552000,24-May-17,1900227742,"1,040.00",REDACTED PERSONAL DATA,460465
WARRINGTON BOROUGH COUNCIL,http://opendatacommunities.org/id/unitary-authority/warrington ,FWB,Child Disability,32212,Direct Payments,552000,24-May-17,1900227956,"1,020.00",REDACTED PERSONAL DATA,461473
WARRINGTON BOROUGH COUNCIL,http://opendatacommunities.org/id/unitary-authority/warrington ,FWB,Care Purchase South Team,54070,Direct Payments,552000,24-May-17,1900227503,"1,492.00",REDACTED PERSONAL DATA,100934
WARRINGTON BOROUGH COUNCIL,http://opendatacommunities.org/id/unitary-authority/warrington ,FWB,Care Purchase East Team,54060,Direct Payments,552000,24-May-17,1900227631,855,REDACTED PERSONAL DATA,106630
WARRINGTON BOROUGH COUNCIL,http://opendatacommunities.org/id/unitary-authority/warrington ,FWB,Care Purchase West Team,54080,Direct Payments,552000,24-May-17,1900227866,607,REDACTED PERSONAL DATA,461180
WARRINGTON BOROUGH COUNCIL,http://opendatacommunities.org/id/unitary-authority/warrington ,FWB,Care Purchase Central Team,54050,Direct Payments,552000,24-May-17,1900227636,668,REDACTED PERSONAL DATA,106866
WARRINGTON BOROUGH COUNCIL,http://opendatacommunities.org/id/unitary-authority/warrington ,FWB,Care Purchase West Team,54080,Direct Payments,552000,24-May-17,1900227665,697,REDACTED PERSONAL DATA,460054
WARRINGTON BOROUGH COUNCIL,http://opendatacommunities.org/id/unitary-authority/warrington ,FWB,Care Purchase East Team,54060,Direct Payments,552000,24-May-17,1900227614,726,REDACTED PERSONAL DATA,105641
WARRINGTON BOROUGH COUNCIL,http://opendatacommunities.org/id/unitary-authority/warrington ,FWB,Child Disability,32212,Direct Payments,552000,24-May-17,1900227807,917,REDACTED PERSONAL DATA,460863
WARRINGTON BOROUGH COUNCIL,http://opendatacommunities.org/id/unitary-authority/warrington ,FWB,Care Purchase Central Team,54050,Direct Payments,552000,24-May-17,1900227709,"7,611.00",REDACTED PERSONAL DATA,460263
WARRINGTON BOROUGH COUNCIL,http://opendatacommunities.org/id/unitary-authority/warrington ,FWB,Care Purchase Central Team,54050,Direct Payments,552000,24-May-17,1900227790,696,REDACTED PERSONAL DATA,460754
WARRINGTON BOROUGH COUNCIL,http://opendatacommunities.org/id/unitary-authority/warrington ,FWB,Care Purchase West Team,54080,Direct Payments,552000,24-May-17,1900227629,840,REDACTED PERSONAL DATA,106441
WARRINGTON BOROUGH COUNCIL,http://opendatacommunities.org/id/unitary-authority/warrington ,FWB,Care Purchase West Team,54080,Direct Payments,552000,24-May-17,1900227532,509,REDACTED PERSONAL DATA,101558
WARRINGTON BOROUGH COUNCIL,http://opendatacommunities.org/id/unitary-authority/warrington ,FWB,Care Purchase West Team,54080,Direct Payments,552000,24-May-17,1900227847,"4,032.00",REDACTED PERSONAL DATA,461124
WARRINGTON BOROUGH COUNCIL,http://opendatacommunities.org/id/unitary-authority/warrington ,FWB,Care Purchase West Team,54080,Direct Payments,552000,24-May-17,1900227824,637,REDACTED PERSONAL DATA,460975
WARRINGTON BOROUGH COUNCIL,http://opendatacommunities.org/id/unitary-authority/warrington ,FWB,Care Purchase Central Team,54050,Direct Payments,552000,24-May-17,1900227707,"2,918.00",REDACTED PERSONAL DATA,460257
WARRINGTON BOROUGH COUNCIL,http://opendatacommunities.org/id/unitary-authority/warrington ,FWB,Care Purchase South Team,54070,Direct Payments,552000,24-May-17,1900227522,800,REDACTED PERSONAL DATA,101396
WARRINGTON BOROUGH COUNCIL,http://opendatacommunities.org/id/unitary-authority/warrington ,FWB,Care Purchase West Team,54080,Direct Payments,552000,24-May-17,1900227689,520,REDACTED PERSONAL DATA,460202
WARRINGTON BOROUGH COUNCIL,http://opendatacommunities.org/id/unitary-authority/warrington ,FWB,Care Purchase Central Team,54050,Direct Payments,552000,24-May-17,1900227903,581,REDACTED PERSONAL DATA,461348
WARRINGTON BOROUGH COUNCIL,http://opendatacommunities.org/id/unitary-authority/warrington ,FWB,Care Purchase Central Team,54050,Direct Payments,552000,24-May-17,1900227853,"1,428.00",REDACTED PERSONAL DATA,461140
WARRINGTON BOROUGH COUNCIL,http://opendatacommunities.org/id/unitary-authority/warrington ,FWB,Care Purchase West Team,54080,Direct Payments,552000,24-May-17,1900227499,"1,773.00",REDACTED PERSONAL DATA,100666
WARRINGTON BOROUGH COUNCIL,http://opendatacommunities.org/id/unitary-authority/warrington ,FWB,Care Purchase Central Team,54050,Direct Payments,552000,24-May-17,1900227715,849,REDACTED PERSONAL DATA,460278
WARRINGTON BOROUGH COUNCIL,http://opendatacommunities.org/id/unitary-authority/warrington ,FWB,Care Purchase West Team,54080,Direct Payments,552000,24-May-17,1900227752,"1,720.00",REDACTED PERSONAL DATA,460514
WARRINGTON BOROUGH COUNCIL,http://opendatacommunities.org/id/unitary-authority/warrington ,FWB,Care Purchase Central Team,54050,Direct Payments,552000,24-May-17,1900227753,"1,188.00",REDACTED PERSONAL DATA,460519
WARRINGTON BOROUGH COUNCIL,http://opendatacommunities.org/id/unitary-authority/warrington ,FWB,Care Purchase West Team,54080,Direct Payments,552000,24-May-17,1900227494,"7,043.00",REDACTED PERSONAL DATA,100338
WARRINGTON BOROUGH COUNCIL,http://opendatacommunities.org/id/unitary-authority/warrington ,FWB,Care Purchase Central Team,54050,Direct Payments,552000,24-May-17,1900227987,"1,128.00",REDACTED PERSONAL DATA,461555
WARRINGTON BOROUGH COUNCIL,http://opendatacommunities.org/id/unitary-authority/warrington ,FWB,Care Purchase South Team,54070,Direct Payments,552000,24-May-17,1900227586,"2,515.00",REDACTED PERSONAL DATA,103660
WARRINGTON BOROUGH COUNCIL,http://opendatacommunities.org/id/unitary-authority/warrington ,FWB,Care Purchase West Team,54080,Direct Payments,552000,24-May-17,1900227796,"2,122.00",REDACTED PERSONAL DATA,460779
WARRINGTON BOROUGH COUNCIL,http://opendatacommunities.org/id/unitary-authority/warrington ,FWB,Care Purchase South Team,54070,Direct Payments,552000,24-May-17,1900227663,"1,502.00",REDACTED PERSONAL DATA,114697
WARRINGTON BOROUGH COUNCIL,http://opendatacommunities.org/id/unitary-authority/warrington ,FWB,Care Purchase South Team,54070,Direct Payments,552000,24-May-17,1900227809,"2,122.00",REDACTED PERSONAL DATA,460879
WARRINGTON BOROUGH COUNCIL,http://opendatacommunities.org/id/unitary-authority/warrington ,FWB,Care Purchase West Team,54080,Direct Payments,552000,24-May-17,1900227721,"1,273.00",REDACTED PERSONAL DATA,460295
WARRINGTON BOROUGH COUNCIL,http://opendatacommunities.org/id/unitary-authority/warrington ,FWB,Care Purchase West Team,54080,Direct Payments,552000,24-May-17,1900227498,637,REDACTED PERSONAL DATA,100607
WARRINGTON BOROUGH COUNCIL,http://opendatacommunities.org/id/unitary-authority/warrington ,FWB,Child Disability,32212,Direct Payments,552000,24-May-17,1900227911,800,REDACTED PERSONAL DATA,461368
WARRINGTON BOROUGH COUNCIL,http://opendatacommunities.org/id/unitary-authority/warrington ,FWB,Care Purchase East Team,54060,Direct Payments,552000,24-May-17,1900227544,"3,533.00",REDACTED PERSONAL DATA,101704
WARRINGTON BOROUGH COUNCIL,http://opendatacommunities.org/id/unitary-authority/warrington ,FWB,Care Purchase West Team,54080,Direct Payments,552000,24-May-17,1900227945,"1,834.00",REDACTED PERSONAL DATA,461448
WARRINGTON BOROUGH COUNCIL,http://opendatacommunities.org/id/unitary-authority/warrington ,FWB,Care Purchase East Team,54060,Direct Payments,552000,24-May-17,1900227743,668,REDACTED PERSONAL DATA,460468
WARRINGTON BOROUGH COUNCIL,http://opendatacommunities.org/id/unitary-authority/warrington ,FWB,Care Purchase Central Team,54050,Direct Payments,552000,24-May-17,1900227981,930,REDACTED PERSONAL DATA,461532
WARRINGTON BOROUGH COUNCIL,http://opendatacommunities.org/id/unitary-authority/warrington ,FWB,Care Purchase West Team,54080,Direct Payments,552000,24-May-17,1900227795,"2,485.00",REDACTED PERSONAL DATA,460765
WARRINGTON BOROUGH COUNCIL,http://opendatacommunities.org/id/unitary-authority/warrington ,FWB,Care Purchase Central Team,54050,Direct Payments,552000,24-May-17,1900227850,"1,232.00",REDACTED PERSONAL DATA,461127
WARRINGTON BOROUGH COUNCIL,http://opendatacommunities.org/id/unitary-authority/warrington ,FWB,Care Purchase East Team,54060,Direct Payments,552000,24-May-17,1900227515,"5,900.00",REDACTED PERSONAL DATA,101246
WARRINGTON BOROUGH COUNCIL,http://opendatacommunities.org/id/unitary-authority/warrington ,FWB,Care Purchase East Team,54060,Direct Payments,552000,24-May-17,1900227574,935,REDACTED PERSONAL DATA,103320
WARRINGTON BOROUGH COUNCIL,http://opendatacommunities.org/id/unitary-authority/warrington ,FWB,Care Purchase Central Team,54050,Direct Payments,552000,24-May-17,1900227758,565,REDACTED PERSONAL DATA,460545
WARRINGTON BOROUGH COUNCIL,http://opendatacommunities.org/id/unitary-authority/warrington ,FWB,Care Purchase Central Team,54050,Direct Payments,552000,24-May-17,1900227858,"2,640.00",REDACTED PERSONAL DATA,461149
WARRINGTON BOROUGH COUNCIL,http://opendatacommunities.org/id/unitary-authority/warrington ,FWB,Care Purchase West Team,54080,Direct Payments,552000,24-May-17,1900227540,"2,430.00",REDACTED PERSONAL DATA,101669
WARRINGTON BOROUGH COUNCIL,http://opendatacommunities.org/id/unitary-authority/warrington ,FWB,Care Purchase East Team,54060,Direct Payments,552000,24-May-17,1900227891,572,REDACTED PERSONAL DATA,461288
WARRINGTON BOROUGH COUNCIL,http://opendatacommunities.org/id/unitary-authority/warrington ,FWB,Care Purchase Central Team,54050,Direct Payments,552000,24-May-17,1900227711,"1,679.00",REDACTED PERSONAL DATA,460265
WARRINGTON BOROUGH COUNCIL,http://opendatacommunities.org/id/unitary-authority/warrington ,FWB,Care Purchase Central Team,54050,Direct Payments,552000,24-May-17,1900227849,646,REDACTED PERSONAL DATA,461126
WARRINGTON BOROUGH COUNCIL,http://opendatacommunities.org/id/unitary-authority/warrington ,FWB,Care Purchase West Team,54080,Direct Payments,552000,24-May-17,1900227899,"1,782.00",REDACTED PERSONAL DATA,461326
WARRINGTON BOROUGH COUNCIL,http://opendatacommunities.org/id/unitary-authority/warrington ,FWB,Care Purchase Central Team,54050,Direct Payments,552000,24-May-17,1900227827,"1,743.00",REDACTED PERSONAL DATA,460993
WARRINGTON BOROUGH COUNCIL,http://opendatacommunities.org/id/unitary-authority/warrington ,FWB,Care Purchase West Team,54080,Direct Payments,552000,24-May-17,1900227851,"1,000.00",REDACTED PERSONAL DATA,461134
WARRINGTON BOROUGH COUNCIL,http://opendatacommunities.org/id/unitary-authority/warrington ,FWB,Care Purchase West Team,54080,Direct Payments,552000,24-May-17,1900227833,"6,536.00",REDACTED PERSONAL DATA,461031
WARRINGTON BOROUGH COUNCIL,http://opendatacommunities.org/id/unitary-authority/warrington ,FWB,Care Purchase West Team,54080,Direct Payments,552000,24-May-17,1900227523,"1,719.00",REDACTED PERSONAL DATA,101420
WARRINGTON BOROUGH COUNCIL,http://opendatacommunities.org/id/unitary-authority/warrington ,FWB,Care Purchase South Team,54070,Direct Payments,552000,24-May-17,1900227717,"1,304.00",REDACTED PERSONAL DATA,460283
WARRINGTON BOROUGH COUNCIL,http://opendatacommunities.org/id/unitary-authority/warrington ,FWB,Child Disability,32212,Direct Payments,552000,24-May-17,1900227677,666,REDACTED PERSONAL DATA,460160
WARRINGTON BOROUGH COUNCIL,http://opendatacommunities.org/id/unitary-authority/warrington ,FWB,Care Purchase South Team,54070,Direct Payments,552000,24-May-17,1900227587,891,REDACTED PERSONAL DATA,103674
WARRINGTON BOROUGH COUNCIL,http://opendatacommunities.org/id/unitary-authority/warrington ,FWB,Child Disability,32212,Direct Payments,552000,24-May-17,1900227673,"3,670.00",REDACTED PERSONAL DATA,460139
WARRINGTON BOROUGH COUNCIL,http://opendatacommunities.org/id/unitary-authority/warrington ,FWB,Care Purchase East Team,54060,Direct Payments,552000,24-May-17,1900227508,"5,450.00",REDACTED PERSONAL DATA,101016
WARRINGTON BOROUGH COUNCIL,http://opendatacommunities.org/id/unitary-authority/warrington ,FWB,Care Purchase West Team,54080,Direct Payments,552000,24-May-17,1900227733,"1,715.00",REDACTED PERSONAL DATA,460425
WARRINGTON BOROUGH COUNCIL,http://opendatacommunities.org/id/unitary-authority/warrington ,FWB,Care Purchase Central Team,54050,Direct Payments,552000,24-May-17,1900227730,545,REDACTED PERSONAL DATA,460330
WARRINGTON BOROUGH COUNCIL,http://opendatacommunities.org/id/unitary-authority/warrington ,FWB,Care Purchase South Team,54070,Direct Payments,552000,24-May-17,1900227777,"1,188.00",REDACTED PERSONAL DATA,460665
WARRINGTON BOROUGH COUNCIL,http://opendatacommunities.org/id/unitary-authority/warrington ,FWB,Care Purchase South Team,54070,Direct Payments,552000,24-May-17,1900227907,594,REDACTED PERSONAL DATA,461358
WARRINGTON BOROUGH COUNCIL,http://opendatacommunities.org/id/unitary-authority/warrington ,FWB,Care Purchase South Team,54070,Direct Payments,552000,24-May-17,1900227550,"1,048.00",REDACTED PERSONAL DATA,101825
WARRINGTON BOROUGH COUNCIL,http://opendatacommunities.org/id/unitary-authority/warrington ,FWB,Care Purchase West Team,54080,Direct Payments,552000,24-May-17,1900227688,720,REDACTED PERSONAL DATA,460199
WARRINGTON BOROUGH COUNCIL,http://opendatacommunities.org/id/unitary-authority/warrington ,FWB,Care Purchase Central Team,54050,Direct Payments,552000,24-May-17,1900227549,"1,949.00",REDACTED PERSONAL DATA,101808
WARRINGTON BOROUGH COUNCIL,http://opendatacommunities.org/id/unitary-authority/warrington ,FWB,Care Purchase East Team,54060,Direct Payments,552000,24-May-17,1900227669,764,REDACTED PERSONAL DATA,460097
WARRINGTON BOROUGH COUNCIL,http://opendatacommunities.org/id/unitary-authority/warrington ,FWB,Care Purchase West Team,54080,Direct Payments,552000,24-May-17,1900227690,"14,249.00",REDACTED PERSONAL DATA,460210
WARRINGTON BOROUGH COUNCIL,http://opendatacommunities.org/id/unitary-authority/warrington ,FWB,Care Purchase West Team,54080,Direct Payments,552000,24-May-17,1900227535,509,REDACTED PERSONAL DATA,101592
WARRINGTON BOROUGH COUNCIL,http://opendatacommunities.org/id/unitary-authority/warrington ,FWB,Care Purchase East Team,54060,Direct Payments,552000,24-May-17,1900227541,594,REDACTED PERSONAL DATA,101677
WARRINGTON BOROUGH COUNCIL,http://opendatacommunities.org/id/unitary-authority/warrington ,FWB,Care Purchase West Team,54080,Direct Payments,552000,24-May-17,1900227539,637,REDACTED PERSONAL DATA,101630
WARRINGTON BOROUGH COUNCIL,http://opendatacommunities.org/id/unitary-authority/warrington ,FWB,Care Purchase Central Team,54050,Direct Payments,552000,24-May-17,1900227622,636,REDACTED PERSONAL DATA,105861
WARRINGTON BOROUGH COUNCIL,http://opendatacommunities.org/id/unitary-authority/warrington ,FWB,Care Purchase West Team,54080,Direct Payments,552000,24-May-17,1900227747,637,REDACTED PERSONAL DATA,460482
